Body Name,Date Paid,Transaction Number,Amount,Supplier Name,Supplier Type,Expense Area,Cost Centre Description,Expense Type
Cambridgeshire County Council,18-May-22,51301771546,"-88,359.00",CAMBRIDGE CITY COUNCIL,OTHER PUBLIC BODIES,Adults Commissioning Misc,Out of Hospital Models for People Experiencing Rough Sleeping,Staffing Recharges - External
Cambridgeshire County Council,20-May-22,51301777206,"-49,187.77",NOTTINGHAM REHAB SUPPLIES LTD,TRADE SUPPLIER,Integrated Community Equipment Service,ICES (Pool),Care & Ed Partner Organisations
Cambridgeshire County Council,25-May-22,51301789765,"-39,857.10",Key Living Project,CARE ESTABLISHMENT,LAC Placements,Placements - residential homes,Agency Placements - Out of  County
Cambridgeshire County Council,13-May-22,51301782510,"-27,992.30",ST GEORGE'S COURT,CARE ESTABLISHMENT,OP - City & South Blocks,City and South - Long term blocks,Nursing Care
Cambridgeshire County Council,13-May-22,51301782510,"-27,992.30",ST GEORGE'S COURT,CARE ESTABLISHMENT,OP - City & South Blocks,City and South - Long term blocks,Nursing Care
Cambridgeshire County Council,13-May-22,51301782510,"-27,992.30",ST GEORGE'S COURT,CARE ESTABLISHMENT,OP - City & South Blocks,City and South - Long term blocks,Nursing Care
Cambridgeshire County Council,25-May-22,51301788355,"-21,073.91",Osborne Infrastructure Ltd,COMPANY,Highways - Pothole Grant,Highways - Pothole Grant,Highway - Resurfacing
Cambridgeshire County Council,09-May-22,51301775733,"-16,364.29",Keys PCE Ltd,CARE ESTABLISHMENT,LAC Placements,Placements - residential disability,Agency Placements - Out of  County
Cambridgeshire County Council,09-May-22,51301775717,"-16,364.29",Keys PCE Ltd,CARE ESTABLISHMENT,LAC Placements,Placements - residential homes,Agency Placements - In County
Cambridgeshire County Council,09-May-22,51301775721,"-16,364.29",Keys PCE Ltd,CARE ESTABLISHMENT,LAC Placements,Placements - residential homes,Agency Placements - In County
Cambridgeshire County Council,09-May-22,51301775725,"-16,364.29",Keys PCE Ltd,CARE ESTABLISHMENT,LAC Placements,Placements - residential homes,Agency Placements - In County
Cambridgeshire County Council,09-May-22,51301775729,"-16,364.29",Keys PCE Ltd,CARE ESTABLISHMENT,LAC Placements,Placements - residential homes,Agency Placements - Out of  County
Cambridgeshire County Council,09-May-22,51301775740,"-16,364.29",Keys PCE Ltd,CARE ESTABLISHMENT,LAC Placements,Placements - residential homes,Agency Placements - Out of  County
Cambridgeshire County Council,13-May-22,51301784492,"-15,706.10",MENCAP (32 KINGS LANE),CARE ESTABLISHMENT,LD - Hunts Locality - Cost of Care,LD - Huntingdonshire - Care,Residential Care
Cambridgeshire County Council,13-May-22,51301782493,"-12,965.79",FITZWILLIAM HEALTHCARE LTD,CARE ESTABLISHMENT,OP - City & South Blocks,City and South - Long term blocks,Residential Care
Cambridgeshire County Council,13-May-22,51301782493,"-12,965.79",FITZWILLIAM HEALTHCARE LTD,CARE ESTABLISHMENT,OP - City & South Blocks,City and South - Long term blocks,Residential Care
Cambridgeshire County Council,13-May-22,51301782493,"-12,965.79",FITZWILLIAM HEALTHCARE LTD,CARE ESTABLISHMENT,OP - City & South Blocks,City and South - Long term blocks,Residential Care
Cambridgeshire County Council,13-May-22,51301782493,"-12,283.38",FITZWILLIAM HEALTHCARE LTD,CARE ESTABLISHMENT,OP - City & South Blocks,City and South - Long term blocks,Residential Care
Cambridgeshire County Council,13-May-22,51301782493,"-12,283.38",FITZWILLIAM HEALTHCARE LTD,CARE ESTABLISHMENT,OP - City & South Blocks,City and South - Long term blocks,Residential Care
Cambridgeshire County Council,13-May-22,51301782493,"-12,283.38",FITZWILLIAM HEALTHCARE LTD,CARE ESTABLISHMENT,OP - City & South Blocks,City and South - Long term blocks,Residential Care
Cambridgeshire County Council,13-May-22,51301782493,"-12,283.38",FITZWILLIAM HEALTHCARE LTD,CARE ESTABLISHMENT,OP - City & South Blocks,City and South - Long term blocks,Residential Care
Cambridgeshire County Council,13-May-22,51301782493,"-12,283.38",FITZWILLIAM HEALTHCARE LTD,CARE ESTABLISHMENT,OP - City & South Blocks,City and South - Long term blocks,Residential Care
Cambridgeshire County Council,13-May-22,51301782493,"-12,283.38",FITZWILLIAM HEALTHCARE LTD,CARE ESTABLISHMENT,OP - City & South Blocks,City and South - Long term blocks,Residential Care
Cambridgeshire County Council,13-May-22,51301782493,"-12,283.38",FITZWILLIAM HEALTHCARE LTD,CARE ESTABLISHMENT,OP - City & South Blocks,City and South - Long term blocks,Residential Care
Cambridgeshire County Council,13-May-22,51301782493,"-12,283.38",FITZWILLIAM HEALTHCARE LTD,CARE ESTABLISHMENT,OP - City & South Blocks,City and South - Long term blocks,Residential Care
Cambridgeshire County Council,13-May-22,51301782493,"-12,283.38",FITZWILLIAM HEALTHCARE LTD,CARE ESTABLISHMENT,OP - City & South Blocks,City and South - Long term blocks,Residential Care
Cambridgeshire County Council,13-May-22,51301782493,"-12,283.38",FITZWILLIAM HEALTHCARE LTD,CARE ESTABLISHMENT,OP - City & South Blocks,City and South - Long term blocks,Residential Care
Cambridgeshire County Council,13-May-22,51301782493,"-12,283.38",FITZWILLIAM HEALTHCARE LTD,CARE ESTABLISHMENT,OP - City & South Blocks,City and South - Long term blocks,Residential Care
Cambridgeshire County Council,13-May-22,51301782493,"-12,283.38",FITZWILLIAM HEALTHCARE LTD,CARE ESTABLISHMENT,OP - City & South Blocks,City and South - Long term blocks,Residential Care
Cambridgeshire County Council,13-May-22,51301782493,"-12,283.38",FITZWILLIAM HEALTHCARE LTD,CARE ESTABLISHMENT,OP - City & South Blocks,City and South - Long term blocks,Residential Care
Cambridgeshire County Council,10-May-22,51301777165,"-10,628.57",BREAK,CHARITY,LAC Placements,Placements - residential homes,Agency Placements - In County
Cambridgeshire County Council,10-May-22,51301777167,"-10,628.57",BREAK,CHARITY,LAC Placements,Placements - residential homes,Agency Placements - In County
Cambridgeshire County Council,10-May-22,51301777171,"-10,628.57",BREAK,CHARITY,LAC Placements,Placements - residential homes,Agency Placements - In County
Cambridgeshire County Council,10-May-22,51301777175,"-10,628.57",BREAK,CHARITY,LAC Placements,Placements - residential homes,Agency Placements - In County
Cambridgeshire County Council,10-May-22,51301777177,"-10,628.57",BREAK,CHARITY,LAC Placements,Placements - residential homes,Agency Placements - In County
Cambridgeshire County Council,10-May-22,51301777181,"-10,628.57",BREAK,CHARITY,LAC Placements,Placements - residential homes,Agency Placements - In County
Cambridgeshire County Council,10-May-22,51301777173,"-10,285.71",BREAK,CHARITY,LAC Placements,Placements - residential homes,Agency Placements - In County
Cambridgeshire County Council,10-May-22,51301777169,"-10,285.71",BREAK,CHARITY,LAC Placements,Placements - residential homes,Agency Placements - In County
Cambridgeshire County Council,10-May-22,51301777153,"-10,285.71",BREAK,CHARITY,LAC Placements,Placements - residential homes,Agency Placements - Out of  County
Cambridgeshire County Council,10-May-22,51301777156,"-10,285.71",BREAK,CHARITY,LAC Placements,Placements - residential homes,Agency Placements - Out of  County
Cambridgeshire County Council,10-May-22,51301777179,"-9,600.00",BREAK,CHARITY,LAC Placements,Placements - residential homes,Agency Placements - In County
Cambridgeshire County Council,13-May-22,51301782493,"-9,261.28",FITZWILLIAM HEALTHCARE LTD,CARE ESTABLISHMENT,OP - City & South Blocks,City and South - Long term blocks,Residential Care
Cambridgeshire County Council,13-May-22,51301782493,"-9,261.28",FITZWILLIAM HEALTHCARE LTD,CARE ESTABLISHMENT,OP - City & South Blocks,City and South - Long term blocks,Residential Care
Cambridgeshire County Council,13-May-22,51301782478,"-9,118.56",ETHELDRED HOUSE,CARE ESTABLISHMENT,OP - City & South Blocks,City and South - Long term blocks,Nursing Care
Cambridgeshire County Council,13-May-22,51301782478,"-9,118.56",ETHELDRED HOUSE,CARE ESTABLISHMENT,OP - City & South Blocks,City and South - Long term blocks,Nursing Care
Cambridgeshire County Council,13-May-22,51301782478,"-9,118.56",ETHELDRED HOUSE,CARE ESTABLISHMENT,OP - City & South Blocks,City and South - Long term blocks,Nursing Care
Cambridgeshire County Council,13-May-22,51301782478,"-9,118.56",ETHELDRED HOUSE,CARE ESTABLISHMENT,OP - City & South Blocks,City and South - Long term blocks,Nursing Care
Cambridgeshire County Council,13-May-22,51301782478,"-9,118.56",ETHELDRED HOUSE,CARE ESTABLISHMENT,OP - City & South Blocks,City and South - Long term blocks,Nursing Care
Cambridgeshire County Council,13-May-22,51301782478,"-9,118.56",ETHELDRED HOUSE,CARE ESTABLISHMENT,OP - City & South Blocks,City and South - Long term blocks,Nursing Care
Cambridgeshire County Council,13-May-22,51301782478,"-9,118.56",ETHELDRED HOUSE,CARE ESTABLISHMENT,OP - City & South Blocks,City and South - Long term blocks,Nursing Care
Cambridgeshire County Council,13-May-22,51301782478,"-9,118.56",ETHELDRED HOUSE,CARE ESTABLISHMENT,OP - City & South Blocks,City and South - Long term blocks,Nursing Care
Cambridgeshire County Council,13-May-22,51301782493,"-8,773.84",FITZWILLIAM HEALTHCARE LTD,CARE ESTABLISHMENT,OP - City & South Blocks,City and South - Long term blocks,Residential Care
Cambridgeshire County Council,13-May-22,51301782496,"-7,678.68",HUNTERS HEALTHCARE (HUNTERS DOWN),CARE ESTABLISHMENT,OP - Hunts Blocks,Hunts - Long term blocks,Nursing Care
Cambridgeshire County Council,13-May-22,51301782496,"-7,678.68",HUNTERS HEALTHCARE (HUNTERS DOWN),CARE ESTABLISHMENT,OP - Hunts Blocks,Hunts - Long term blocks,Nursing Care
Cambridgeshire County Council,13-May-22,51301782496,"-7,678.68",HUNTERS HEALTHCARE (HUNTERS DOWN),CARE ESTABLISHMENT,OP - Hunts Blocks,Hunts - Long term blocks,Nursing Care
Cambridgeshire County Council,23-May-22,51301774722,"-7,476.76",CANON (UK) LTD,TRADE SUPPLIER,Corporate IT Managed,MFD Recharges,Printing
Cambridgeshire County Council,13-May-22,51301782493,"-7,409.02",FITZWILLIAM HEALTHCARE LTD,CARE ESTABLISHMENT,OP - City & South Blocks,City and South - Long term blocks,Residential Care
Cambridgeshire County Council,10-May-22,51301777160,"-6,857.14",BREAK,CHARITY,LAC Placements,Placements - residential homes,Agency Placements - In County
Cambridgeshire County Council,13-May-22,51301782493,"-5,849.23",FITZWILLIAM HEALTHCARE LTD,CARE ESTABLISHMENT,OP - City & South Blocks,City and South - Long term blocks,Residential Care
Cambridgeshire County Council,09-May-22,51301775737,"-5,642.85",Keys PCE Ltd,CARE ESTABLISHMENT,LAC Placements,Placements - residential homes,Agency Placements - Out of  County
Cambridgeshire County Council,13-May-22,51301782493,"-5,556.77",FITZWILLIAM HEALTHCARE LTD,CARE ESTABLISHMENT,OP - City & South Blocks,City and South - Long term blocks,Residential Care
Cambridgeshire County Council,13-May-22,51301782478,"-5,210.61",ETHELDRED HOUSE,CARE ESTABLISHMENT,OP - City & South Blocks,City and South - Long term blocks,Nursing Care
Cambridgeshire County Council,13-May-22,51301782481,"-4,770.00",THE CAMBRIDGE NURSING CENTRE,CARE ESTABLISHMENT,OP - City & South Locality - Cost of Care,Older People - City & South - Care,Nursing Care
Cambridgeshire County Council,13-May-22,51301782481,"-4,770.00",THE CAMBRIDGE NURSING CENTRE,CARE ESTABLISHMENT,OP - City & South Locality - Cost of Care,Older People - City & South - Care,Nursing Care
Cambridgeshire County Council,13-May-22,51301782481,"-4,770.00",THE CAMBRIDGE NURSING CENTRE,CARE ESTABLISHMENT,OP - City & South Locality - Cost of Care,Older People - City & South - Care,Nursing Care
Cambridgeshire County Council,09-May-22,51301755173,"-4,536.00",WATERMAN ASPEN LTD,TRADE SUPPLIER,PD - General,Major Infrastructure Delivery,Agency Staff
Cambridgeshire County Council,13-May-22,51301714110,"-4,403.77",MEARS CARE LTD,CARE ESTABLISHMENT,OP - Fenland Locality - Cost of Care,Older People - Fenland - Care,Supported Living
Cambridgeshire County Council,13-May-22,51301714110,"-4,403.77",MEARS CARE LTD,CARE ESTABLISHMENT,OP - Fenland Locality - Cost of Care,Older People - Fenland - Care,Supported Living
Cambridgeshire County Council,13-May-22,51301714110,"-4,403.77",MEARS CARE LTD,CARE ESTABLISHMENT,OP - Fenland Locality - Cost of Care,Older People - Fenland - Care,Supported Living
Cambridgeshire County Council,13-May-22,51301714110,"-4,403.77",MEARS CARE LTD,CARE ESTABLISHMENT,OP - Fenland Locality - Cost of Care,Older People - Fenland - Care,Supported Living
Cambridgeshire County Council,13-May-22,51301714110,"-4,403.77",MEARS CARE LTD,CARE ESTABLISHMENT,OP - Fenland Locality - Cost of Care,Older People - Fenland - Care,Supported Living
Cambridgeshire County Council,13-May-22,51301714110,"-4,403.77",MEARS CARE LTD,CARE ESTABLISHMENT,OP - Fenland Locality - Cost of Care,Older People - Fenland - Care,Supported Living
Cambridgeshire County Council,13-May-22,51301714110,"-4,403.77",MEARS CARE LTD,CARE ESTABLISHMENT,OP - Fenland Locality - Cost of Care,Older People - Fenland - Care,Supported Living
Cambridgeshire County Council,13-May-22,51301714110,"-4,403.77",MEARS CARE LTD,CARE ESTABLISHMENT,OP - Fenland Locality - Cost of Care,Older People - Fenland - Care,Supported Living
Cambridgeshire County Council,13-May-22,51301714110,"-4,403.77",MEARS CARE LTD,CARE ESTABLISHMENT,OP - Fenland Locality - Cost of Care,Older People - Fenland - Care,Supported Living
Cambridgeshire County Council,13-May-22,51301714110,"-4,403.77",MEARS CARE LTD,CARE ESTABLISHMENT,OP - Fenland Locality - Cost of Care,Older People - Fenland - Care,Supported Living
Cambridgeshire County Council,13-May-22,51301714110,"-4,403.77",MEARS CARE LTD,CARE ESTABLISHMENT,OP - Fenland Locality - Cost of Care,Older People - Fenland - Care,Supported Living
Cambridgeshire County Council,13-May-22,51301714110,"-4,403.77",MEARS CARE LTD,CARE ESTABLISHMENT,OP - Fenland Locality - Cost of Care,Older People - Fenland - Care,Supported Living
Cambridgeshire County Council,13-May-22,51301714110,"-4,403.77",MEARS CARE LTD,CARE ESTABLISHMENT,OP - Fenland Locality - Cost of Care,Older People - Fenland - Care,Supported Living
Cambridgeshire County Council,13-May-22,51301714110,"-4,403.77",MEARS CARE LTD,CARE ESTABLISHMENT,OP - Fenland Locality - Cost of Care,Older People - Fenland - Care,Supported Living
Cambridgeshire County Council,13-May-22,51301714110,"-4,403.77",MEARS CARE LTD,CARE ESTABLISHMENT,OP - Fenland Locality - Cost of Care,Older People - Fenland - Care,Supported Living
Cambridgeshire County Council,13-May-22,51301714110,"-4,403.77",MEARS CARE LTD,CARE ESTABLISHMENT,OP - Fenland Locality - Cost of Care,Older People - Fenland - Care,Supported Living
Cambridgeshire County Council,13-May-22,51301714110,"-4,403.77",MEARS CARE LTD,CARE ESTABLISHMENT,OP - Fenland Locality - Cost of Care,Older People - Fenland - Care,Supported Living
Cambridgeshire County Council,13-May-22,51301714110,"-4,403.77",MEARS CARE LTD,CARE ESTABLISHMENT,OP - Fenland Locality - Cost of Care,Older People - Fenland - Care,Supported Living
Cambridgeshire County Council,13-May-22,51301714110,"-4,403.77",MEARS CARE LTD,CARE ESTABLISHMENT,OP - Fenland Locality - Cost of Care,Older People - Fenland - Care,Supported Living
Cambridgeshire County Council,13-May-22,51301714110,"-4,403.77",MEARS CARE LTD,CARE ESTABLISHMENT,OP - Fenland Locality - Cost of Care,Older People - Fenland - Care,Supported Living
Cambridgeshire County Council,13-May-22,51301714110,"-4,403.77",MEARS CARE LTD,CARE ESTABLISHMENT,OP - Fenland Locality - Cost of Care,Older People - Fenland - Care,Supported Living
Cambridgeshire County Council,13-May-22,51301714110,"-4,403.77",MEARS CARE LTD,CARE ESTABLISHMENT,OP - Fenland Locality - Cost of Care,Older People - Fenland - Care,Supported Living
Cambridgeshire County Council,13-May-22,51301714110,"-4,403.77",MEARS CARE LTD,CARE ESTABLISHMENT,OP - Fenland Locality - Cost of Care,Older People - Fenland - Care,Supported Living
Cambridgeshire County Council,13-May-22,51301714110,"-4,403.77",MEARS CARE LTD,CARE ESTABLISHMENT,OP - Fenland Locality - Cost of Care,Older People - Fenland - Care,Supported Living
Cambridgeshire County Council,13-May-22,51301714110,"-4,403.77",MEARS CARE LTD,CARE ESTABLISHMENT,OP - Fenland Locality - Cost of Care,Older People - Fenland - Care,Supported Living
Cambridgeshire County Council,13-May-22,51301714110,"-4,403.77",MEARS CARE LTD,CARE ESTABLISHMENT,OP - Fenland Locality - Cost of Care,Older People - Fenland - Care,Supported Living
Cambridgeshire County Council,13-May-22,51301714110,"-4,403.77",MEARS CARE LTD,CARE ESTABLISHMENT,OP - Fenland Locality - Cost of Care,Older People - Fenland - Care,Supported Living
Cambridgeshire County Council,13-May-22,51301714110,"-4,403.77",MEARS CARE LTD,CARE ESTABLISHMENT,OP - Fenland Locality - Cost of Care,Older People - Fenland - Care,Supported Living
Cambridgeshire County Council,13-May-22,51301714110,"-4,403.77",MEARS CARE LTD,CARE ESTABLISHMENT,OP - Fenland Locality - Cost of Care,Older People - Fenland - Care,Supported Living
Cambridgeshire County Council,13-May-22,51301714110,"-4,403.77",MEARS CARE LTD,CARE ESTABLISHMENT,OP - Fenland Locality - Cost of Care,Older People - Fenland - Care,Supported Living
Cambridgeshire County Council,13-May-22,51301714110,"-4,403.77",MEARS CARE LTD,CARE ESTABLISHMENT,OP - Fenland Locality - Cost of Care,Older People - Fenland - Care,Supported Living
Cambridgeshire County Council,13-May-22,51301714110,"-4,403.77",MEARS CARE LTD,CARE ESTABLISHMENT,OP - Fenland Locality - Cost of Care,Older People - Fenland - Care,Supported Living
Cambridgeshire County Council,13-May-22,51301714110,"-4,403.77",MEARS CARE LTD,CARE ESTABLISHMENT,OP - Fenland Locality - Cost of Care,Older People - Fenland - Care,Supported Living
Cambridgeshire County Council,13-May-22,51301714110,"-4,403.77",MEARS CARE LTD,CARE ESTABLISHMENT,OP - Fenland Locality - Cost of Care,Older People - Fenland - Care,Supported Living
Cambridgeshire County Council,13-May-22,51301714110,"-4,403.77",MEARS CARE LTD,CARE ESTABLISHMENT,OP - Fenland Locality - Cost of Care,Older People - Fenland - Care,Supported Living
Cambridgeshire County Council,13-May-22,51301714110,"-4,403.77",MEARS CARE LTD,CARE ESTABLISHMENT,OP - Fenland Locality - Cost of Care,Older People - Fenland - Care,Supported Living
Cambridgeshire County Council,13-May-22,51301714110,"-4,403.77",MEARS CARE LTD,CARE ESTABLISHMENT,OP - Fenland Locality - Cost of Care,Older People - Fenland - Care,Supported Living
Cambridgeshire County Council,13-May-22,51301714110,"-4,403.77",MEARS CARE LTD,CARE ESTABLISHMENT,OP - Fenland Locality - Cost of Care,Older People - Fenland - Care,Supported Living
Cambridgeshire County Council,13-May-22,51301714110,"-4,403.77",MEARS CARE LTD,CARE ESTABLISHMENT,OP - Fenland Locality - Cost of Care,Older People - Fenland - Care,Supported Living
Cambridgeshire County Council,13-May-22,51301714110,"-4,403.77",MEARS CARE LTD,CARE ESTABLISHMENT,OP - Fenland Locality - Cost of Care,Older People - Fenland - Care,Supported Living
Cambridgeshire County Council,13-May-22,51301714110,"-4,403.77",MEARS CARE LTD,CARE ESTABLISHMENT,OP - Fenland Locality - Cost of Care,Older People - Fenland - Care,Supported Living
Cambridgeshire County Council,13-May-22,51301714110,"-4,403.77",MEARS CARE LTD,CARE ESTABLISHMENT,OP - Fenland Locality - Cost of Care,Older People - Fenland - Care,Supported Living
Cambridgeshire County Council,13-May-22,51301714110,"-4,403.77",MEARS CARE LTD,CARE ESTABLISHMENT,OP - Fenland Locality - Cost of Care,Older People - Fenland - Care,Supported Living
Cambridgeshire County Council,13-May-22,51301714110,"-4,403.77",MEARS CARE LTD,CARE ESTABLISHMENT,OP - Fenland Locality - Cost of Care,Older People - Fenland - Care,Supported Living
Cambridgeshire County Council,13-May-22,51301714110,"-4,403.77",MEARS CARE LTD,CARE ESTABLISHMENT,OP - Fenland Locality - Cost of Care,Older People - Fenland - Care,Supported Living
Cambridgeshire County Council,13-May-22,51301714110,"-4,403.77",MEARS CARE LTD,CARE ESTABLISHMENT,OP - Fenland Locality - Cost of Care,Older People - Fenland - Care,Supported Living
Cambridgeshire County Council,13-May-22,51301714110,"-4,403.77",MEARS CARE LTD,CARE ESTABLISHMENT,OP - Fenland Locality - Cost of Care,Older People - Fenland - Care,Supported Living
Cambridgeshire County Council,13-May-22,51301714110,"-4,403.77",MEARS CARE LTD,CARE ESTABLISHMENT,OP - Fenland Locality - Cost of Care,Older People - Fenland - Care,Supported Living
Cambridgeshire County Council,13-May-22,51301714110,"-4,403.77",MEARS CARE LTD,CARE ESTABLISHMENT,OP - Fenland Locality - Cost of Care,Older People - Fenland - Care,Supported Living
Cambridgeshire County Council,13-May-22,51301714110,"-4,403.77",MEARS CARE LTD,CARE ESTABLISHMENT,OP - Fenland Locality - Cost of Care,Older People - Fenland - Care,Supported Living
Cambridgeshire County Council,13-May-22,51301714110,"-4,403.77",MEARS CARE LTD,CARE ESTABLISHMENT,OP - Fenland Locality - Cost of Care,Older People - Fenland - Care,Supported Living
Cambridgeshire County Council,13-May-22,51301714110,"-4,403.77",MEARS CARE LTD,CARE ESTABLISHMENT,OP - Fenland Locality - Cost of Care,Older People - Fenland - Care,Supported Living
Cambridgeshire County Council,13-May-22,51301714110,"-4,403.77",MEARS CARE LTD,CARE ESTABLISHMENT,OP - Fenland Locality - Cost of Care,Older People - Fenland - Care,Supported Living
Cambridgeshire County Council,13-May-22,51301714110,"-4,403.77",MEARS CARE LTD,CARE ESTABLISHMENT,OP - Fenland Locality - Cost of Care,Older People - Fenland - Care,Supported Living
Cambridgeshire County Council,13-May-22,51301714110,"-4,403.77",MEARS CARE LTD,CARE ESTABLISHMENT,OP - Fenland Locality - Cost of Care,Older People - Fenland - Care,Supported Living
Cambridgeshire County Council,13-May-22,51301714110,"-4,403.77",MEARS CARE LTD,CARE ESTABLISHMENT,OP - Fenland Locality - Cost of Care,Older People - Fenland - Care,Supported Living
Cambridgeshire County Council,13-May-22,51301714110,"-4,403.77",MEARS CARE LTD,CARE ESTABLISHMENT,OP - Fenland Locality - Cost of Care,Older People - Fenland - Care,Supported Living
Cambridgeshire County Council,13-May-22,51301714110,"-4,403.77",MEARS CARE LTD,CARE ESTABLISHMENT,OP - Fenland Locality - Cost of Care,Older People - Fenland - Care,Supported Living
Cambridgeshire County Council,13-May-22,51301714110,"-4,403.77",MEARS CARE LTD,CARE ESTABLISHMENT,OP - Fenland Locality - Cost of Care,Older People - Fenland - Care,Supported Living
Cambridgeshire County Council,13-May-22,51301714110,"-4,403.77",MEARS CARE LTD,CARE ESTABLISHMENT,OP - Fenland Locality - Cost of Care,Older People - Fenland - Care,Supported Living
Cambridgeshire County Council,13-May-22,51301714110,"-4,403.77",MEARS CARE LTD,CARE ESTABLISHMENT,OP - Fenland Locality - Cost of Care,Older People - Fenland - Care,Supported Living
Cambridgeshire County Council,13-May-22,51301714110,"-4,403.77",MEARS CARE LTD,CARE ESTABLISHMENT,OP - Fenland Locality - Cost of Care,Older People - Fenland - Care,Supported Living
Cambridgeshire County Council,13-May-22,51301714110,"-4,403.77",MEARS CARE LTD,CARE ESTABLISHMENT,OP - Fenland Locality - Cost of Care,Older People - Fenland - Care,Supported Living
Cambridgeshire County Council,13-May-22,51301714110,"-4,403.77",MEARS CARE LTD,CARE ESTABLISHMENT,OP - Fenland Locality - Cost of Care,Older People - Fenland - Care,Supported Living
Cambridgeshire County Council,13-May-22,51301714110,"-4,403.77",MEARS CARE LTD,CARE ESTABLISHMENT,OP - Fenland Locality - Cost of Care,Older People - Fenland - Care,Supported Living
Cambridgeshire County Council,13-May-22,51301714110,"-4,403.77",MEARS CARE LTD,CARE ESTABLISHMENT,OP - Fenland Locality - Cost of Care,Older People - Fenland - Care,Supported Living
Cambridgeshire County Council,13-May-22,51301714110,"-4,403.77",MEARS CARE LTD,CARE ESTABLISHMENT,OP - Fenland Locality - Cost of Care,Older People - Fenland - Care,Supported Living
Cambridgeshire County Council,13-May-22,51301714110,"-4,403.77",MEARS CARE LTD,CARE ESTABLISHMENT,OP - Fenland Locality - Cost of Care,Older People - Fenland - Care,Supported Living
Cambridgeshire County Council,13-May-22,51301714110,"-4,403.77",MEARS CARE LTD,CARE ESTABLISHMENT,OP - Fenland Locality - Cost of Care,Older People - Fenland - Care,Supported Living
Cambridgeshire County Council,13-May-22,51301714110,"-4,403.77",MEARS CARE LTD,CARE ESTABLISHMENT,OP - Fenland Locality - Cost of Care,Older People - Fenland - Care,Supported Living
Cambridgeshire County Council,13-May-22,51301714110,"-4,403.77",MEARS CARE LTD,CARE ESTABLISHMENT,OP - Fenland Locality - Cost of Care,Older People - Fenland - Care,Supported Living
Cambridgeshire County Council,13-May-22,51301714110,"-4,403.77",MEARS CARE LTD,CARE ESTABLISHMENT,OP - Fenland Locality - Cost of Care,Older People - Fenland - Care,Supported Living
Cambridgeshire County Council,13-May-22,51301714110,"-4,403.77",MEARS CARE LTD,CARE ESTABLISHMENT,OP - Fenland Locality - Cost of Care,Older People - Fenland - Care,Supported Living
Cambridgeshire County Council,13-May-22,51301714110,"-4,403.77",MEARS CARE LTD,CARE ESTABLISHMENT,OP - Fenland Locality - Cost of Care,Older People - Fenland - Care,Supported Living
Cambridgeshire County Council,13-May-22,51301714110,"-4,403.77",MEARS CARE LTD,CARE ESTABLISHMENT,OP - Fenland Locality - Cost of Care,Older People - Fenland - Care,Supported Living
Cambridgeshire County Council,13-May-22,51301714110,"-4,403.77",MEARS CARE LTD,CARE ESTABLISHMENT,OP - Fenland Locality - Cost of Care,Older People - Fenland - Care,Supported Living
Cambridgeshire County Council,13-May-22,51301714110,"-4,403.77",MEARS CARE LTD,CARE ESTABLISHMENT,OP - Fenland Locality - Cost of Care,Older People - Fenland - Care,Supported Living
Cambridgeshire County Council,13-May-22,51301714110,"-4,403.77",MEARS CARE LTD,CARE ESTABLISHMENT,OP - Fenland Locality - Cost of Care,Older People - Fenland - Care,Supported Living
Cambridgeshire County Council,13-May-22,51301714110,"-4,403.77",MEARS CARE LTD,CARE ESTABLISHMENT,OP - Fenland Locality - Cost of Care,Older People - Fenland - Care,Supported Living
Cambridgeshire County Council,13-May-22,51301714110,"-4,403.77",MEARS CARE LTD,CARE ESTABLISHMENT,OP - Fenland Locality - Cost of Care,Older People - Fenland - Care,Supported Living
Cambridgeshire County Council,13-May-22,51301714110,"-4,403.77",MEARS CARE LTD,CARE ESTABLISHMENT,OP - Fenland Locality - Cost of Care,Older People - Fenland - Care,Supported Living
Cambridgeshire County Council,13-May-22,51301714110,"-4,403.77",MEARS CARE LTD,CARE ESTABLISHMENT,OP - Fenland Locality - Cost of Care,Older People - Fenland - Care,Supported Living
Cambridgeshire County Council,13-May-22,51301714110,"-4,403.77",MEARS CARE LTD,CARE ESTABLISHMENT,OP - Fenland Locality - Cost of Care,Older People - Fenland - Care,Supported Living
Cambridgeshire County Council,13-May-22,51301714110,"-4,403.77",MEARS CARE LTD,CARE ESTABLISHMENT,OP - Fenland Locality - Cost of Care,Older People - Fenland - Care,Supported Living
Cambridgeshire County Council,13-May-22,51301714110,"-4,403.77",MEARS CARE LTD,CARE ESTABLISHMENT,OP - Fenland Locality - Cost of Care,Older People - Fenland - Care,Supported Living
Cambridgeshire County Council,13-May-22,51301714110,"-4,403.77",MEARS CARE LTD,CARE ESTABLISHMENT,OP - Fenland Locality - Cost of Care,Older People - Fenland - Care,Supported Living
Cambridgeshire County Council,13-May-22,51301714110,"-4,403.77",MEARS CARE LTD,CARE ESTABLISHMENT,OP - Fenland Locality - Cost of Care,Older People - Fenland - Care,Supported Living
Cambridgeshire County Council,13-May-22,51301714110,"-4,403.77",MEARS CARE LTD,CARE ESTABLISHMENT,OP - Fenland Locality - Cost of Care,Older People - Fenland - Care,Supported Living
Cambridgeshire County Council,13-May-22,51301714110,"-4,403.77",MEARS CARE LTD,CARE ESTABLISHMENT,OP - Fenland Locality - Cost of Care,Older People - Fenland - Care,Supported Living
Cambridgeshire County Council,13-May-22,51301714110,"-4,403.77",MEARS CARE LTD,CARE ESTABLISHMENT,OP - Fenland Locality - Cost of Care,Older People - Fenland - Care,Supported Living
Cambridgeshire County Council,13-May-22,51301714110,"-4,403.77",MEARS CARE LTD,CARE ESTABLISHMENT,OP - Fenland Locality - Cost of Care,Older People - Fenland - Care,Supported Living
Cambridgeshire County Council,20-May-22,51301786470,"-4,371.36",THE BEECHES UK LIMITED,CARE ESTABLISHMENT,LAC Placements,Placements - S117 tier 4 step-down,Agency Placements - In County
Cambridgeshire County Council,13-May-22,51301782498,"-4,290.00",THE GABLES SPECIALIST NURSING HOME,CARE ESTABLISHMENT,OP - Fenland Blocks,Fenland - Long term blocks,Nursing Care
Cambridgeshire County Council,13-May-22,51301782498,"-4,290.00",THE GABLES SPECIALIST NURSING HOME,CARE ESTABLISHMENT,OP - Fenland Blocks,Fenland - Long term blocks,Nursing Care
Cambridgeshire County Council,13-May-22,51301782498,"-4,290.00",THE GABLES SPECIALIST NURSING HOME,CARE ESTABLISHMENT,OP - Fenland Blocks,Fenland - Long term blocks,Nursing Care
Cambridgeshire County Council,13-May-22,51301782498,"-4,290.00",THE GABLES SPECIALIST NURSING HOME,CARE ESTABLISHMENT,OP - Fenland Blocks,Fenland - Long term blocks,Nursing Care
Cambridgeshire County Council,13-May-22,51301782498,"-4,290.00",THE GABLES SPECIALIST NURSING HOME,CARE ESTABLISHMENT,OP - Fenland Blocks,Fenland - Long term blocks,Nursing Care
Cambridgeshire County Council,13-May-22,51301782498,"-4,290.00",THE GABLES SPECIALIST NURSING HOME,CARE ESTABLISHMENT,OP - Fenland Blocks,Fenland - Long term blocks,Nursing Care
Cambridgeshire County Council,13-May-22,51301784492,"-4,177.56",MENCAP (32 KINGS LANE),CARE ESTABLISHMENT,LD - Hunts Locality - Cost of Care,LD - Huntingdonshire - Care,Residential Care
Cambridgeshire County Council,13-May-22,51301782465,"-4,095.00",SWAN HOUSE NURSING & RESIDENTIAL HOME,CARE ESTABLISHMENT,OP - Fenland Blocks,Fenland - Long term blocks,Nursing Care
Cambridgeshire County Council,13-May-22,51301782465,"-4,095.00",SWAN HOUSE NURSING & RESIDENTIAL HOME,CARE ESTABLISHMENT,OP - Fenland Blocks,Fenland - Long term blocks,Nursing Care
Cambridgeshire County Council,13-May-22,51301782465,"-4,095.00",SWAN HOUSE NURSING & RESIDENTIAL HOME,CARE ESTABLISHMENT,OP - Fenland Blocks,Fenland - Long term blocks,Nursing Care
Cambridgeshire County Council,13-May-22,51301782493,"-3,899.49",FITZWILLIAM HEALTHCARE LTD,CARE ESTABLISHMENT,OP - City & South Blocks,City and South - Long term blocks,Residential Care
Cambridgeshire County Council,13-May-22,51301782493,"-3,899.49",FITZWILLIAM HEALTHCARE LTD,CARE ESTABLISHMENT,OP - City & South Blocks,City and South - Long term blocks,Residential Care
Cambridgeshire County Council,13-May-22,51301782493,"-3,704.51",FITZWILLIAM HEALTHCARE LTD,CARE ESTABLISHMENT,OP - City & South Blocks,City and South - Long term blocks,Residential Care
Cambridgeshire County Council,13-May-22,51301782493,"-3,704.51",FITZWILLIAM HEALTHCARE LTD,CARE ESTABLISHMENT,OP - City & South Blocks,City and South - Long term blocks,Residential Care
Cambridgeshire County Council,13-May-22,51301782498,"-3,575.00",THE GABLES SPECIALIST NURSING HOME,CARE ESTABLISHMENT,OP - Fenland Blocks,Fenland - Long term blocks,Nursing Care
Cambridgeshire County Council,13-May-22,51301782498,"-3,575.00",THE GABLES SPECIALIST NURSING HOME,CARE ESTABLISHMENT,OP - Fenland Blocks,Fenland - Long term blocks,Nursing Care
Cambridgeshire County Council,13-May-22,51301782498,"-3,575.00",THE GABLES SPECIALIST NURSING HOME,CARE ESTABLISHMENT,OP - Fenland Blocks,Fenland - Long term blocks,Nursing Care
Cambridgeshire County Council,13-May-22,51301782498,"-3,575.00",THE GABLES SPECIALIST NURSING HOME,CARE ESTABLISHMENT,OP - Fenland Blocks,Fenland - Long term blocks,Nursing Care
Cambridgeshire County Council,13-May-22,51301782498,"-3,575.00",THE GABLES SPECIALIST NURSING HOME,CARE ESTABLISHMENT,OP - Fenland Blocks,Fenland - Long term blocks,Nursing Care
Cambridgeshire County Council,13-May-22,51301782498,"-3,575.00",THE GABLES SPECIALIST NURSING HOME,CARE ESTABLISHMENT,OP - Fenland Blocks,Fenland - Long term blocks,Nursing Care
Cambridgeshire County Council,13-May-22,51301768029,"-3,569.99",MEARS CARE LTD,CARE ESTABLISHMENT,OP - Hunts Locality - Cost of Care,Hunts OP Team - Care,Supported Living
Cambridgeshire County Council,13-May-22,51301768029,"-3,569.99",MEARS CARE LTD,CARE ESTABLISHMENT,OP - Hunts Locality - Cost of Care,Hunts OP Team - Care,Supported Living
Cambridgeshire County Council,13-May-22,51301768029,"-3,569.99",MEARS CARE LTD,CARE ESTABLISHMENT,OP - Hunts Locality - Cost of Care,Hunts OP Team - Care,Supported Living
Cambridgeshire County Council,13-May-22,51301768029,"-3,569.99",MEARS CARE LTD,CARE ESTABLISHMENT,OP - Hunts Locality - Cost of Care,Hunts OP Team - Care,Supported Living
Cambridgeshire County Council,13-May-22,51301768029,"-3,569.99",MEARS CARE LTD,CARE ESTABLISHMENT,OP - Hunts Locality - Cost of Care,Hunts OP Team - Care,Supported Living
Cambridgeshire County Council,13-May-22,51301768029,"-3,569.99",MEARS CARE LTD,CARE ESTABLISHMENT,OP - Hunts Locality - Cost of Care,Hunts OP Team - Care,Supported Living
Cambridgeshire County Council,13-May-22,51301768029,"-3,569.99",MEARS CARE LTD,CARE ESTABLISHMENT,OP - Hunts Locality - Cost of Care,Hunts OP Team - Care,Supported Living
Cambridgeshire County Council,13-May-22,51301768029,"-3,569.99",MEARS CARE LTD,CARE ESTABLISHMENT,OP - Hunts Locality - Cost of Care,Hunts OP Team - Care,Supported Living
Cambridgeshire County Council,13-May-22,51301768029,"-3,569.99",MEARS CARE LTD,CARE ESTABLISHMENT,OP - Hunts Locality - Cost of Care,Hunts OP Team - Care,Supported Living
Cambridgeshire County Council,13-May-22,51301768029,"-3,569.99",MEARS CARE LTD,CARE ESTABLISHMENT,OP - Hunts Locality - Cost of Care,Hunts OP Team - Care,Supported Living
Cambridgeshire County Council,13-May-22,51301768029,"-3,569.99",MEARS CARE LTD,CARE ESTABLISHMENT,OP - Hunts Locality - Cost of Care,Hunts OP Team - Care,Supported Living
Cambridgeshire County Council,13-May-22,51301768029,"-3,569.99",MEARS CARE LTD,CARE ESTABLISHMENT,OP - Hunts Locality - Cost of Care,Hunts OP Team - Care,Supported Living
Cambridgeshire County Council,13-May-22,51301768029,"-3,569.99",MEARS CARE LTD,CARE ESTABLISHMENT,OP - Hunts Locality - Cost of Care,Hunts OP Team - Care,Supported Living
Cambridgeshire County Council,13-May-22,51301768029,"-3,569.99",MEARS CARE LTD,CARE ESTABLISHMENT,OP - Hunts Locality - Cost of Care,Hunts OP Team - Care,Supported Living
Cambridgeshire County Council,13-May-22,51301768029,"-3,569.99",MEARS CARE LTD,CARE ESTABLISHMENT,OP - Hunts Locality - Cost of Care,Hunts OP Team - Care,Supported Living
Cambridgeshire County Council,13-May-22,51301768029,"-3,569.99",MEARS CARE LTD,CARE ESTABLISHMENT,OP - Hunts Locality - Cost of Care,Hunts OP Team - Care,Supported Living
Cambridgeshire County Council,13-May-22,51301768029,"-3,569.99",MEARS CARE LTD,CARE ESTABLISHMENT,OP - Hunts Locality - Cost of Care,Hunts OP Team - Care,Supported Living
Cambridgeshire County Council,13-May-22,51301768029,"-3,569.99",MEARS CARE LTD,CARE ESTABLISHMENT,OP - Hunts Locality - Cost of Care,Hunts OP Team - Care,Supported Living
Cambridgeshire County Council,13-May-22,51301768029,"-3,569.99",MEARS CARE LTD,CARE ESTABLISHMENT,OP - Hunts Locality - Cost of Care,Hunts OP Team - Care,Supported Living
Cambridgeshire County Council,13-May-22,51301768029,"-3,569.99",MEARS CARE LTD,CARE ESTABLISHMENT,OP - Hunts Locality - Cost of Care,Hunts OP Team - Care,Supported Living
Cambridgeshire County Council,13-May-22,51301768029,"-3,569.99",MEARS CARE LTD,CARE ESTABLISHMENT,OP - Hunts Locality - Cost of Care,Hunts OP Team - Care,Supported Living
Cambridgeshire County Council,13-May-22,51301768029,"-3,569.99",MEARS CARE LTD,CARE ESTABLISHMENT,OP - Hunts Locality - Cost of Care,Hunts OP Team - Care,Supported Living
Cambridgeshire County Council,13-May-22,51301768029,"-3,569.99",MEARS CARE LTD,CARE ESTABLISHMENT,OP - Hunts Locality - Cost of Care,Hunts OP Team - Care,Supported Living
Cambridgeshire County Council,13-May-22,51301768029,"-3,569.99",MEARS CARE LTD,CARE ESTABLISHMENT,OP - Hunts Locality - Cost of Care,Hunts OP Team - Care,Supported Living
Cambridgeshire County Council,13-May-22,51301768029,"-3,569.99",MEARS CARE LTD,CARE ESTABLISHMENT,OP - Hunts Locality - Cost of Care,Hunts OP Team - Care,Supported Living
Cambridgeshire County Council,13-May-22,51301768029,"-3,569.99",MEARS CARE LTD,CARE ESTABLISHMENT,OP - Hunts Locality - Cost of Care,Hunts OP Team - Care,Supported Living
Cambridgeshire County Council,13-May-22,51301768029,"-3,569.99",MEARS CARE LTD,CARE ESTABLISHMENT,OP - Hunts Locality - Cost of Care,Hunts OP Team - Care,Supported Living
Cambridgeshire County Council,13-May-22,51301768029,"-3,569.99",MEARS CARE LTD,CARE ESTABLISHMENT,OP - Hunts Locality - Cost of Care,Hunts OP Team - Care,Supported Living
Cambridgeshire County Council,13-May-22,51301768029,"-3,569.99",MEARS CARE LTD,CARE ESTABLISHMENT,OP - Hunts Locality - Cost of Care,Hunts OP Team - Care,Supported Living
Cambridgeshire County Council,13-May-22,51301768029,"-3,569.99",MEARS CARE LTD,CARE ESTABLISHMENT,OP - Hunts Locality - Cost of Care,Hunts OP Team - Care,Supported Living
Cambridgeshire County Council,13-May-22,51301768029,"-3,569.99",MEARS CARE LTD,CARE ESTABLISHMENT,OP - Hunts Locality - Cost of Care,Hunts OP Team - Care,Supported Living
Cambridgeshire County Council,13-May-22,51301768029,"-3,569.99",MEARS CARE LTD,CARE ESTABLISHMENT,OP - Hunts Locality - Cost of Care,Hunts OP Team - Care,Supported Living
Cambridgeshire County Council,13-May-22,51301768029,"-3,569.99",MEARS CARE LTD,CARE ESTABLISHMENT,OP - Hunts Locality - Cost of Care,Hunts OP Team - Care,Supported Living
Cambridgeshire County Council,13-May-22,51301768029,"-3,569.99",MEARS CARE LTD,CARE ESTABLISHMENT,OP - Hunts Locality - Cost of Care,Hunts OP Team - Care,Supported Living
Cambridgeshire County Council,13-May-22,51301768029,"-3,569.99",MEARS CARE LTD,CARE ESTABLISHMENT,OP - Hunts Locality - Cost of Care,Hunts OP Team - Care,Supported Living
Cambridgeshire County Council,13-May-22,51301768029,"-3,569.99",MEARS CARE LTD,CARE ESTABLISHMENT,OP - Hunts Locality - Cost of Care,Hunts OP Team - Care,Supported Living
Cambridgeshire County Council,13-May-22,51301768029,"-3,569.99",MEARS CARE LTD,CARE ESTABLISHMENT,OP - Hunts Locality - Cost of Care,Hunts OP Team - Care,Supported Living
Cambridgeshire County Council,13-May-22,51301768029,"-3,569.99",MEARS CARE LTD,CARE ESTABLISHMENT,OP - Hunts Locality - Cost of Care,Hunts OP Team - Care,Supported Living
Cambridgeshire County Council,13-May-22,51301768029,"-3,569.99",MEARS CARE LTD,CARE ESTABLISHMENT,OP - Hunts Locality - Cost of Care,Hunts OP Team - Care,Supported Living
Cambridgeshire County Council,13-May-22,51301768029,"-3,569.99",MEARS CARE LTD,CARE ESTABLISHMENT,OP - Hunts Locality - Cost of Care,Hunts OP Team - Care,Supported Living
Cambridgeshire County Council,13-May-22,51301768029,"-3,569.99",MEARS CARE LTD,CARE ESTABLISHMENT,OP - Hunts Locality - Cost of Care,Hunts OP Team - Care,Supported Living
Cambridgeshire County Council,13-May-22,51301768029,"-3,569.99",MEARS CARE LTD,CARE ESTABLISHMENT,OP - Hunts Locality - Cost of Care,Hunts OP Team - Care,Supported Living
Cambridgeshire County Council,13-May-22,51301768029,"-3,569.99",MEARS CARE LTD,CARE ESTABLISHMENT,OP - Hunts Locality - Cost of Care,Hunts OP Team - Care,Supported Living
Cambridgeshire County Council,13-May-22,51301768029,"-3,569.99",MEARS CARE LTD,CARE ESTABLISHMENT,OP - Hunts Locality - Cost of Care,Hunts OP Team - Care,Supported Living
Cambridgeshire County Council,13-May-22,51301768029,"-3,569.99",MEARS CARE LTD,CARE ESTABLISHMENT,OP - Hunts Locality - Cost of Care,Hunts OP Team - Care,Supported Living
Cambridgeshire County Council,13-May-22,51301768029,"-3,569.99",MEARS CARE LTD,CARE ESTABLISHMENT,OP - Hunts Locality - Cost of Care,Hunts OP Team - Care,Supported Living
Cambridgeshire County Council,13-May-22,51301768029,"-3,569.99",MEARS CARE LTD,CARE ESTABLISHMENT,OP - Hunts Locality - Cost of Care,Hunts OP Team - Care,Supported Living
Cambridgeshire County Council,13-May-22,51301768029,"-3,569.99",MEARS CARE LTD,CARE ESTABLISHMENT,OP - Hunts Locality - Cost of Care,Hunts OP Team - Care,Supported Living
Cambridgeshire County Council,13-May-22,51301768029,"-3,569.99",MEARS CARE LTD,CARE ESTABLISHMENT,OP - Hunts Locality - Cost of Care,Hunts OP Team - Care,Supported Living
Cambridgeshire County Council,13-May-22,51301768029,"-3,569.99",MEARS CARE LTD,CARE ESTABLISHMENT,OP - Hunts Locality - Cost of Care,Hunts OP Team - Care,Supported Living
Cambridgeshire County Council,13-May-22,51301768029,"-3,569.99",MEARS CARE LTD,CARE ESTABLISHMENT,OP - Hunts Locality - Cost of Care,Hunts OP Team - Care,Supported Living
Cambridgeshire County Council,13-May-22,51301768029,"-3,569.99",MEARS CARE LTD,CARE ESTABLISHMENT,OP - Hunts Locality - Cost of Care,Hunts OP Team - Care,Supported Living
Cambridgeshire County Council,13-May-22,51301768029,"-3,569.99",MEARS CARE LTD,CARE ESTABLISHMENT,OP - Hunts Locality - Cost of Care,Hunts OP Team - Care,Supported Living
Cambridgeshire County Council,13-May-22,51301768029,"-3,569.99",MEARS CARE LTD,CARE ESTABLISHMENT,OP - Hunts Locality - Cost of Care,Hunts OP Team - Care,Supported Living
Cambridgeshire County Council,13-May-22,51301768029,"-3,569.99",MEARS CARE LTD,CARE ESTABLISHMENT,OP - Hunts Locality - Cost of Care,Hunts OP Team - Care,Supported Living
Cambridgeshire County Council,09-May-22,51301775608,"-3,545.16",FEVACA,CARE ESTABLISHMENT,LAC Placements,Placements - supported accommodation,Agency Placements - In County
Cambridgeshire County Council,13-May-22,51301782493,"-3,509.54",FITZWILLIAM HEALTHCARE LTD,CARE ESTABLISHMENT,OP - City & South Blocks,City and South - Long term blocks,Residential Care
Cambridgeshire County Council,13-May-22,51301782493,"-3,509.54",FITZWILLIAM HEALTHCARE LTD,CARE ESTABLISHMENT,OP - City & South Blocks,City and South - Long term blocks,Residential Care
Cambridgeshire County Council,10-May-22,51301777163,"-3,428.57",BREAK,CHARITY,LAC Placements,Placements - residential homes,Agency Placements - In County
Cambridgeshire County Council,13-May-22,51301782510,"-3,412.05",ST GEORGE'S COURT,CARE ESTABLISHMENT,OP - City & South Blocks,City and South - Long term blocks,Nursing Care
Cambridgeshire County Council,13-May-22,51301782510,"-3,412.05",ST GEORGE'S COURT,CARE ESTABLISHMENT,OP - City & South Blocks,City and South - Long term blocks,Nursing Care
Cambridgeshire County Council,13-May-22,51301782510,"-3,412.05",ST GEORGE'S COURT,CARE ESTABLISHMENT,OP - City & South Blocks,City and South - Long term blocks,Nursing Care
Cambridgeshire County Council,13-May-22,51301782510,"-3,412.05",ST GEORGE'S COURT,CARE ESTABLISHMENT,OP - City & South Blocks,City and South - Long term blocks,Nursing Care
Cambridgeshire County Council,13-May-22,51301782510,"-3,412.05",ST GEORGE'S COURT,CARE ESTABLISHMENT,OP - City & South Blocks,City and South - Long term blocks,Nursing Care
Cambridgeshire County Council,13-May-22,51301782510,"-3,412.05",ST GEORGE'S COURT,CARE ESTABLISHMENT,OP - City & South Blocks,City and South - Long term blocks,Nursing Care
Cambridgeshire County Council,13-May-22,51301782510,"-3,412.05",ST GEORGE'S COURT,CARE ESTABLISHMENT,OP - City & South Blocks,City and South - Long term blocks,Nursing Care
Cambridgeshire County Council,13-May-22,51301782510,"-3,412.05",ST GEORGE'S COURT,CARE ESTABLISHMENT,OP - City & South Blocks,City and South - Long term blocks,Nursing Care
Cambridgeshire County Council,13-May-22,51301782510,"-3,412.05",ST GEORGE'S COURT,CARE ESTABLISHMENT,OP - City & South Blocks,City and South - Long term blocks,Nursing Care
Cambridgeshire County Council,13-May-22,51301782510,"-3,412.05",ST GEORGE'S COURT,CARE ESTABLISHMENT,OP - City & South Blocks,City and South - Long term blocks,Nursing Care
Cambridgeshire County Council,13-May-22,51301782510,"-3,412.05",ST GEORGE'S COURT,CARE ESTABLISHMENT,OP - City & South Blocks,City and South - Long term blocks,Nursing Care
Cambridgeshire County Council,13-May-22,51301782510,"-3,412.05",ST GEORGE'S COURT,CARE ESTABLISHMENT,OP - City & South Blocks,City and South - Long term blocks,Nursing Care
Cambridgeshire County Council,13-May-22,51301782510,"-3,412.05",ST GEORGE'S COURT,CARE ESTABLISHMENT,OP - City & South Blocks,City and South - Long term blocks,Nursing Care
Cambridgeshire County Council,13-May-22,51301782510,"-3,412.05",ST GEORGE'S COURT,CARE ESTABLISHMENT,OP - City & South Blocks,City and South - Long term blocks,Nursing Care
Cambridgeshire County Council,13-May-22,51301782510,"-3,412.05",ST GEORGE'S COURT,CARE ESTABLISHMENT,OP - City & South Blocks,City and South - Long term blocks,Nursing Care
Cambridgeshire County Council,13-May-22,51301782510,"-3,412.05",ST GEORGE'S COURT,CARE ESTABLISHMENT,OP - City & South Blocks,City and South - Long term blocks,Nursing Care
Cambridgeshire County Council,13-May-22,51301782510,"-3,412.05",ST GEORGE'S COURT,CARE ESTABLISHMENT,OP - City & South Blocks,City and South - Long term blocks,Nursing Care
Cambridgeshire County Council,13-May-22,51301782510,"-3,412.05",ST GEORGE'S COURT,CARE ESTABLISHMENT,OP - City & South Blocks,City and South - Long term blocks,Nursing Care
Cambridgeshire County Council,03-May-22,51301773488,"-2,962.96",THE MANOR CHESHIRE HOME,CARE ESTABLISHMENT,LD - South Locality - Cost of Care,LD - South Cambs - Care,Residential Care
Cambridgeshire County Council,03-May-22,51301773488,"-2,962.96",THE MANOR CHESHIRE HOME,CARE ESTABLISHMENT,LD - South Locality - Cost of Care,LD - South Cambs - Care,Residential Care
Cambridgeshire County Council,03-May-22,51301773488,"-2,962.96",THE MANOR CHESHIRE HOME,CARE ESTABLISHMENT,LD - South Locality - Cost of Care,LD - South Cambs - Care,Residential Care
Cambridgeshire County Council,03-May-22,51301773488,"-2,962.96",THE MANOR CHESHIRE HOME,CARE ESTABLISHMENT,LD - South Locality - Cost of Care,LD - South Cambs - Care,Residential Care
Cambridgeshire County Council,13-May-22,51301782498,"-2,860.00",THE GABLES SPECIALIST NURSING HOME,CARE ESTABLISHMENT,OP - Fenland Blocks,Fenland - Long term blocks,Nursing Care
Cambridgeshire County Council,13-May-22,51301782498,"-2,860.00",THE GABLES SPECIALIST NURSING HOME,CARE ESTABLISHMENT,OP - Fenland Blocks,Fenland - Long term blocks,Nursing Care
Cambridgeshire County Council,13-May-22,51301782498,"-2,860.00",THE GABLES SPECIALIST NURSING HOME,CARE ESTABLISHMENT,OP - Fenland Blocks,Fenland - Long term blocks,Nursing Care
Cambridgeshire County Council,13-May-22,51301782498,"-2,860.00",THE GABLES SPECIALIST NURSING HOME,CARE ESTABLISHMENT,OP - Fenland Blocks,Fenland - Long term blocks,Nursing Care
Cambridgeshire County Council,13-May-22,51301782498,"-2,860.00",THE GABLES SPECIALIST NURSING HOME,CARE ESTABLISHMENT,OP - Fenland Blocks,Fenland - Long term blocks,Nursing Care
Cambridgeshire County Council,13-May-22,51301782498,"-2,860.00",THE GABLES SPECIALIST NURSING HOME,CARE ESTABLISHMENT,OP - Fenland Blocks,Fenland - Long term blocks,Nursing Care
Cambridgeshire County Council,13-May-22,51301782498,"-2,860.00",THE GABLES SPECIALIST NURSING HOME,CARE ESTABLISHMENT,OP - Fenland Blocks,Fenland - Long term blocks,Nursing Care
Cambridgeshire County Council,13-May-22,51301782498,"-2,860.00",THE GABLES SPECIALIST NURSING HOME,CARE ESTABLISHMENT,OP - Fenland Blocks,Fenland - Long term blocks,Nursing Care
Cambridgeshire County Council,11-May-22,51301780102,"-2,743.44",Redacted Personal Data,INDIVIDUAL,LD - Young Adults Team,LD - Young Adults - Care,Direct Payments
Cambridgeshire County Council,13-May-22,51301772839,"-2,716.63",Richardson Mews,COMPANY,Physical Disablity - Cost of Care,Countywide PD Service - Care,Nursing Care
Cambridgeshire County Council,13-May-22,51301772839,"-2,716.63",Richardson Mews,COMPANY,Physical Disablity - Cost of Care,Countywide PD Service - Care,Nursing Care
Cambridgeshire County Council,13-May-22,51301772839,"-2,716.63",Richardson Mews,COMPANY,Physical Disablity - Cost of Care,Countywide PD Service - Care,Nursing Care
Cambridgeshire County Council,16-May-22,51301785325,"-2,627.80",PICK EVERARD,TRADE SUPPLIER,"School Condition, Maintenance & Suitability","School Condition, Maintenance & Suitability",Construction - External Professional Fees
Cambridgeshire County Council,13-May-22,51301784238,"-2,566.08",VOYAGE,CARE ESTABLISHMENT,LD - East Locality - Cost of Care,LD - East Cambs - Care,Residential Care
Cambridgeshire County Council,13-May-22,51301784238,"-2,566.08",VOYAGE,CARE ESTABLISHMENT,LD - East Locality - Cost of Care,LD - East Cambs - Care,Residential Care
Cambridgeshire County Council,13-May-22,51301784238,"-2,566.08",VOYAGE,CARE ESTABLISHMENT,LD - East Locality - Cost of Care,LD - East Cambs - Care,Residential Care
Cambridgeshire County Council,13-May-22,51301784238,"-2,566.08",VOYAGE,CARE ESTABLISHMENT,LD - East Locality - Cost of Care,LD - East Cambs - Care,Residential Care
Cambridgeshire County Council,13-May-22,51301782498,"-2,553.57",THE GABLES SPECIALIST NURSING HOME,CARE ESTABLISHMENT,OP - Fenland Blocks,Fenland - Long term blocks,Nursing Care
Cambridgeshire County Council,03-May-22,51301773488,"-2,539.68",THE MANOR CHESHIRE HOME,CARE ESTABLISHMENT,LD - South Locality - Cost of Care,LD - South Cambs - Care,Residential Care
Cambridgeshire County Council,13-May-22,51301714110,"-2,516.44",MEARS CARE LTD,CARE ESTABLISHMENT,OP - Fenland Locality - Cost of Care,Older People - Fenland - Care,Supported Living
Cambridgeshire County Council,27-May-22,51301790920,"-2,254.21",ALDERTON HOUSE,CARE ESTABLISHMENT,LD - Young Adults Team,LD - Young Adults - Care,Residential Care
Cambridgeshire County Council,27-May-22,51301790920,"-2,254.21",ALDERTON HOUSE,CARE ESTABLISHMENT,LD - Young Adults Team,LD - Young Adults - Care,Residential Care
Cambridgeshire County Council,27-May-22,51301790920,"-2,254.21",ALDERTON HOUSE,CARE ESTABLISHMENT,LD - Young Adults Team,LD - Young Adults - Care,Residential Care
Cambridgeshire County Council,27-May-22,51301790920,"-2,254.21",ALDERTON HOUSE,CARE ESTABLISHMENT,LD - Young Adults Team,LD - Young Adults - Care,Residential Care
Cambridgeshire County Council,27-May-22,51301790920,"-2,254.21",ALDERTON HOUSE,CARE ESTABLISHMENT,LD - Young Adults Team,LD - Young Adults - Care,Residential Care
Cambridgeshire County Council,27-May-22,51301790920,"-2,254.21",ALDERTON HOUSE,CARE ESTABLISHMENT,LD - Young Adults Team,LD - Young Adults - Care,Residential Care
Cambridgeshire County Council,27-May-22,51301790920,"-2,254.21",ALDERTON HOUSE,CARE ESTABLISHMENT,LD - Young Adults Team,LD - Young Adults - Care,Residential Care
Cambridgeshire County Council,27-May-22,51301790920,"-2,254.21",ALDERTON HOUSE,CARE ESTABLISHMENT,LD - Young Adults Team,LD - Young Adults - Care,Residential Care
Cambridgeshire County Council,27-May-22,51301790920,"-2,254.21",ALDERTON HOUSE,CARE ESTABLISHMENT,LD - Young Adults Team,LD - Young Adults - Care,Residential Care
Cambridgeshire County Council,27-May-22,51301790920,"-2,254.21",ALDERTON HOUSE,CARE ESTABLISHMENT,LD - Young Adults Team,LD - Young Adults - Care,Residential Care
Cambridgeshire County Council,27-May-22,51301790920,"-2,254.21",ALDERTON HOUSE,CARE ESTABLISHMENT,LD - Young Adults Team,LD - Young Adults - Care,Residential Care
Cambridgeshire County Council,27-May-22,51301790920,"-2,254.21",ALDERTON HOUSE,CARE ESTABLISHMENT,LD - Young Adults Team,LD - Young Adults - Care,Residential Care
Cambridgeshire County Council,27-May-22,51301790920,"-2,254.21",ALDERTON HOUSE,CARE ESTABLISHMENT,LD - Young Adults Team,LD - Young Adults - Care,Residential Care
Cambridgeshire County Council,27-May-22,51301790920,"-2,254.21",ALDERTON HOUSE,CARE ESTABLISHMENT,LD - Young Adults Team,LD - Young Adults - Care,Residential Care
Cambridgeshire County Council,27-May-22,51301790920,"-2,254.21",ALDERTON HOUSE,CARE ESTABLISHMENT,LD - Young Adults Team,LD - Young Adults - Care,Residential Care
Cambridgeshire County Council,27-May-22,51301790920,"-2,254.21",ALDERTON HOUSE,CARE ESTABLISHMENT,LD - Young Adults Team,LD - Young Adults - Care,Residential Care
Cambridgeshire County Council,27-May-22,51301790920,"-2,254.21",ALDERTON HOUSE,CARE ESTABLISHMENT,LD - Young Adults Team,LD - Young Adults - Care,Residential Care
Cambridgeshire County Council,27-May-22,51301790920,"-2,254.21",ALDERTON HOUSE,CARE ESTABLISHMENT,LD - Young Adults Team,LD - Young Adults - Care,Residential Care
Cambridgeshire County Council,27-May-22,51301790920,"-2,254.21",ALDERTON HOUSE,CARE ESTABLISHMENT,LD - Young Adults Team,LD - Young Adults - Care,Residential Care
Cambridgeshire County Council,27-May-22,51301790920,"-2,254.21",ALDERTON HOUSE,CARE ESTABLISHMENT,LD - Young Adults Team,LD - Young Adults - Care,Residential Care
Cambridgeshire County Council,27-May-22,51301790920,"-2,254.21",ALDERTON HOUSE,CARE ESTABLISHMENT,LD - Young Adults Team,LD - Young Adults - Care,Residential Care
Cambridgeshire County Council,27-May-22,51301790920,"-2,254.21",ALDERTON HOUSE,CARE ESTABLISHMENT,LD - Young Adults Team,LD - Young Adults - Care,Residential Care
Cambridgeshire County Council,27-May-22,51301790920,"-2,254.21",ALDERTON HOUSE,CARE ESTABLISHMENT,LD - Young Adults Team,LD - Young Adults - Care,Residential Care
Cambridgeshire County Council,27-May-22,51301790920,"-2,254.21",ALDERTON HOUSE,CARE ESTABLISHMENT,LD - Young Adults Team,LD - Young Adults - Care,Residential Care
Cambridgeshire County Council,27-May-22,51301790920,"-2,254.21",ALDERTON HOUSE,CARE ESTABLISHMENT,LD - Young Adults Team,LD - Young Adults - Care,Residential Care
Cambridgeshire County Council,27-May-22,51301790920,"-2,254.21",ALDERTON HOUSE,CARE ESTABLISHMENT,LD - Young Adults Team,LD - Young Adults - Care,Residential Care
Cambridgeshire County Council,27-May-22,51301790920,"-2,254.21",ALDERTON HOUSE,CARE ESTABLISHMENT,LD - Young Adults Team,LD - Young Adults - Care,Residential Care
Cambridgeshire County Council,27-May-22,51301790920,"-2,254.21",ALDERTON HOUSE,CARE ESTABLISHMENT,LD - Young Adults Team,LD - Young Adults - Care,Residential Care
Cambridgeshire County Council,27-May-22,51301790920,"-2,254.21",ALDERTON HOUSE,CARE ESTABLISHMENT,LD - Young Adults Team,LD - Young Adults - Care,Residential Care
Cambridgeshire County Council,27-May-22,51301790920,"-2,254.21",ALDERTON HOUSE,CARE ESTABLISHMENT,LD - Young Adults Team,LD - Young Adults - Care,Residential Care
Cambridgeshire County Council,27-May-22,51301790920,"-2,254.21",ALDERTON HOUSE,CARE ESTABLISHMENT,LD - Young Adults Team,LD - Young Adults - Care,Residential Care
Cambridgeshire County Council,27-May-22,51301790920,"-2,254.21",ALDERTON HOUSE,CARE ESTABLISHMENT,LD - Young Adults Team,LD - Young Adults - Care,Residential Care
Cambridgeshire County Council,27-May-22,51301790920,"-2,254.21",ALDERTON HOUSE,CARE ESTABLISHMENT,LD - Young Adults Team,LD - Young Adults - Care,Residential Care
Cambridgeshire County Council,27-May-22,51301790920,"-2,254.21",ALDERTON HOUSE,CARE ESTABLISHMENT,LD - Young Adults Team,LD - Young Adults - Care,Residential Care
Cambridgeshire County Council,27-May-22,51301790920,"-2,254.21",ALDERTON HOUSE,CARE ESTABLISHMENT,LD - Young Adults Team,LD - Young Adults - Care,Residential Care
Cambridgeshire County Council,27-May-22,51301790920,"-2,254.21",ALDERTON HOUSE,CARE ESTABLISHMENT,LD - Young Adults Team,LD - Young Adults - Care,Residential Care
Cambridgeshire County Council,27-May-22,51301790920,"-2,254.21",ALDERTON HOUSE,CARE ESTABLISHMENT,LD - Young Adults Team,LD - Young Adults - Care,Residential Care
Cambridgeshire County Council,27-May-22,51301790920,"-2,254.21",ALDERTON HOUSE,CARE ESTABLISHMENT,LD - Young Adults Team,LD - Young Adults - Care,Residential Care
Cambridgeshire County Council,27-May-22,51301790920,"-2,254.21",ALDERTON HOUSE,CARE ESTABLISHMENT,LD - Young Adults Team,LD - Young Adults - Care,Residential Care
Cambridgeshire County Council,27-May-22,51301790920,"-2,254.21",ALDERTON HOUSE,CARE ESTABLISHMENT,LD - Young Adults Team,LD - Young Adults - Care,Residential Care
Cambridgeshire County Council,27-May-22,51301790920,"-2,254.21",ALDERTON HOUSE,CARE ESTABLISHMENT,LD - Young Adults Team,LD - Young Adults - Care,Residential Care
Cambridgeshire County Council,27-May-22,51301790920,"-2,254.21",ALDERTON HOUSE,CARE ESTABLISHMENT,LD - Young Adults Team,LD - Young Adults - Care,Residential Care
Cambridgeshire County Council,27-May-22,51301790920,"-2,254.21",ALDERTON HOUSE,CARE ESTABLISHMENT,LD - Young Adults Team,LD - Young Adults - Care,Residential Care
Cambridgeshire County Council,27-May-22,51301790920,"-2,254.21",ALDERTON HOUSE,CARE ESTABLISHMENT,LD - Young Adults Team,LD - Young Adults - Care,Residential Care
Cambridgeshire County Council,27-May-22,51301790920,"-2,254.21",ALDERTON HOUSE,CARE ESTABLISHMENT,LD - Young Adults Team,LD - Young Adults - Care,Residential Care
Cambridgeshire County Council,27-May-22,51301790920,"-2,254.21",ALDERTON HOUSE,CARE ESTABLISHMENT,LD - Young Adults Team,LD - Young Adults - Care,Residential Care
Cambridgeshire County Council,27-May-22,51301790920,"-2,254.21",ALDERTON HOUSE,CARE ESTABLISHMENT,LD - Young Adults Team,LD - Young Adults - Care,Residential Care
Cambridgeshire County Council,27-May-22,51301790920,"-2,254.21",ALDERTON HOUSE,CARE ESTABLISHMENT,LD - Young Adults Team,LD - Young Adults - Care,Residential Care
Cambridgeshire County Council,27-May-22,51301790920,"-2,254.21",ALDERTON HOUSE,CARE ESTABLISHMENT,LD - Young Adults Team,LD - Young Adults - Care,Residential Care
Cambridgeshire County Council,27-May-22,51301790920,"-2,254.21",ALDERTON HOUSE,CARE ESTABLISHMENT,LD - Young Adults Team,LD - Young Adults - Care,Residential Care
Cambridgeshire County Council,27-May-22,51301790920,"-2,254.21",ALDERTON HOUSE,CARE ESTABLISHMENT,LD - Young Adults Team,LD - Young Adults - Care,Residential Care
Cambridgeshire County Council,27-May-22,51301790920,"-2,254.21",ALDERTON HOUSE,CARE ESTABLISHMENT,LD - Young Adults Team,LD - Young Adults - Care,Residential Care
Cambridgeshire County Council,27-May-22,51301790920,"-2,254.21",ALDERTON HOUSE,CARE ESTABLISHMENT,LD - Young Adults Team,LD - Young Adults - Care,Residential Care
Cambridgeshire County Council,27-May-22,51301790920,"-2,254.21",ALDERTON HOUSE,CARE ESTABLISHMENT,LD - Young Adults Team,LD - Young Adults - Care,Residential Care
Cambridgeshire County Council,27-May-22,51301790920,"-2,254.21",ALDERTON HOUSE,CARE ESTABLISHMENT,LD - Young Adults Team,LD - Young Adults - Care,Residential Care
Cambridgeshire County Council,27-May-22,51301790920,"-2,254.21",ALDERTON HOUSE,CARE ESTABLISHMENT,LD - Young Adults Team,LD - Young Adults - Care,Residential Care
Cambridgeshire County Council,27-May-22,51301790920,"-2,254.21",ALDERTON HOUSE,CARE ESTABLISHMENT,LD - Young Adults Team,LD - Young Adults - Care,Residential Care
Cambridgeshire County Council,27-May-22,51301790920,"-2,254.21",ALDERTON HOUSE,CARE ESTABLISHMENT,LD - Young Adults Team,LD - Young Adults - Care,Residential Care
Cambridgeshire County Council,27-May-22,51301790920,"-2,254.21",ALDERTON HOUSE,CARE ESTABLISHMENT,LD - Young Adults Team,LD - Young Adults - Care,Residential Care
Cambridgeshire County Council,27-May-22,51301790920,"-2,254.21",ALDERTON HOUSE,CARE ESTABLISHMENT,LD - Young Adults Team,LD - Young Adults - Care,Residential Care
Cambridgeshire County Council,27-May-22,51301790920,"-2,254.21",ALDERTON HOUSE,CARE ESTABLISHMENT,LD - Young Adults Team,LD - Young Adults - Care,Residential Care
Cambridgeshire County Council,27-May-22,51301790920,"-2,254.21",ALDERTON HOUSE,CARE ESTABLISHMENT,LD - Young Adults Team,LD - Young Adults - Care,Residential Care
Cambridgeshire County Council,27-May-22,51301790920,"-2,254.21",ALDERTON HOUSE,CARE ESTABLISHMENT,LD - Young Adults Team,LD - Young Adults - Care,Residential Care
Cambridgeshire County Council,20-May-22,51301777211,"-2,223.04",CCS MEDIA LIMITED,TRADE SUPPLIER,ICT Service,ICT Service Business Support,Materials for resale
Cambridgeshire County Council,13-May-22,51301781824,"-2,209.06",CAERUS CARE LTD,CARE ESTABLISHMENT,LD - Young Adults Team,LD - Young Adults - Care,Supported Living
Cambridgeshire County Council,13-May-22,51301781824,"-2,209.06",CAERUS CARE LTD,CARE ESTABLISHMENT,LD - Young Adults Team,LD - Young Adults - Care,Supported Living
Cambridgeshire County Council,13-May-22,51301781824,"-2,209.06",CAERUS CARE LTD,CARE ESTABLISHMENT,LD - Young Adults Team,LD - Young Adults - Care,Supported Living
Cambridgeshire County Council,13-May-22,51301781824,"-2,209.06",CAERUS CARE LTD,CARE ESTABLISHMENT,LD - Young Adults Team,LD - Young Adults - Care,Supported Living
Cambridgeshire County Council,13-May-22,51301781824,"-2,209.06",CAERUS CARE LTD,CARE ESTABLISHMENT,LD - Young Adults Team,LD - Young Adults - Care,Supported Living
Cambridgeshire County Council,13-May-22,51301781824,"-2,209.06",CAERUS CARE LTD,CARE ESTABLISHMENT,LD - Young Adults Team,LD - Young Adults - Care,Supported Living
Cambridgeshire County Council,13-May-22,51301781824,"-2,209.06",CAERUS CARE LTD,CARE ESTABLISHMENT,LD - Young Adults Team,LD - Young Adults - Care,Supported Living
Cambridgeshire County Council,13-May-22,51301784238,"-2,199.50",VOYAGE,CARE ESTABLISHMENT,LD - East Locality - Cost of Care,LD - East Cambs - Care,Residential Care
Cambridgeshire County Council,13-May-22,51301782496,"-2,193.91",HUNTERS HEALTHCARE (HUNTERS DOWN),CARE ESTABLISHMENT,OP - Hunts Blocks,Hunts - Long term blocks,Nursing Care
Cambridgeshire County Council,25-May-22,51301789828,"-2,160.00",FOCUS CONSULTANTS 2010 LLP,TRADE SUPPLIER,"School Condition, Maintenance & Suitability","School Condition, Maintenance & Suitability",Construction - External Professional Fees
Cambridgeshire County Council,13-May-22,51301781454,"-2,062.93",CARETECH COMMUNITY SERVICES,CARE ESTABLISHMENT,LD - Hunts Locality - Cost of Care,LD - Huntingdonshire - Care,Residential Care
Cambridgeshire County Council,13-May-22,51301781454,"-2,062.93",CARETECH COMMUNITY SERVICES,CARE ESTABLISHMENT,LD - Hunts Locality - Cost of Care,LD - Huntingdonshire - Care,Residential Care
Cambridgeshire County Council,09-May-22,51301775610,"-2,044.29",FEVACA,CARE ESTABLISHMENT,LAC Placements,Placements - supported accommodation,Agency Placements - In County
Cambridgeshire County Council,13-May-22,51301768029,"-2,039.99",MEARS CARE LTD,CARE ESTABLISHMENT,OP - Hunts Locality - Cost of Care,Hunts OP Team - Care,Supported Living
Cambridgeshire County Council,27-May-22,51301790835,"-1,867.47",VOYAGE (LICHFIELD),CARE ESTABLISHMENT,LD - Fenland Locality - Cost of Care,LD - Fenland  - Care,Residential Care - Property Voids
Cambridgeshire County Council,27-May-22,51301790836,"-1,867.47",VOYAGE (LICHFIELD),CARE ESTABLISHMENT,LD - Fenland Locality - Cost of Care,LD - Fenland  - Care,Residential Care - Property Voids
Cambridgeshire County Council,27-May-22,51301790837,"-1,867.47",VOYAGE (LICHFIELD),CARE ESTABLISHMENT,LD - Fenland Locality - Cost of Care,LD - Fenland  - Care,Residential Care - Property Voids
Cambridgeshire County Council,27-May-22,51301790838,"-1,867.47",VOYAGE (LICHFIELD),CARE ESTABLISHMENT,LD - Fenland Locality - Cost of Care,LD - Fenland  - Care,Residential Care - Property Voids
Cambridgeshire County Council,09-May-22,51301775668,"-1,768.50",Keys PCE Ltd,CARE ESTABLISHMENT,LAC Placements,Placements - residential homes,Agency Placements - Out of  County
Cambridgeshire County Council,13-May-22,51301781792,"-1,756.62",CAERUS CARE LTD,CARE ESTABLISHMENT,LD - Young Adults Team,LD - Young Adults - Care,Supported Living
Cambridgeshire County Council,13-May-22,51301781792,"-1,756.62",CAERUS CARE LTD,CARE ESTABLISHMENT,LD - Young Adults Team,LD - Young Adults - Care,Supported Living
Cambridgeshire County Council,13-May-22,51301781792,"-1,756.62",CAERUS CARE LTD,CARE ESTABLISHMENT,LD - Young Adults Team,LD - Young Adults - Care,Supported Living
Cambridgeshire County Council,13-May-22,51301781792,"-1,756.62",CAERUS CARE LTD,CARE ESTABLISHMENT,LD - Young Adults Team,LD - Young Adults - Care,Supported Living
Cambridgeshire County Council,13-May-22,51301781792,"-1,756.62",CAERUS CARE LTD,CARE ESTABLISHMENT,LD - Young Adults Team,LD - Young Adults - Care,Supported Living
Cambridgeshire County Council,13-May-22,51301781792,"-1,756.62",CAERUS CARE LTD,CARE ESTABLISHMENT,LD - Young Adults Team,LD - Young Adults - Care,Supported Living
Cambridgeshire County Council,13-May-22,51301781792,"-1,756.62",CAERUS CARE LTD,CARE ESTABLISHMENT,LD - Young Adults Team,LD - Young Adults - Care,Supported Living
Cambridgeshire County Council,13-May-22,51301781792,"-1,756.62",CAERUS CARE LTD,CARE ESTABLISHMENT,LD - Young Adults Team,LD - Young Adults - Care,Supported Living
Cambridgeshire County Council,13-May-22,51301781792,"-1,756.62",CAERUS CARE LTD,CARE ESTABLISHMENT,LD - Young Adults Team,LD - Young Adults - Care,Supported Living
Cambridgeshire County Council,13-May-22,51301781792,"-1,756.62",CAERUS CARE LTD,CARE ESTABLISHMENT,LD - Young Adults Team,LD - Young Adults - Care,Supported Living
Cambridgeshire County Council,13-May-22,51301782465,"-1,755.00",SWAN HOUSE NURSING & RESIDENTIAL HOME,CARE ESTABLISHMENT,OP - Fenland Blocks,Fenland - Long term blocks,Nursing Care
Cambridgeshire County Council,16-May-22,51301785086,"-1,687.85",VOYAGE (LICHFIELD),CARE ESTABLISHMENT,LD - East Locality - Cost of Care,LD - East Cambs - Care,Residential Care - Property Voids
Cambridgeshire County Council,27-May-22,51301790813,"-1,687.85",VOYAGE (LICHFIELD),CARE ESTABLISHMENT,LD - East Locality - Cost of Care,LD - East Cambs - Care,Residential Care - Property Voids
Cambridgeshire County Council,27-May-22,51301790818,"-1,635.88",PAPWORTH TRUST,TRUST (OTHER),LD - Fenland Locality - Cost of Care,LD - Fenland  - Care,Residential Care - Property Voids
Cambridgeshire County Council,11-May-22,51301777855,"-1,635.30",AVAILL HEALTHCARE,CARE ESTABLISHMENT,OPMH - City & South,Older People Mental Health City & South,Homecare
Cambridgeshire County Council,11-May-22,51301777855,"-1,635.30",AVAILL HEALTHCARE,CARE ESTABLISHMENT,OPMH - City & South,Older People Mental Health City & South,Homecare
Cambridgeshire County Council,11-May-22,51301777855,"-1,635.30",AVAILL HEALTHCARE,CARE ESTABLISHMENT,OPMH - City & South,Older People Mental Health City & South,Homecare
Cambridgeshire County Council,11-May-22,51301778068,"-1,616.13",Careuk247 Home Care Ltd,COMPANY,OPMH - City & South,Older People Mental Health City & South,Domiciliary Care
Cambridgeshire County Council,20-May-22,51301787846,"-1,616.13",Careuk247 Home Care Ltd,COMPANY,OPMH - City & South,Older People Mental Health City & South,Domiciliary Care
Cambridgeshire County Council,20-May-22,51301787846,"-1,616.13",Careuk247 Home Care Ltd,COMPANY,OPMH - City & South,Older People Mental Health City & South,Domiciliary Care
Cambridgeshire County Council,20-May-22,51301787846,"-1,616.13",Careuk247 Home Care Ltd,COMPANY,OPMH - City & South,Older People Mental Health City & South,Domiciliary Care
Cambridgeshire County Council,20-May-22,51301787846,"-1,616.13",Careuk247 Home Care Ltd,COMPANY,OPMH - City & South,Older People Mental Health City & South,Domiciliary Care
Cambridgeshire County Council,20-May-22,51301787846,"-1,616.13",Careuk247 Home Care Ltd,COMPANY,OPMH - City & South,Older People Mental Health City & South,Domiciliary Care
Cambridgeshire County Council,13-May-22,51301782640,"-1,600.00",WOODLANDS CARE CENTRE,CARE ESTABLISHMENT,OP - City & South Locality - Cost of Care,Older People - City & South - Care,Nursing Care
Cambridgeshire County Council,13-May-22,51301782640,"-1,600.00",WOODLANDS CARE CENTRE,CARE ESTABLISHMENT,OP - City & South Locality - Cost of Care,Older People - City & South - Care,Nursing Care
Cambridgeshire County Council,13-May-22,51301782640,"-1,600.00",WOODLANDS CARE CENTRE,CARE ESTABLISHMENT,OP - City & South Locality - Cost of Care,Older People - City & South - Care,Nursing Care
Cambridgeshire County Council,13-May-22,51301782640,"-1,600.00",WOODLANDS CARE CENTRE,CARE ESTABLISHMENT,OP - City & South Locality - Cost of Care,Older People - City & South - Care,Nursing Care
Cambridgeshire County Council,13-May-22,51301782640,"-1,600.00",WOODLANDS CARE CENTRE,CARE ESTABLISHMENT,OP - City & South Locality - Cost of Care,Older People - City & South - Care,Nursing Care
Cambridgeshire County Council,13-May-22,51301782640,"-1,600.00",WOODLANDS CARE CENTRE,CARE ESTABLISHMENT,OP - City & South Locality - Cost of Care,Older People - City & South - Care,Nursing Care
Cambridgeshire County Council,13-May-22,51301782640,"-1,600.00",WOODLANDS CARE CENTRE,CARE ESTABLISHMENT,OP - City & South Locality - Cost of Care,Older People - City & South - Care,Nursing Care
Cambridgeshire County Council,13-May-22,51301784485,"-1,585.52",CONQUEST CARE HOMES PETERBOROUGH,CARE ESTABLISHMENT,Physical Disablity - Cost of Care,Countywide PD Service - Care,Residential Care
Cambridgeshire County Council,13-May-22,51301784485,"-1,585.52",CONQUEST CARE HOMES PETERBOROUGH,CARE ESTABLISHMENT,Physical Disablity - Cost of Care,Countywide PD Service - Care,Residential Care
Cambridgeshire County Council,13-May-22,51301784485,"-1,585.52",CONQUEST CARE HOMES PETERBOROUGH,CARE ESTABLISHMENT,Physical Disablity - Cost of Care,Countywide PD Service - Care,Residential Care
Cambridgeshire County Council,13-May-22,51301784485,"-1,585.52",CONQUEST CARE HOMES PETERBOROUGH,CARE ESTABLISHMENT,Physical Disablity - Cost of Care,Countywide PD Service - Care,Residential Care
Cambridgeshire County Council,13-May-22,51301784485,"-1,585.52",CONQUEST CARE HOMES PETERBOROUGH,CARE ESTABLISHMENT,Physical Disablity - Cost of Care,Countywide PD Service - Care,Residential Care
Cambridgeshire County Council,13-May-22,51301784485,"-1,585.52",CONQUEST CARE HOMES PETERBOROUGH,CARE ESTABLISHMENT,Physical Disablity - Cost of Care,Countywide PD Service - Care,Residential Care
Cambridgeshire County Council,13-May-22,51301784485,"-1,585.52",CONQUEST CARE HOMES PETERBOROUGH,CARE ESTABLISHMENT,Physical Disablity - Cost of Care,Countywide PD Service - Care,Residential Care
Cambridgeshire County Council,13-May-22,51301782461,"-1,581.79",BROOKFIELD CARE (Radis Commnity Care),CARE ESTABLISHMENT,Commissioning - Dom Cars,East Cambs - Dom Blocks,Domiciliary Care
Cambridgeshire County Council,13-May-22,51301782461,"-1,581.79",BROOKFIELD CARE (Radis Commnity Care),CARE ESTABLISHMENT,Commissioning - Dom Cars,East Cambs - Dom Blocks,Domiciliary Care
Cambridgeshire County Council,13-May-22,51301782461,"-1,581.79",BROOKFIELD CARE (Radis Commnity Care),CARE ESTABLISHMENT,Commissioning - Dom Cars,East Cambs - Dom Blocks,Domiciliary Care
Cambridgeshire County Council,13-May-22,51301782461,"-1,581.79",BROOKFIELD CARE (Radis Commnity Care),CARE ESTABLISHMENT,Commissioning - Dom Cars,East Cambs - Dom Blocks,Domiciliary Care
Cambridgeshire County Council,13-May-22,51301782461,"-1,581.79",BROOKFIELD CARE (Radis Commnity Care),CARE ESTABLISHMENT,Commissioning - Dom Cars,East Cambs - Dom Blocks,Domiciliary Care
Cambridgeshire County Council,13-May-22,51301782461,"-1,581.79",BROOKFIELD CARE (Radis Commnity Care),CARE ESTABLISHMENT,Commissioning - Dom Cars,East Cambs - Dom Blocks,Domiciliary Care
Cambridgeshire County Council,13-May-22,51301782461,"-1,581.79",BROOKFIELD CARE (Radis Commnity Care),CARE ESTABLISHMENT,Commissioning - Dom Cars,East Cambs - Dom Blocks,Domiciliary Care
Cambridgeshire County Council,20-May-22,51301786197,"-1,554.00",J&M Healthcare Ltd,CARE ESTABLISHMENT,AMH - Specialist & Primary,Mental Health - Specialist & Primary,Supported Living
Cambridgeshire County Council,20-May-22,51301786197,"-1,554.00",J&M Healthcare Ltd,CARE ESTABLISHMENT,AMH - Specialist & Primary,Mental Health - Specialist & Primary,Supported Living
Cambridgeshire County Council,20-May-22,51301786197,"-1,554.00",J&M Healthcare Ltd,CARE ESTABLISHMENT,AMH - Specialist & Primary,Mental Health - Specialist & Primary,Supported Living
Cambridgeshire County Council,20-May-22,51301786197,"-1,554.00",J&M Healthcare Ltd,CARE ESTABLISHMENT,AMH - Specialist & Primary,Mental Health - Specialist & Primary,Supported Living
Cambridgeshire County Council,20-May-22,51301786197,"-1,554.00",J&M Healthcare Ltd,CARE ESTABLISHMENT,AMH - Specialist & Primary,Mental Health - Specialist & Primary,Supported Living
Cambridgeshire County Council,20-May-22,51301786197,"-1,554.00",J&M Healthcare Ltd,CARE ESTABLISHMENT,AMH - Specialist & Primary,Mental Health - Specialist & Primary,Supported Living
Cambridgeshire County Council,20-May-22,51301786197,"-1,554.00",J&M Healthcare Ltd,CARE ESTABLISHMENT,AMH - Specialist & Primary,Mental Health - Specialist & Primary,Supported Living
Cambridgeshire County Council,20-May-22,51301786197,"-1,554.00",J&M Healthcare Ltd,CARE ESTABLISHMENT,AMH - Specialist & Primary,Mental Health - Specialist & Primary,Supported Living
Cambridgeshire County Council,20-May-22,51301786197,"-1,554.00",J&M Healthcare Ltd,CARE ESTABLISHMENT,AMH - Specialist & Primary,Mental Health - Specialist & Primary,Supported Living
Cambridgeshire County Council,20-May-22,51301786197,"-1,554.00",J&M Healthcare Ltd,CARE ESTABLISHMENT,AMH - Specialist & Primary,Mental Health - Specialist & Primary,Supported Living
Cambridgeshire County Council,20-May-22,51301786197,"-1,554.00",J&M Healthcare Ltd,CARE ESTABLISHMENT,AMH - Specialist & Primary,Mental Health - Specialist & Primary,Supported Living
Cambridgeshire County Council,20-May-22,51301786197,"-1,554.00",J&M Healthcare Ltd,CARE ESTABLISHMENT,AMH - Specialist & Primary,Mental Health - Specialist & Primary,Supported Living
Cambridgeshire County Council,20-May-22,51301786197,"-1,554.00",J&M Healthcare Ltd,CARE ESTABLISHMENT,AMH - Specialist & Primary,Mental Health - Specialist & Primary,Supported Living
Cambridgeshire County Council,13-May-22,51301782739,"-1,550.00",WOODLANDS CARE CENTRE,CARE ESTABLISHMENT,Physical Disablity - Cost of Care,Countywide PD Service - Care,Nursing Care
Cambridgeshire County Council,13-May-22,51301782739,"-1,550.00",WOODLANDS CARE CENTRE,CARE ESTABLISHMENT,Physical Disablity - Cost of Care,Countywide PD Service - Care,Nursing Care
Cambridgeshire County Council,13-May-22,51301782739,"-1,550.00",WOODLANDS CARE CENTRE,CARE ESTABLISHMENT,Physical Disablity - Cost of Care,Countywide PD Service - Care,Nursing Care
Cambridgeshire County Council,13-May-22,51301782739,"-1,550.00",WOODLANDS CARE CENTRE,CARE ESTABLISHMENT,Physical Disablity - Cost of Care,Countywide PD Service - Care,Nursing Care
Cambridgeshire County Council,13-May-22,51301782739,"-1,550.00",WOODLANDS CARE CENTRE,CARE ESTABLISHMENT,Physical Disablity - Cost of Care,Countywide PD Service - Care,Nursing Care
Cambridgeshire County Council,13-May-22,51301782739,"-1,550.00",WOODLANDS CARE CENTRE,CARE ESTABLISHMENT,Physical Disablity - Cost of Care,Countywide PD Service - Care,Nursing Care
Cambridgeshire County Council,13-May-22,51301782739,"-1,550.00",WOODLANDS CARE CENTRE,CARE ESTABLISHMENT,Physical Disablity - Cost of Care,Countywide PD Service - Care,Nursing Care
Cambridgeshire County Council,13-May-22,51301782739,"-1,550.00",WOODLANDS CARE CENTRE,CARE ESTABLISHMENT,Physical Disablity - Cost of Care,Countywide PD Service - Care,Nursing Care
Cambridgeshire County Council,13-May-22,51301782739,"-1,550.00",WOODLANDS CARE CENTRE,CARE ESTABLISHMENT,Physical Disablity - Cost of Care,Countywide PD Service - Care,Nursing Care
Cambridgeshire County Council,13-May-22,51301782739,"-1,550.00",WOODLANDS CARE CENTRE,CARE ESTABLISHMENT,Physical Disablity - Cost of Care,Countywide PD Service - Care,Nursing Care
Cambridgeshire County Council,13-May-22,51301782739,"-1,550.00",WOODLANDS CARE CENTRE,CARE ESTABLISHMENT,Physical Disablity - Cost of Care,Countywide PD Service - Care,Nursing Care
Cambridgeshire County Council,13-May-22,51301782739,"-1,550.00",WOODLANDS CARE CENTRE,CARE ESTABLISHMENT,Physical Disablity - Cost of Care,Countywide PD Service - Care,Nursing Care
Cambridgeshire County Council,13-May-22,51301782739,"-1,550.00",WOODLANDS CARE CENTRE,CARE ESTABLISHMENT,Physical Disablity - Cost of Care,Countywide PD Service - Care,Nursing Care
Cambridgeshire County Council,13-May-22,51301782739,"-1,550.00",WOODLANDS CARE CENTRE,CARE ESTABLISHMENT,Physical Disablity - Cost of Care,Countywide PD Service - Care,Nursing Care
Cambridgeshire County Council,13-May-22,51301782739,"-1,550.00",WOODLANDS CARE CENTRE,CARE ESTABLISHMENT,Physical Disablity - Cost of Care,Countywide PD Service - Care,Nursing Care
Cambridgeshire County Council,13-May-22,51301782739,"-1,550.00",WOODLANDS CARE CENTRE,CARE ESTABLISHMENT,Physical Disablity - Cost of Care,Countywide PD Service - Care,Nursing Care
Cambridgeshire County Council,13-May-22,51301782739,"-1,550.00",WOODLANDS CARE CENTRE,CARE ESTABLISHMENT,Physical Disablity - Cost of Care,Countywide PD Service - Care,Nursing Care
Cambridgeshire County Council,13-May-22,51301782739,"-1,550.00",WOODLANDS CARE CENTRE,CARE ESTABLISHMENT,Physical Disablity - Cost of Care,Countywide PD Service - Care,Nursing Care
Cambridgeshire County Council,13-May-22,51301782739,"-1,550.00",WOODLANDS CARE CENTRE,CARE ESTABLISHMENT,Physical Disablity - Cost of Care,Countywide PD Service - Care,Nursing Care
Cambridgeshire County Council,13-May-22,51301782739,"-1,550.00",WOODLANDS CARE CENTRE,CARE ESTABLISHMENT,Physical Disablity - Cost of Care,Countywide PD Service - Care,Nursing Care
Cambridgeshire County Council,13-May-22,51301782739,"-1,550.00",WOODLANDS CARE CENTRE,CARE ESTABLISHMENT,Physical Disablity - Cost of Care,Countywide PD Service - Care,Nursing Care
Cambridgeshire County Council,13-May-22,51301782739,"-1,550.00",WOODLANDS CARE CENTRE,CARE ESTABLISHMENT,Physical Disablity - Cost of Care,Countywide PD Service - Care,Nursing Care
Cambridgeshire County Council,13-May-22,51301782739,"-1,550.00",WOODLANDS CARE CENTRE,CARE ESTABLISHMENT,Physical Disablity - Cost of Care,Countywide PD Service - Care,Nursing Care
Cambridgeshire County Council,13-May-22,51301782739,"-1,550.00",WOODLANDS CARE CENTRE,CARE ESTABLISHMENT,Physical Disablity - Cost of Care,Countywide PD Service - Care,Nursing Care
Cambridgeshire County Council,13-May-22,51301782739,"-1,550.00",WOODLANDS CARE CENTRE,CARE ESTABLISHMENT,Physical Disablity - Cost of Care,Countywide PD Service - Care,Nursing Care
Cambridgeshire County Council,13-May-22,51301782739,"-1,550.00",WOODLANDS CARE CENTRE,CARE ESTABLISHMENT,Physical Disablity - Cost of Care,Countywide PD Service - Care,Nursing Care
Cambridgeshire County Council,13-May-22,51301782739,"-1,550.00",WOODLANDS CARE CENTRE,CARE ESTABLISHMENT,Physical Disablity - Cost of Care,Countywide PD Service - Care,Nursing Care
Cambridgeshire County Council,13-May-22,51301782739,"-1,550.00",WOODLANDS CARE CENTRE,CARE ESTABLISHMENT,Physical Disablity - Cost of Care,Countywide PD Service - Care,Nursing Care
Cambridgeshire County Council,13-May-22,51301782739,"-1,550.00",WOODLANDS CARE CENTRE,CARE ESTABLISHMENT,Physical Disablity - Cost of Care,Countywide PD Service - Care,Nursing Care
Cambridgeshire County Council,13-May-22,51301782739,"-1,550.00",WOODLANDS CARE CENTRE,CARE ESTABLISHMENT,Physical Disablity - Cost of Care,Countywide PD Service - Care,Nursing Care
Cambridgeshire County Council,13-May-22,51301782739,"-1,550.00",WOODLANDS CARE CENTRE,CARE ESTABLISHMENT,Physical Disablity - Cost of Care,Countywide PD Service - Care,Nursing Care
Cambridgeshire County Council,13-May-22,51301782739,"-1,550.00",WOODLANDS CARE CENTRE,CARE ESTABLISHMENT,Physical Disablity - Cost of Care,Countywide PD Service - Care,Nursing Care
Cambridgeshire County Council,13-May-22,51301782739,"-1,550.00",WOODLANDS CARE CENTRE,CARE ESTABLISHMENT,Physical Disablity - Cost of Care,Countywide PD Service - Care,Nursing Care
Cambridgeshire County Council,13-May-22,51301782739,"-1,550.00",WOODLANDS CARE CENTRE,CARE ESTABLISHMENT,Physical Disablity - Cost of Care,Countywide PD Service - Care,Nursing Care
Cambridgeshire County Council,13-May-22,51301782739,"-1,550.00",WOODLANDS CARE CENTRE,CARE ESTABLISHMENT,Physical Disablity - Cost of Care,Countywide PD Service - Care,Nursing Care
Cambridgeshire County Council,13-May-22,51301782739,"-1,550.00",WOODLANDS CARE CENTRE,CARE ESTABLISHMENT,Physical Disablity - Cost of Care,Countywide PD Service - Care,Nursing Care
Cambridgeshire County Council,13-May-22,51301782739,"-1,550.00",WOODLANDS CARE CENTRE,CARE ESTABLISHMENT,Physical Disablity - Cost of Care,Countywide PD Service - Care,Nursing Care
Cambridgeshire County Council,13-May-22,51301782739,"-1,550.00",WOODLANDS CARE CENTRE,CARE ESTABLISHMENT,Physical Disablity - Cost of Care,Countywide PD Service - Care,Nursing Care
Cambridgeshire County Council,13-May-22,51301782739,"-1,550.00",WOODLANDS CARE CENTRE,CARE ESTABLISHMENT,Physical Disablity - Cost of Care,Countywide PD Service - Care,Nursing Care
Cambridgeshire County Council,13-May-22,51301782739,"-1,550.00",WOODLANDS CARE CENTRE,CARE ESTABLISHMENT,Physical Disablity - Cost of Care,Countywide PD Service - Care,Nursing Care
Cambridgeshire County Council,13-May-22,51301782739,"-1,550.00",WOODLANDS CARE CENTRE,CARE ESTABLISHMENT,Physical Disablity - Cost of Care,Countywide PD Service - Care,Nursing Care
Cambridgeshire County Council,13-May-22,51301782739,"-1,550.00",WOODLANDS CARE CENTRE,CARE ESTABLISHMENT,Physical Disablity - Cost of Care,Countywide PD Service - Care,Nursing Care
Cambridgeshire County Council,13-May-22,51301782739,"-1,550.00",WOODLANDS CARE CENTRE,CARE ESTABLISHMENT,Physical Disablity - Cost of Care,Countywide PD Service - Care,Nursing Care
Cambridgeshire County Council,13-May-22,51301782739,"-1,550.00",WOODLANDS CARE CENTRE,CARE ESTABLISHMENT,Physical Disablity - Cost of Care,Countywide PD Service - Care,Nursing Care
Cambridgeshire County Council,13-May-22,51301782739,"-1,550.00",WOODLANDS CARE CENTRE,CARE ESTABLISHMENT,Physical Disablity - Cost of Care,Countywide PD Service - Care,Nursing Care
Cambridgeshire County Council,13-May-22,51301782739,"-1,550.00",WOODLANDS CARE CENTRE,CARE ESTABLISHMENT,Physical Disablity - Cost of Care,Countywide PD Service - Care,Nursing Care
Cambridgeshire County Council,13-May-22,51301782739,"-1,550.00",WOODLANDS CARE CENTRE,CARE ESTABLISHMENT,Physical Disablity - Cost of Care,Countywide PD Service - Care,Nursing Care
Cambridgeshire County Council,13-May-22,51301782739,"-1,550.00",WOODLANDS CARE CENTRE,CARE ESTABLISHMENT,Physical Disablity - Cost of Care,Countywide PD Service - Care,Nursing Care
Cambridgeshire County Council,13-May-22,51301782739,"-1,550.00",WOODLANDS CARE CENTRE,CARE ESTABLISHMENT,Physical Disablity - Cost of Care,Countywide PD Service - Care,Nursing Care
Cambridgeshire County Council,13-May-22,51301782739,"-1,550.00",WOODLANDS CARE CENTRE,CARE ESTABLISHMENT,Physical Disablity - Cost of Care,Countywide PD Service - Care,Nursing Care
Cambridgeshire County Council,13-May-22,51301782739,"-1,550.00",WOODLANDS CARE CENTRE,CARE ESTABLISHMENT,Physical Disablity - Cost of Care,Countywide PD Service - Care,Nursing Care
Cambridgeshire County Council,13-May-22,51301782739,"-1,550.00",WOODLANDS CARE CENTRE,CARE ESTABLISHMENT,Physical Disablity - Cost of Care,Countywide PD Service - Care,Nursing Care
Cambridgeshire County Council,13-May-22,51301782739,"-1,550.00",WOODLANDS CARE CENTRE,CARE ESTABLISHMENT,Physical Disablity - Cost of Care,Countywide PD Service - Care,Nursing Care
Cambridgeshire County Council,13-May-22,51301782739,"-1,550.00",WOODLANDS CARE CENTRE,CARE ESTABLISHMENT,Physical Disablity - Cost of Care,Countywide PD Service - Care,Nursing Care
Cambridgeshire County Council,13-May-22,51301782625,"-1,550.00",WOODLANDS CARE CENTRE,CARE ESTABLISHMENT,OP - City & South Locality - Cost of Care,Older People - City & South - Care,Nursing Care
Cambridgeshire County Council,13-May-22,51301782625,"-1,550.00",WOODLANDS CARE CENTRE,CARE ESTABLISHMENT,OP - City & South Locality - Cost of Care,Older People - City & South - Care,Nursing Care
Cambridgeshire County Council,13-May-22,51301782625,"-1,550.00",WOODLANDS CARE CENTRE,CARE ESTABLISHMENT,OP - City & South Locality - Cost of Care,Older People - City & South - Care,Nursing Care
Cambridgeshire County Council,13-May-22,51301782625,"-1,550.00",WOODLANDS CARE CENTRE,CARE ESTABLISHMENT,OP - City & South Locality - Cost of Care,Older People - City & South - Care,Nursing Care
Cambridgeshire County Council,13-May-22,51301782625,"-1,550.00",WOODLANDS CARE CENTRE,CARE ESTABLISHMENT,OP - City & South Locality - Cost of Care,Older People - City & South - Care,Nursing Care
Cambridgeshire County Council,13-May-22,51301782625,"-1,550.00",WOODLANDS CARE CENTRE,CARE ESTABLISHMENT,OP - City & South Locality - Cost of Care,Older People - City & South - Care,Nursing Care
Cambridgeshire County Council,13-May-22,51301782625,"-1,550.00",WOODLANDS CARE CENTRE,CARE ESTABLISHMENT,OP - City & South Locality - Cost of Care,Older People - City & South - Care,Nursing Care
Cambridgeshire County Council,27-May-22,51301790369,"-1,527.01",HFT TRUST LTD,TRUST (OTHER),LD - Hunts Locality - Cost of Care,LD - Huntingdonshire - Care,Residential Care
Cambridgeshire County Council,27-May-22,51301790369,"-1,527.01",HFT TRUST LTD,TRUST (OTHER),LD - Hunts Locality - Cost of Care,LD - Huntingdonshire - Care,Residential Care
Cambridgeshire County Council,27-May-22,51301790369,"-1,527.01",HFT TRUST LTD,TRUST (OTHER),LD - Hunts Locality - Cost of Care,LD - Huntingdonshire - Care,Residential Care
Cambridgeshire County Council,27-May-22,51301790369,"-1,527.01",HFT TRUST LTD,TRUST (OTHER),LD - Hunts Locality - Cost of Care,LD - Huntingdonshire - Care,Residential Care
Cambridgeshire County Council,27-May-22,51301790369,"-1,527.01",HFT TRUST LTD,TRUST (OTHER),LD - Hunts Locality - Cost of Care,LD - Huntingdonshire - Care,Residential Care
Cambridgeshire County Council,27-May-22,51301790369,"-1,527.01",HFT TRUST LTD,TRUST (OTHER),LD - Hunts Locality - Cost of Care,LD - Huntingdonshire - Care,Residential Care
Cambridgeshire County Council,27-May-22,51301790369,"-1,527.01",HFT TRUST LTD,TRUST (OTHER),LD - Hunts Locality - Cost of Care,LD - Huntingdonshire - Care,Residential Care
Cambridgeshire County Council,13-May-22,51301781503,"-1,515.00",Abbey Lodge,CARE ESTABLISHMENT,LD - Hunts Locality - Cost of Care,LD - Huntingdonshire - Care,Residential Care
Cambridgeshire County Council,13-May-22,51301781503,"-1,515.00",Abbey Lodge,CARE ESTABLISHMENT,LD - Hunts Locality - Cost of Care,LD - Huntingdonshire - Care,Residential Care
Cambridgeshire County Council,13-May-22,51301781503,"-1,515.00",Abbey Lodge,CARE ESTABLISHMENT,LD - Hunts Locality - Cost of Care,LD - Huntingdonshire - Care,Residential Care
Cambridgeshire County Council,13-May-22,51301781503,"-1,515.00",Abbey Lodge,CARE ESTABLISHMENT,LD - Hunts Locality - Cost of Care,LD - Huntingdonshire - Care,Residential Care
Cambridgeshire County Council,13-May-22,51301781503,"-1,515.00",Abbey Lodge,CARE ESTABLISHMENT,LD - Hunts Locality - Cost of Care,LD - Huntingdonshire - Care,Residential Care
Cambridgeshire County Council,13-May-22,51301781503,"-1,515.00",Abbey Lodge,CARE ESTABLISHMENT,LD - Hunts Locality - Cost of Care,LD - Huntingdonshire - Care,Residential Care
Cambridgeshire County Council,13-May-22,51301781503,"-1,515.00",Abbey Lodge,CARE ESTABLISHMENT,LD - Hunts Locality - Cost of Care,LD - Huntingdonshire - Care,Residential Care
Cambridgeshire County Council,27-May-22,51301790952,"-1,467.29",ALDERTON HOUSE,CARE ESTABLISHMENT,LD - East Locality - Cost of Care,LD - East Cambs - Care,Residential Care
Cambridgeshire County Council,27-May-22,51301790952,"-1,467.29",ALDERTON HOUSE,CARE ESTABLISHMENT,LD - East Locality - Cost of Care,LD - East Cambs - Care,Residential Care
Cambridgeshire County Council,27-May-22,51301790952,"-1,467.29",ALDERTON HOUSE,CARE ESTABLISHMENT,LD - East Locality - Cost of Care,LD - East Cambs - Care,Residential Care
Cambridgeshire County Council,27-May-22,51301790952,"-1,467.29",ALDERTON HOUSE,CARE ESTABLISHMENT,LD - East Locality - Cost of Care,LD - East Cambs - Care,Residential Care
Cambridgeshire County Council,27-May-22,51301790952,"-1,467.29",ALDERTON HOUSE,CARE ESTABLISHMENT,LD - East Locality - Cost of Care,LD - East Cambs - Care,Residential Care
Cambridgeshire County Council,27-May-22,51301790952,"-1,467.29",ALDERTON HOUSE,CARE ESTABLISHMENT,LD - East Locality - Cost of Care,LD - East Cambs - Care,Residential Care
Cambridgeshire County Council,27-May-22,51301790952,"-1,467.29",ALDERTON HOUSE,CARE ESTABLISHMENT,LD - East Locality - Cost of Care,LD - East Cambs - Care,Residential Care
Cambridgeshire County Council,27-May-22,51301790952,"-1,467.29",ALDERTON HOUSE,CARE ESTABLISHMENT,LD - East Locality - Cost of Care,LD - East Cambs - Care,Residential Care
Cambridgeshire County Council,27-May-22,51301790952,"-1,467.29",ALDERTON HOUSE,CARE ESTABLISHMENT,LD - East Locality - Cost of Care,LD - East Cambs - Care,Residential Care
Cambridgeshire County Council,27-May-22,51301790952,"-1,467.29",ALDERTON HOUSE,CARE ESTABLISHMENT,LD - East Locality - Cost of Care,LD - East Cambs - Care,Residential Care
Cambridgeshire County Council,27-May-22,51301790952,"-1,467.29",ALDERTON HOUSE,CARE ESTABLISHMENT,LD - East Locality - Cost of Care,LD - East Cambs - Care,Residential Care
Cambridgeshire County Council,27-May-22,51301790952,"-1,467.29",ALDERTON HOUSE,CARE ESTABLISHMENT,LD - East Locality - Cost of Care,LD - East Cambs - Care,Residential Care
Cambridgeshire County Council,27-May-22,51301790952,"-1,467.29",ALDERTON HOUSE,CARE ESTABLISHMENT,LD - East Locality - Cost of Care,LD - East Cambs - Care,Residential Care
Cambridgeshire County Council,27-May-22,51301790952,"-1,467.29",ALDERTON HOUSE,CARE ESTABLISHMENT,LD - East Locality - Cost of Care,LD - East Cambs - Care,Residential Care
Cambridgeshire County Council,27-May-22,51301790952,"-1,467.29",ALDERTON HOUSE,CARE ESTABLISHMENT,LD - East Locality - Cost of Care,LD - East Cambs - Care,Residential Care
Cambridgeshire County Council,27-May-22,51301790952,"-1,467.29",ALDERTON HOUSE,CARE ESTABLISHMENT,LD - East Locality - Cost of Care,LD - East Cambs - Care,Residential Care
Cambridgeshire County Council,27-May-22,51301790952,"-1,467.29",ALDERTON HOUSE,CARE ESTABLISHMENT,LD - East Locality - Cost of Care,LD - East Cambs - Care,Residential Care
Cambridgeshire County Council,27-May-22,51301790952,"-1,467.29",ALDERTON HOUSE,CARE ESTABLISHMENT,LD - East Locality - Cost of Care,LD - East Cambs - Care,Residential Care
Cambridgeshire County Council,27-May-22,51301790952,"-1,467.29",ALDERTON HOUSE,CARE ESTABLISHMENT,LD - East Locality - Cost of Care,LD - East Cambs - Care,Residential Care
Cambridgeshire County Council,27-May-22,51301790952,"-1,467.29",ALDERTON HOUSE,CARE ESTABLISHMENT,LD - East Locality - Cost of Care,LD - East Cambs - Care,Residential Care
Cambridgeshire County Council,27-May-22,51301790952,"-1,467.29",ALDERTON HOUSE,CARE ESTABLISHMENT,LD - East Locality - Cost of Care,LD - East Cambs - Care,Residential Care
Cambridgeshire County Council,27-May-22,51301790952,"-1,467.29",ALDERTON HOUSE,CARE ESTABLISHMENT,LD - East Locality - Cost of Care,LD - East Cambs - Care,Residential Care
Cambridgeshire County Council,27-May-22,51301790952,"-1,467.29",ALDERTON HOUSE,CARE ESTABLISHMENT,LD - East Locality - Cost of Care,LD - East Cambs - Care,Residential Care
Cambridgeshire County Council,27-May-22,51301790952,"-1,467.29",ALDERTON HOUSE,CARE ESTABLISHMENT,LD - East Locality - Cost of Care,LD - East Cambs - Care,Residential Care
Cambridgeshire County Council,27-May-22,51301790952,"-1,467.29",ALDERTON HOUSE,CARE ESTABLISHMENT,LD - East Locality - Cost of Care,LD - East Cambs - Care,Residential Care
Cambridgeshire County Council,27-May-22,51301790952,"-1,467.29",ALDERTON HOUSE,CARE ESTABLISHMENT,LD - East Locality - Cost of Care,LD - East Cambs - Care,Residential Care
Cambridgeshire County Council,27-May-22,51301790952,"-1,467.29",ALDERTON HOUSE,CARE ESTABLISHMENT,LD - East Locality - Cost of Care,LD - East Cambs - Care,Residential Care
Cambridgeshire County Council,27-May-22,51301790952,"-1,467.29",ALDERTON HOUSE,CARE ESTABLISHMENT,LD - East Locality - Cost of Care,LD - East Cambs - Care,Residential Care
Cambridgeshire County Council,27-May-22,51301790952,"-1,467.29",ALDERTON HOUSE,CARE ESTABLISHMENT,LD - East Locality - Cost of Care,LD - East Cambs - Care,Residential Care
Cambridgeshire County Council,27-May-22,51301790952,"-1,467.29",ALDERTON HOUSE,CARE ESTABLISHMENT,LD - East Locality - Cost of Care,LD - East Cambs - Care,Residential Care
Cambridgeshire County Council,27-May-22,51301790952,"-1,467.29",ALDERTON HOUSE,CARE ESTABLISHMENT,LD - East Locality - Cost of Care,LD - East Cambs - Care,Residential Care
Cambridgeshire County Council,27-May-22,51301790952,"-1,467.29",ALDERTON HOUSE,CARE ESTABLISHMENT,LD - East Locality - Cost of Care,LD - East Cambs - Care,Residential Care
Cambridgeshire County Council,27-May-22,51301790952,"-1,467.29",ALDERTON HOUSE,CARE ESTABLISHMENT,LD - East Locality - Cost of Care,LD - East Cambs - Care,Residential Care
Cambridgeshire County Council,27-May-22,51301790952,"-1,467.29",ALDERTON HOUSE,CARE ESTABLISHMENT,LD - East Locality - Cost of Care,LD - East Cambs - Care,Residential Care
Cambridgeshire County Council,27-May-22,51301790952,"-1,467.29",ALDERTON HOUSE,CARE ESTABLISHMENT,LD - East Locality - Cost of Care,LD - East Cambs - Care,Residential Care
Cambridgeshire County Council,27-May-22,51301790952,"-1,467.29",ALDERTON HOUSE,CARE ESTABLISHMENT,LD - East Locality - Cost of Care,LD - East Cambs - Care,Residential Care
Cambridgeshire County Council,27-May-22,51301790952,"-1,467.29",ALDERTON HOUSE,CARE ESTABLISHMENT,LD - East Locality - Cost of Care,LD - East Cambs - Care,Residential Care
Cambridgeshire County Council,27-May-22,51301790952,"-1,467.29",ALDERTON HOUSE,CARE ESTABLISHMENT,LD - East Locality - Cost of Care,LD - East Cambs - Care,Residential Care
Cambridgeshire County Council,27-May-22,51301790952,"-1,467.29",ALDERTON HOUSE,CARE ESTABLISHMENT,LD - East Locality - Cost of Care,LD - East Cambs - Care,Residential Care
Cambridgeshire County Council,27-May-22,51301790952,"-1,467.29",ALDERTON HOUSE,CARE ESTABLISHMENT,LD - East Locality - Cost of Care,LD - East Cambs - Care,Residential Care
Cambridgeshire County Council,27-May-22,51301790952,"-1,467.29",ALDERTON HOUSE,CARE ESTABLISHMENT,LD - East Locality - Cost of Care,LD - East Cambs - Care,Residential Care
Cambridgeshire County Council,27-May-22,51301790952,"-1,467.29",ALDERTON HOUSE,CARE ESTABLISHMENT,LD - East Locality - Cost of Care,LD - East Cambs - Care,Residential Care
Cambridgeshire County Council,27-May-22,51301790952,"-1,467.29",ALDERTON HOUSE,CARE ESTABLISHMENT,LD - East Locality - Cost of Care,LD - East Cambs - Care,Residential Care
Cambridgeshire County Council,27-May-22,51301790952,"-1,467.29",ALDERTON HOUSE,CARE ESTABLISHMENT,LD - East Locality - Cost of Care,LD - East Cambs - Care,Residential Care
Cambridgeshire County Council,27-May-22,51301790952,"-1,467.29",ALDERTON HOUSE,CARE ESTABLISHMENT,LD - East Locality - Cost of Care,LD - East Cambs - Care,Residential Care
Cambridgeshire County Council,27-May-22,51301790952,"-1,467.29",ALDERTON HOUSE,CARE ESTABLISHMENT,LD - East Locality - Cost of Care,LD - East Cambs - Care,Residential Care
Cambridgeshire County Council,27-May-22,51301790952,"-1,467.29",ALDERTON HOUSE,CARE ESTABLISHMENT,LD - East Locality - Cost of Care,LD - East Cambs - Care,Residential Care
Cambridgeshire County Council,27-May-22,51301790952,"-1,467.29",ALDERTON HOUSE,CARE ESTABLISHMENT,LD - East Locality - Cost of Care,LD - East Cambs - Care,Residential Care
Cambridgeshire County Council,27-May-22,51301790952,"-1,467.29",ALDERTON HOUSE,CARE ESTABLISHMENT,LD - East Locality - Cost of Care,LD - East Cambs - Care,Residential Care
Cambridgeshire County Council,27-May-22,51301790952,"-1,467.29",ALDERTON HOUSE,CARE ESTABLISHMENT,LD - East Locality - Cost of Care,LD - East Cambs - Care,Residential Care
Cambridgeshire County Council,27-May-22,51301790952,"-1,467.29",ALDERTON HOUSE,CARE ESTABLISHMENT,LD - East Locality - Cost of Care,LD - East Cambs - Care,Residential Care
Cambridgeshire County Council,27-May-22,51301790952,"-1,467.29",ALDERTON HOUSE,CARE ESTABLISHMENT,LD - East Locality - Cost of Care,LD - East Cambs - Care,Residential Care
Cambridgeshire County Council,27-May-22,51301790952,"-1,467.29",ALDERTON HOUSE,CARE ESTABLISHMENT,LD - East Locality - Cost of Care,LD - East Cambs - Care,Residential Care
Cambridgeshire County Council,27-May-22,51301790952,"-1,467.29",ALDERTON HOUSE,CARE ESTABLISHMENT,LD - East Locality - Cost of Care,LD - East Cambs - Care,Residential Care
Cambridgeshire County Council,27-May-22,51301790952,"-1,467.29",ALDERTON HOUSE,CARE ESTABLISHMENT,LD - East Locality - Cost of Care,LD - East Cambs - Care,Residential Care
Cambridgeshire County Council,27-May-22,51301790952,"-1,467.29",ALDERTON HOUSE,CARE ESTABLISHMENT,LD - East Locality - Cost of Care,LD - East Cambs - Care,Residential Care
Cambridgeshire County Council,27-May-22,51301790952,"-1,467.29",ALDERTON HOUSE,CARE ESTABLISHMENT,LD - East Locality - Cost of Care,LD - East Cambs - Care,Residential Care
Cambridgeshire County Council,27-May-22,51301790952,"-1,467.29",ALDERTON HOUSE,CARE ESTABLISHMENT,LD - East Locality - Cost of Care,LD - East Cambs - Care,Residential Care
Cambridgeshire County Council,27-May-22,51301790952,"-1,467.29",ALDERTON HOUSE,CARE ESTABLISHMENT,LD - East Locality - Cost of Care,LD - East Cambs - Care,Residential Care
Cambridgeshire County Council,27-May-22,51301790952,"-1,467.29",ALDERTON HOUSE,CARE ESTABLISHMENT,LD - East Locality - Cost of Care,LD - East Cambs - Care,Residential Care
Cambridgeshire County Council,27-May-22,51301790952,"-1,467.29",ALDERTON HOUSE,CARE ESTABLISHMENT,LD - East Locality - Cost of Care,LD - East Cambs - Care,Residential Care
Cambridgeshire County Council,27-May-22,51301790952,"-1,467.29",ALDERTON HOUSE,CARE ESTABLISHMENT,LD - East Locality - Cost of Care,LD - East Cambs - Care,Residential Care
Cambridgeshire County Council,27-May-22,51301790952,"-1,467.29",ALDERTON HOUSE,CARE ESTABLISHMENT,LD - East Locality - Cost of Care,LD - East Cambs - Care,Residential Care
Cambridgeshire County Council,13-May-22,51301782783,"-1,400.00",BRAMLEY COURT,CARE ESTABLISHMENT,OP - City & South Locality - Cost of Care,Older People - City & South - Care,Residential Care
Cambridgeshire County Council,13-May-22,51301782783,"-1,400.00",BRAMLEY COURT,CARE ESTABLISHMENT,OP - City & South Locality - Cost of Care,Older People - City & South - Care,Residential Care
Cambridgeshire County Council,13-May-22,51301782783,"-1,400.00",BRAMLEY COURT,CARE ESTABLISHMENT,OP - City & South Locality - Cost of Care,Older People - City & South - Care,Residential Care
Cambridgeshire County Council,13-May-22,51301782783,"-1,400.00",BRAMLEY COURT,CARE ESTABLISHMENT,OP - City & South Locality - Cost of Care,Older People - City & South - Care,Residential Care
Cambridgeshire County Council,13-May-22,51301782783,"-1,400.00",BRAMLEY COURT,CARE ESTABLISHMENT,OP - City & South Locality - Cost of Care,Older People - City & South - Care,Residential Care
Cambridgeshire County Council,13-May-22,51301782783,"-1,400.00",BRAMLEY COURT,CARE ESTABLISHMENT,OP - City & South Locality - Cost of Care,Older People - City & South - Care,Residential Care
Cambridgeshire County Council,13-May-22,51301782783,"-1,400.00",BRAMLEY COURT,CARE ESTABLISHMENT,OP - City & South Locality - Cost of Care,Older People - City & South - Care,Residential Care
Cambridgeshire County Council,11-May-22,51301775071,"-1,400.00",Redacted Personal Data,INDIVIDUAL,Physical Disablity - Cost of Care,Countywide PD Service - Care,Direct Payments
Cambridgeshire County Council,11-May-22,51301775071,"-1,400.00",Redacted Personal Data,INDIVIDUAL,Physical Disablity - Cost of Care,Countywide PD Service - Care,Direct Payments
Cambridgeshire County Council,11-May-22,51301775071,"-1,400.00",Redacted Personal Data,INDIVIDUAL,Physical Disablity - Cost of Care,Countywide PD Service - Care,Direct Payments
Cambridgeshire County Council,11-May-22,51301775071,"-1,400.00",Redacted Personal Data,INDIVIDUAL,Physical Disablity - Cost of Care,Countywide PD Service - Care,Direct Payments
Cambridgeshire County Council,11-May-22,51301775071,"-1,400.00",Redacted Personal Data,INDIVIDUAL,Physical Disablity - Cost of Care,Countywide PD Service - Care,Direct Payments
Cambridgeshire County Council,11-May-22,51301775071,"-1,400.00",Redacted Personal Data,INDIVIDUAL,Physical Disablity - Cost of Care,Countywide PD Service - Care,Direct Payments
Cambridgeshire County Council,11-May-22,51301775071,"-1,400.00",Redacted Personal Data,INDIVIDUAL,Physical Disablity - Cost of Care,Countywide PD Service - Care,Direct Payments
Cambridgeshire County Council,11-May-22,51301775071,"-1,400.00",Redacted Personal Data,INDIVIDUAL,Physical Disablity - Cost of Care,Countywide PD Service - Care,Direct Payments
Cambridgeshire County Council,11-May-22,51301780104,"-1,386.00",Redacted Personal Data,SERVICE USER,Physical Disablity - Cost of Care,Countywide PD Service - Care,Direct Payments
Cambridgeshire County Council,11-May-22,51301780104,"-1,386.00",Redacted Personal Data,SERVICE USER,Physical Disablity - Cost of Care,Countywide PD Service - Care,Direct Payments
Cambridgeshire County Council,11-May-22,51301780104,"-1,386.00",Redacted Personal Data,SERVICE USER,Physical Disablity - Cost of Care,Countywide PD Service - Care,Direct Payments
Cambridgeshire County Council,11-May-22,51301780104,"-1,386.00",Redacted Personal Data,SERVICE USER,Physical Disablity - Cost of Care,Countywide PD Service - Care,Direct Payments
Cambridgeshire County Council,11-May-22,51301780104,"-1,386.00",Redacted Personal Data,SERVICE USER,Physical Disablity - Cost of Care,Countywide PD Service - Care,Direct Payments
Cambridgeshire County Council,11-May-22,51301780104,"-1,386.00",Redacted Personal Data,SERVICE USER,Physical Disablity - Cost of Care,Countywide PD Service - Care,Direct Payments
Cambridgeshire County Council,11-May-22,51301780104,"-1,386.00",Redacted Personal Data,SERVICE USER,Physical Disablity - Cost of Care,Countywide PD Service - Care,Direct Payments
Cambridgeshire County Council,11-May-22,51301780104,"-1,386.00",Redacted Personal Data,SERVICE USER,Physical Disablity - Cost of Care,Countywide PD Service - Care,Direct Payments
Cambridgeshire County Council,13-May-22,51301782584,"-1,375.00",WOODLANDS CARE CENTRE,CARE ESTABLISHMENT,OP - City & South Locality - Cost of Care,Older People - City & South - Care,Nursing Care
Cambridgeshire County Council,13-May-22,51301782584,"-1,375.00",WOODLANDS CARE CENTRE,CARE ESTABLISHMENT,OP - City & South Locality - Cost of Care,Older People - City & South - Care,Nursing Care
Cambridgeshire County Council,13-May-22,51301782731,"-1,372.94",THE MANOR CHESHIRE HOME,CARE ESTABLISHMENT,Physical Disablity - Cost of Care,Countywide PD Service - Care,Residential Care
Cambridgeshire County Council,13-May-22,51301782731,"-1,372.94",THE MANOR CHESHIRE HOME,CARE ESTABLISHMENT,Physical Disablity - Cost of Care,Countywide PD Service - Care,Residential Care
Cambridgeshire County Council,13-May-22,51301782731,"-1,372.94",THE MANOR CHESHIRE HOME,CARE ESTABLISHMENT,Physical Disablity - Cost of Care,Countywide PD Service - Care,Residential Care
Cambridgeshire County Council,13-May-22,51301782731,"-1,372.94",THE MANOR CHESHIRE HOME,CARE ESTABLISHMENT,Physical Disablity - Cost of Care,Countywide PD Service - Care,Residential Care
Cambridgeshire County Council,13-May-22,51301782731,"-1,372.94",THE MANOR CHESHIRE HOME,CARE ESTABLISHMENT,Physical Disablity - Cost of Care,Countywide PD Service - Care,Residential Care
Cambridgeshire County Council,13-May-22,51301782731,"-1,372.94",THE MANOR CHESHIRE HOME,CARE ESTABLISHMENT,Physical Disablity - Cost of Care,Countywide PD Service - Care,Residential Care
Cambridgeshire County Council,13-May-22,51301782731,"-1,372.94",THE MANOR CHESHIRE HOME,CARE ESTABLISHMENT,Physical Disablity - Cost of Care,Countywide PD Service - Care,Residential Care
Cambridgeshire County Council,13-May-22,51301782587,"-1,366.08",WOODLANDS CARE CENTRE,CARE ESTABLISHMENT,OP - City & South Locality - Cost of Care,Older People - City & South - Care,Nursing Care
Cambridgeshire County Council,13-May-22,51301782587,"-1,366.08",WOODLANDS CARE CENTRE,CARE ESTABLISHMENT,OP - City & South Locality - Cost of Care,Older People - City & South - Care,Nursing Care
Cambridgeshire County Council,13-May-22,51301782587,"-1,366.08",WOODLANDS CARE CENTRE,CARE ESTABLISHMENT,OP - City & South Locality - Cost of Care,Older People - City & South - Care,Nursing Care
Cambridgeshire County Council,13-May-22,51301782587,"-1,366.08",WOODLANDS CARE CENTRE,CARE ESTABLISHMENT,OP - City & South Locality - Cost of Care,Older People - City & South - Care,Nursing Care
Cambridgeshire County Council,13-May-22,51301782587,"-1,366.08",WOODLANDS CARE CENTRE,CARE ESTABLISHMENT,OP - City & South Locality - Cost of Care,Older People - City & South - Care,Nursing Care
Cambridgeshire County Council,13-May-22,51301782587,"-1,366.08",WOODLANDS CARE CENTRE,CARE ESTABLISHMENT,OP - City & South Locality - Cost of Care,Older People - City & South - Care,Nursing Care
Cambridgeshire County Council,13-May-22,51301782587,"-1,366.08",WOODLANDS CARE CENTRE,CARE ESTABLISHMENT,OP - City & South Locality - Cost of Care,Older People - City & South - Care,Nursing Care
Cambridgeshire County Council,13-May-22,51301782481,"-1,362.86",THE CAMBRIDGE NURSING CENTRE,CARE ESTABLISHMENT,OP - City & South Locality - Cost of Care,Older People - City & South - Care,Nursing Care
Cambridgeshire County Council,16-May-22,51301785090,"-1,346.41",CHS GROUP,CARE ESTABLISHMENT,LD - City Locality - Cost of Care,LD - City - Care,Residential Care - Property Voids
Cambridgeshire County Council,20-May-22,51301786197,"-1,332.22",J&M Healthcare Ltd,CARE ESTABLISHMENT,AMH - Specialist & Primary,Mental Health - Specialist & Primary,Supported Living
Cambridgeshire County Council,20-May-22,51301786197,"-1,332.22",J&M Healthcare Ltd,CARE ESTABLISHMENT,AMH - Specialist & Primary,Mental Health - Specialist & Primary,Supported Living
Cambridgeshire County Council,20-May-22,51301786197,"-1,332.22",J&M Healthcare Ltd,CARE ESTABLISHMENT,AMH - Specialist & Primary,Mental Health - Specialist & Primary,Supported Living
Cambridgeshire County Council,20-May-22,51301786197,"-1,332.22",J&M Healthcare Ltd,CARE ESTABLISHMENT,AMH - Specialist & Primary,Mental Health - Specialist & Primary,Supported Living
Cambridgeshire County Council,20-May-22,51301786197,"-1,332.22",J&M Healthcare Ltd,CARE ESTABLISHMENT,AMH - Specialist & Primary,Mental Health - Specialist & Primary,Supported Living
Cambridgeshire County Council,20-May-22,51301786197,"-1,332.22",J&M Healthcare Ltd,CARE ESTABLISHMENT,AMH - Specialist & Primary,Mental Health - Specialist & Primary,Supported Living
Cambridgeshire County Council,20-May-22,51301786197,"-1,332.22",J&M Healthcare Ltd,CARE ESTABLISHMENT,AMH - Specialist & Primary,Mental Health - Specialist & Primary,Supported Living
Cambridgeshire County Council,20-May-22,51301786197,"-1,332.22",J&M Healthcare Ltd,CARE ESTABLISHMENT,AMH - Specialist & Primary,Mental Health - Specialist & Primary,Supported Living
Cambridgeshire County Council,20-May-22,51301786197,"-1,332.22",J&M Healthcare Ltd,CARE ESTABLISHMENT,AMH - Specialist & Primary,Mental Health - Specialist & Primary,Supported Living
Cambridgeshire County Council,20-May-22,51301786197,"-1,332.22",J&M Healthcare Ltd,CARE ESTABLISHMENT,AMH - Specialist & Primary,Mental Health - Specialist & Primary,Supported Living
Cambridgeshire County Council,20-May-22,51301786197,"-1,332.22",J&M Healthcare Ltd,CARE ESTABLISHMENT,AMH - Specialist & Primary,Mental Health - Specialist & Primary,Supported Living
Cambridgeshire County Council,20-May-22,51301786197,"-1,332.22",J&M Healthcare Ltd,CARE ESTABLISHMENT,AMH - Specialist & Primary,Mental Health - Specialist & Primary,Supported Living
Cambridgeshire County Council,20-May-22,51301786197,"-1,332.22",J&M Healthcare Ltd,CARE ESTABLISHMENT,AMH - Specialist & Primary,Mental Health - Specialist & Primary,Supported Living
Cambridgeshire County Council,13-May-22,51301781454,"-1,318.93",CARETECH COMMUNITY SERVICES,CARE ESTABLISHMENT,LD - Hunts Locality - Cost of Care,LD - Huntingdonshire - Care,Residential Care
Cambridgeshire County Council,13-May-22,51301781454,"-1,318.93",CARETECH COMMUNITY SERVICES,CARE ESTABLISHMENT,LD - Hunts Locality - Cost of Care,LD - Huntingdonshire - Care,Residential Care
Cambridgeshire County Council,13-May-22,51301772733,"-1,316.08",ASKHAM VILLAGE COMMUNITY LTD,CARE ESTABLISHMENT,Physical Disablity - Cost of Care,Countywide PD Service - Care,Nursing Care
Cambridgeshire County Council,13-May-22,51301772733,"-1,316.08",ASKHAM VILLAGE COMMUNITY LTD,CARE ESTABLISHMENT,Physical Disablity - Cost of Care,Countywide PD Service - Care,Nursing Care
Cambridgeshire County Council,13-May-22,51301772733,"-1,316.08",ASKHAM VILLAGE COMMUNITY LTD,CARE ESTABLISHMENT,Physical Disablity - Cost of Care,Countywide PD Service - Care,Nursing Care
Cambridgeshire County Council,13-May-22,51301772733,"-1,316.08",ASKHAM VILLAGE COMMUNITY LTD,CARE ESTABLISHMENT,Physical Disablity - Cost of Care,Countywide PD Service - Care,Nursing Care
Cambridgeshire County Council,13-May-22,51301772733,"-1,316.08",ASKHAM VILLAGE COMMUNITY LTD,CARE ESTABLISHMENT,Physical Disablity - Cost of Care,Countywide PD Service - Care,Nursing Care
Cambridgeshire County Council,13-May-22,51301772733,"-1,316.08",ASKHAM VILLAGE COMMUNITY LTD,CARE ESTABLISHMENT,Physical Disablity - Cost of Care,Countywide PD Service - Care,Nursing Care
Cambridgeshire County Council,13-May-22,51301772733,"-1,316.08",ASKHAM VILLAGE COMMUNITY LTD,CARE ESTABLISHMENT,Physical Disablity - Cost of Care,Countywide PD Service - Care,Nursing Care
Cambridgeshire County Council,13-May-22,51301772733,"-1,316.08",ASKHAM VILLAGE COMMUNITY LTD,CARE ESTABLISHMENT,Physical Disablity - Cost of Care,Countywide PD Service - Care,Nursing Care
Cambridgeshire County Council,13-May-22,51301772733,"-1,316.08",ASKHAM VILLAGE COMMUNITY LTD,CARE ESTABLISHMENT,Physical Disablity - Cost of Care,Countywide PD Service - Care,Nursing Care
Cambridgeshire County Council,27-May-22,51301790926,"-1,315.67",THE CAMBRIDGE HOUSING SOCIETY LTD,CARE ESTABLISHMENT,OP - City & South Locality - Cost of Care,Older People - City & South - Care,Residential Care
Cambridgeshire County Council,27-May-22,51301790926,"-1,315.67",THE CAMBRIDGE HOUSING SOCIETY LTD,CARE ESTABLISHMENT,OP - City & South Locality - Cost of Care,Older People - City & South - Care,Residential Care
Cambridgeshire County Council,27-May-22,51301790926,"-1,315.67",THE CAMBRIDGE HOUSING SOCIETY LTD,CARE ESTABLISHMENT,OP - City & South Locality - Cost of Care,Older People - City & South - Care,Residential Care
Cambridgeshire County Council,27-May-22,51301790926,"-1,315.67",THE CAMBRIDGE HOUSING SOCIETY LTD,CARE ESTABLISHMENT,OP - City & South Locality - Cost of Care,Older People - City & South - Care,Residential Care
Cambridgeshire County Council,27-May-22,51301790926,"-1,315.67",THE CAMBRIDGE HOUSING SOCIETY LTD,CARE ESTABLISHMENT,OP - City & South Locality - Cost of Care,Older People - City & South - Care,Residential Care
Cambridgeshire County Council,27-May-22,51301790926,"-1,315.67",THE CAMBRIDGE HOUSING SOCIETY LTD,CARE ESTABLISHMENT,OP - City & South Locality - Cost of Care,Older People - City & South - Care,Residential Care
Cambridgeshire County Council,27-May-22,51301790926,"-1,315.67",THE CAMBRIDGE HOUSING SOCIETY LTD,CARE ESTABLISHMENT,OP - City & South Locality - Cost of Care,Older People - City & South - Care,Residential Care
Cambridgeshire County Council,27-May-22,51301790926,"-1,315.67",THE CAMBRIDGE HOUSING SOCIETY LTD,CARE ESTABLISHMENT,OP - City & South Locality - Cost of Care,Older People - City & South - Care,Residential Care
Cambridgeshire County Council,27-May-22,51301790926,"-1,315.67",THE CAMBRIDGE HOUSING SOCIETY LTD,CARE ESTABLISHMENT,OP - City & South Locality - Cost of Care,Older People - City & South - Care,Residential Care
Cambridgeshire County Council,27-May-22,51301790926,"-1,315.67",THE CAMBRIDGE HOUSING SOCIETY LTD,CARE ESTABLISHMENT,OP - City & South Locality - Cost of Care,Older People - City & South - Care,Residential Care
Cambridgeshire County Council,27-May-22,51301790926,"-1,315.67",THE CAMBRIDGE HOUSING SOCIETY LTD,CARE ESTABLISHMENT,OP - City & South Locality - Cost of Care,Older People - City & South - Care,Residential Care
Cambridgeshire County Council,13-May-22,51301782529,"-1,306.47",THE MANOR CHESHIRE HOME,CARE ESTABLISHMENT,OP - Hunts Locality - Cost of Care,Hunts OP Team - Care,Residential Care
Cambridgeshire County Council,13-May-22,51301782529,"-1,306.47",THE MANOR CHESHIRE HOME,CARE ESTABLISHMENT,OP - Hunts Locality - Cost of Care,Hunts OP Team - Care,Residential Care
Cambridgeshire County Council,13-May-22,51301782529,"-1,306.47",THE MANOR CHESHIRE HOME,CARE ESTABLISHMENT,OP - Hunts Locality - Cost of Care,Hunts OP Team - Care,Residential Care
Cambridgeshire County Council,13-May-22,51301782529,"-1,306.47",THE MANOR CHESHIRE HOME,CARE ESTABLISHMENT,OP - Hunts Locality - Cost of Care,Hunts OP Team - Care,Residential Care
Cambridgeshire County Council,13-May-22,51301782529,"-1,306.47",THE MANOR CHESHIRE HOME,CARE ESTABLISHMENT,OP - Hunts Locality - Cost of Care,Hunts OP Team - Care,Residential Care
Cambridgeshire County Council,13-May-22,51301782529,"-1,306.47",THE MANOR CHESHIRE HOME,CARE ESTABLISHMENT,OP - Hunts Locality - Cost of Care,Hunts OP Team - Care,Residential Care
Cambridgeshire County Council,13-May-22,51301782529,"-1,306.47",THE MANOR CHESHIRE HOME,CARE ESTABLISHMENT,OP - Hunts Locality - Cost of Care,Hunts OP Team - Care,Residential Care
Cambridgeshire County Council,03-May-22,51301773526,"-1,303.49",ALDERTON HOUSE,CARE ESTABLISHMENT,LD - East Locality - Cost of Care,LD - East Cambs - Care,Residential Care
Cambridgeshire County Council,03-May-22,51301773526,"-1,303.49",ALDERTON HOUSE,CARE ESTABLISHMENT,LD - East Locality - Cost of Care,LD - East Cambs - Care,Residential Care
Cambridgeshire County Council,03-May-22,51301773526,"-1,303.49",ALDERTON HOUSE,CARE ESTABLISHMENT,LD - East Locality - Cost of Care,LD - East Cambs - Care,Residential Care
Cambridgeshire County Council,03-May-22,51301773526,"-1,303.49",ALDERTON HOUSE,CARE ESTABLISHMENT,LD - East Locality - Cost of Care,LD - East Cambs - Care,Residential Care
Cambridgeshire County Council,03-May-22,51301773526,"-1,303.49",ALDERTON HOUSE,CARE ESTABLISHMENT,LD - East Locality - Cost of Care,LD - East Cambs - Care,Residential Care
Cambridgeshire County Council,03-May-22,51301773526,"-1,303.49",ALDERTON HOUSE,CARE ESTABLISHMENT,LD - East Locality - Cost of Care,LD - East Cambs - Care,Residential Care
Cambridgeshire County Council,03-May-22,51301773526,"-1,303.49",ALDERTON HOUSE,CARE ESTABLISHMENT,LD - East Locality - Cost of Care,LD - East Cambs - Care,Residential Care
Cambridgeshire County Council,03-May-22,51301773526,"-1,303.49",ALDERTON HOUSE,CARE ESTABLISHMENT,LD - East Locality - Cost of Care,LD - East Cambs - Care,Residential Care
Cambridgeshire County Council,03-May-22,51301773526,"-1,303.49",ALDERTON HOUSE,CARE ESTABLISHMENT,LD - East Locality - Cost of Care,LD - East Cambs - Care,Residential Care
Cambridgeshire County Council,03-May-22,51301773526,"-1,303.49",ALDERTON HOUSE,CARE ESTABLISHMENT,LD - East Locality - Cost of Care,LD - East Cambs - Care,Residential Care
Cambridgeshire County Council,03-May-22,51301773526,"-1,303.49",ALDERTON HOUSE,CARE ESTABLISHMENT,LD - East Locality - Cost of Care,LD - East Cambs - Care,Residential Care
Cambridgeshire County Council,03-May-22,51301773526,"-1,303.49",ALDERTON HOUSE,CARE ESTABLISHMENT,LD - East Locality - Cost of Care,LD - East Cambs - Care,Residential Care
Cambridgeshire County Council,03-May-22,51301773526,"-1,303.49",ALDERTON HOUSE,CARE ESTABLISHMENT,LD - East Locality - Cost of Care,LD - East Cambs - Care,Residential Care
Cambridgeshire County Council,03-May-22,51301773526,"-1,303.49",ALDERTON HOUSE,CARE ESTABLISHMENT,LD - East Locality - Cost of Care,LD - East Cambs - Care,Residential Care
Cambridgeshire County Council,03-May-22,51301773526,"-1,303.49",ALDERTON HOUSE,CARE ESTABLISHMENT,LD - East Locality - Cost of Care,LD - East Cambs - Care,Residential Care
Cambridgeshire County Council,03-May-22,51301773526,"-1,303.49",ALDERTON HOUSE,CARE ESTABLISHMENT,LD - East Locality - Cost of Care,LD - East Cambs - Care,Residential Care
Cambridgeshire County Council,03-May-22,51301773526,"-1,303.49",ALDERTON HOUSE,CARE ESTABLISHMENT,LD - East Locality - Cost of Care,LD - East Cambs - Care,Residential Care
Cambridgeshire County Council,03-May-22,51301773526,"-1,303.49",ALDERTON HOUSE,CARE ESTABLISHMENT,LD - East Locality - Cost of Care,LD - East Cambs - Care,Residential Care
Cambridgeshire County Council,03-May-22,51301773526,"-1,303.49",ALDERTON HOUSE,CARE ESTABLISHMENT,LD - East Locality - Cost of Care,LD - East Cambs - Care,Residential Care
Cambridgeshire County Council,03-May-22,51301773526,"-1,303.49",ALDERTON HOUSE,CARE ESTABLISHMENT,LD - East Locality - Cost of Care,LD - East Cambs - Care,Residential Care
Cambridgeshire County Council,03-May-22,51301773526,"-1,303.49",ALDERTON HOUSE,CARE ESTABLISHMENT,LD - East Locality - Cost of Care,LD - East Cambs - Care,Residential Care
Cambridgeshire County Council,03-May-22,51301773526,"-1,303.49",ALDERTON HOUSE,CARE ESTABLISHMENT,LD - East Locality - Cost of Care,LD - East Cambs - Care,Residential Care
Cambridgeshire County Council,03-May-22,51301773526,"-1,303.49",ALDERTON HOUSE,CARE ESTABLISHMENT,LD - East Locality - Cost of Care,LD - East Cambs - Care,Residential Care
Cambridgeshire County Council,03-May-22,51301773526,"-1,303.49",ALDERTON HOUSE,CARE ESTABLISHMENT,LD - East Locality - Cost of Care,LD - East Cambs - Care,Residential Care
Cambridgeshire County Council,03-May-22,51301773526,"-1,303.49",ALDERTON HOUSE,CARE ESTABLISHMENT,LD - East Locality - Cost of Care,LD - East Cambs - Care,Residential Care
Cambridgeshire County Council,03-May-22,51301773526,"-1,303.49",ALDERTON HOUSE,CARE ESTABLISHMENT,LD - East Locality - Cost of Care,LD - East Cambs - Care,Residential Care
Cambridgeshire County Council,03-May-22,51301773526,"-1,303.49",ALDERTON HOUSE,CARE ESTABLISHMENT,LD - East Locality - Cost of Care,LD - East Cambs - Care,Residential Care
Cambridgeshire County Council,03-May-22,51301773526,"-1,303.49",ALDERTON HOUSE,CARE ESTABLISHMENT,LD - East Locality - Cost of Care,LD - East Cambs - Care,Residential Care
Cambridgeshire County Council,03-May-22,51301773526,"-1,303.49",ALDERTON HOUSE,CARE ESTABLISHMENT,LD - East Locality - Cost of Care,LD - East Cambs - Care,Residential Care
Cambridgeshire County Council,03-May-22,51301773526,"-1,303.49",ALDERTON HOUSE,CARE ESTABLISHMENT,LD - East Locality - Cost of Care,LD - East Cambs - Care,Residential Care
Cambridgeshire County Council,03-May-22,51301773526,"-1,303.49",ALDERTON HOUSE,CARE ESTABLISHMENT,LD - East Locality - Cost of Care,LD - East Cambs - Care,Residential Care
Cambridgeshire County Council,03-May-22,51301773526,"-1,303.49",ALDERTON HOUSE,CARE ESTABLISHMENT,LD - East Locality - Cost of Care,LD - East Cambs - Care,Residential Care
Cambridgeshire County Council,03-May-22,51301773526,"-1,303.49",ALDERTON HOUSE,CARE ESTABLISHMENT,LD - East Locality - Cost of Care,LD - East Cambs - Care,Residential Care
Cambridgeshire County Council,03-May-22,51301773526,"-1,303.49",ALDERTON HOUSE,CARE ESTABLISHMENT,LD - East Locality - Cost of Care,LD - East Cambs - Care,Residential Care
Cambridgeshire County Council,03-May-22,51301773526,"-1,303.49",ALDERTON HOUSE,CARE ESTABLISHMENT,LD - East Locality - Cost of Care,LD - East Cambs - Care,Residential Care
Cambridgeshire County Council,03-May-22,51301773526,"-1,303.49",ALDERTON HOUSE,CARE ESTABLISHMENT,LD - East Locality - Cost of Care,LD - East Cambs - Care,Residential Care
Cambridgeshire County Council,03-May-22,51301773526,"-1,303.49",ALDERTON HOUSE,CARE ESTABLISHMENT,LD - East Locality - Cost of Care,LD - East Cambs - Care,Residential Care
Cambridgeshire County Council,03-May-22,51301773526,"-1,303.49",ALDERTON HOUSE,CARE ESTABLISHMENT,LD - East Locality - Cost of Care,LD - East Cambs - Care,Residential Care
Cambridgeshire County Council,03-May-22,51301773526,"-1,303.49",ALDERTON HOUSE,CARE ESTABLISHMENT,LD - East Locality - Cost of Care,LD - East Cambs - Care,Residential Care
Cambridgeshire County Council,03-May-22,51301773526,"-1,303.49",ALDERTON HOUSE,CARE ESTABLISHMENT,LD - East Locality - Cost of Care,LD - East Cambs - Care,Residential Care
Cambridgeshire County Council,03-May-22,51301773526,"-1,303.49",ALDERTON HOUSE,CARE ESTABLISHMENT,LD - East Locality - Cost of Care,LD - East Cambs - Care,Residential Care
Cambridgeshire County Council,03-May-22,51301773526,"-1,303.49",ALDERTON HOUSE,CARE ESTABLISHMENT,LD - East Locality - Cost of Care,LD - East Cambs - Care,Residential Care
Cambridgeshire County Council,03-May-22,51301773526,"-1,303.49",ALDERTON HOUSE,CARE ESTABLISHMENT,LD - East Locality - Cost of Care,LD - East Cambs - Care,Residential Care
Cambridgeshire County Council,03-May-22,51301773526,"-1,303.49",ALDERTON HOUSE,CARE ESTABLISHMENT,LD - East Locality - Cost of Care,LD - East Cambs - Care,Residential Care
Cambridgeshire County Council,03-May-22,51301773526,"-1,303.49",ALDERTON HOUSE,CARE ESTABLISHMENT,LD - East Locality - Cost of Care,LD - East Cambs - Care,Residential Care
Cambridgeshire County Council,03-May-22,51301773526,"-1,303.49",ALDERTON HOUSE,CARE ESTABLISHMENT,LD - East Locality - Cost of Care,LD - East Cambs - Care,Residential Care
Cambridgeshire County Council,03-May-22,51301773526,"-1,303.49",ALDERTON HOUSE,CARE ESTABLISHMENT,LD - East Locality - Cost of Care,LD - East Cambs - Care,Residential Care
Cambridgeshire County Council,03-May-22,51301773526,"-1,303.49",ALDERTON HOUSE,CARE ESTABLISHMENT,LD - East Locality - Cost of Care,LD - East Cambs - Care,Residential Care
Cambridgeshire County Council,03-May-22,51301773526,"-1,303.49",ALDERTON HOUSE,CARE ESTABLISHMENT,LD - East Locality - Cost of Care,LD - East Cambs - Care,Residential Care
Cambridgeshire County Council,03-May-22,51301773526,"-1,303.49",ALDERTON HOUSE,CARE ESTABLISHMENT,LD - East Locality - Cost of Care,LD - East Cambs - Care,Residential Care
Cambridgeshire County Council,03-May-22,51301773526,"-1,303.49",ALDERTON HOUSE,CARE ESTABLISHMENT,LD - East Locality - Cost of Care,LD - East Cambs - Care,Residential Care
Cambridgeshire County Council,03-May-22,51301773526,"-1,303.49",ALDERTON HOUSE,CARE ESTABLISHMENT,LD - East Locality - Cost of Care,LD - East Cambs - Care,Residential Care
Cambridgeshire County Council,03-May-22,51301773526,"-1,303.49",ALDERTON HOUSE,CARE ESTABLISHMENT,LD - East Locality - Cost of Care,LD - East Cambs - Care,Residential Care
Cambridgeshire County Council,03-May-22,51301773526,"-1,303.49",ALDERTON HOUSE,CARE ESTABLISHMENT,LD - East Locality - Cost of Care,LD - East Cambs - Care,Residential Care
Cambridgeshire County Council,03-May-22,51301773526,"-1,303.49",ALDERTON HOUSE,CARE ESTABLISHMENT,LD - East Locality - Cost of Care,LD - East Cambs - Care,Residential Care
Cambridgeshire County Council,03-May-22,51301773526,"-1,303.49",ALDERTON HOUSE,CARE ESTABLISHMENT,LD - East Locality - Cost of Care,LD - East Cambs - Care,Residential Care
Cambridgeshire County Council,03-May-22,51301773526,"-1,303.49",ALDERTON HOUSE,CARE ESTABLISHMENT,LD - East Locality - Cost of Care,LD - East Cambs - Care,Residential Care
Cambridgeshire County Council,03-May-22,51301773526,"-1,303.49",ALDERTON HOUSE,CARE ESTABLISHMENT,LD - East Locality - Cost of Care,LD - East Cambs - Care,Residential Care
Cambridgeshire County Council,03-May-22,51301773526,"-1,303.49",ALDERTON HOUSE,CARE ESTABLISHMENT,LD - East Locality - Cost of Care,LD - East Cambs - Care,Residential Care
Cambridgeshire County Council,13-May-22,51301782189,"-1,302.10",HOME CLOSE LTD,CARE ESTABLISHMENT,OP - City & South Locality - Cost of Care,Older People - City & South - Care,Nursing Care
Cambridgeshire County Council,13-May-22,51301782189,"-1,302.10",HOME CLOSE LTD,CARE ESTABLISHMENT,OP - City & South Locality - Cost of Care,Older People - City & South - Care,Nursing Care
Cambridgeshire County Council,27-May-22,51301790947,"-1,300.00",WOODLANDS CARE CENTRE,CARE ESTABLISHMENT,OP - City & South Locality - Cost of Care,Older People - City & South - Care,Residential Care
Cambridgeshire County Council,27-May-22,51301790947,"-1,300.00",WOODLANDS CARE CENTRE,CARE ESTABLISHMENT,OP - City & South Locality - Cost of Care,Older People - City & South - Care,Residential Care
Cambridgeshire County Council,27-May-22,51301790947,"-1,300.00",WOODLANDS CARE CENTRE,CARE ESTABLISHMENT,OP - City & South Locality - Cost of Care,Older People - City & South - Care,Residential Care
Cambridgeshire County Council,27-May-22,51301790947,"-1,300.00",WOODLANDS CARE CENTRE,CARE ESTABLISHMENT,OP - City & South Locality - Cost of Care,Older People - City & South - Care,Residential Care
Cambridgeshire County Council,27-May-22,51301790947,"-1,300.00",WOODLANDS CARE CENTRE,CARE ESTABLISHMENT,OP - City & South Locality - Cost of Care,Older People - City & South - Care,Residential Care
Cambridgeshire County Council,27-May-22,51301790947,"-1,300.00",WOODLANDS CARE CENTRE,CARE ESTABLISHMENT,OP - City & South Locality - Cost of Care,Older People - City & South - Care,Residential Care
Cambridgeshire County Council,27-May-22,51301790947,"-1,300.00",WOODLANDS CARE CENTRE,CARE ESTABLISHMENT,OP - City & South Locality - Cost of Care,Older People - City & South - Care,Residential Care
Cambridgeshire County Council,27-May-22,51301790947,"-1,300.00",WOODLANDS CARE CENTRE,CARE ESTABLISHMENT,OP - City & South Locality - Cost of Care,Older People - City & South - Care,Residential Care
Cambridgeshire County Council,27-May-22,51301790947,"-1,300.00",WOODLANDS CARE CENTRE,CARE ESTABLISHMENT,OP - City & South Locality - Cost of Care,Older People - City & South - Care,Residential Care
Cambridgeshire County Council,27-May-22,51301790947,"-1,300.00",WOODLANDS CARE CENTRE,CARE ESTABLISHMENT,OP - City & South Locality - Cost of Care,Older People - City & South - Care,Residential Care
Cambridgeshire County Council,27-May-22,51301790947,"-1,300.00",WOODLANDS CARE CENTRE,CARE ESTABLISHMENT,OP - City & South Locality - Cost of Care,Older People - City & South - Care,Residential Care
Cambridgeshire County Council,13-May-22,51301782781,"-1,300.00",WOODLANDS CARE CENTRE,CARE ESTABLISHMENT,OP - City & South Locality - Cost of Care,Older People - City & South - Care,Nursing Care
Cambridgeshire County Council,13-May-22,51301782781,"-1,300.00",WOODLANDS CARE CENTRE,CARE ESTABLISHMENT,OP - City & South Locality - Cost of Care,Older People - City & South - Care,Nursing Care
Cambridgeshire County Council,13-May-22,51301782781,"-1,300.00",WOODLANDS CARE CENTRE,CARE ESTABLISHMENT,OP - City & South Locality - Cost of Care,Older People - City & South - Care,Nursing Care
Cambridgeshire County Council,13-May-22,51301782781,"-1,300.00",WOODLANDS CARE CENTRE,CARE ESTABLISHMENT,OP - City & South Locality - Cost of Care,Older People - City & South - Care,Nursing Care
Cambridgeshire County Council,13-May-22,51301782781,"-1,300.00",WOODLANDS CARE CENTRE,CARE ESTABLISHMENT,OP - City & South Locality - Cost of Care,Older People - City & South - Care,Nursing Care
Cambridgeshire County Council,13-May-22,51301782781,"-1,300.00",WOODLANDS CARE CENTRE,CARE ESTABLISHMENT,OP - City & South Locality - Cost of Care,Older People - City & South - Care,Nursing Care
Cambridgeshire County Council,13-May-22,51301782781,"-1,300.00",WOODLANDS CARE CENTRE,CARE ESTABLISHMENT,OP - City & South Locality - Cost of Care,Older People - City & South - Care,Nursing Care
Cambridgeshire County Council,13-May-22,51301784706,"-1,300.00",LONGUEVILLE COURT,CARE ESTABLISHMENT,Physical Disablity - Cost of Care,Countywide PD Service - Care,Nursing Care
Cambridgeshire County Council,13-May-22,51301784706,"-1,300.00",LONGUEVILLE COURT,CARE ESTABLISHMENT,Physical Disablity - Cost of Care,Countywide PD Service - Care,Nursing Care
Cambridgeshire County Council,13-May-22,51301784706,"-1,300.00",LONGUEVILLE COURT,CARE ESTABLISHMENT,Physical Disablity - Cost of Care,Countywide PD Service - Care,Nursing Care
Cambridgeshire County Council,13-May-22,51301784706,"-1,300.00",LONGUEVILLE COURT,CARE ESTABLISHMENT,Physical Disablity - Cost of Care,Countywide PD Service - Care,Nursing Care
Cambridgeshire County Council,13-May-22,51301784706,"-1,300.00",LONGUEVILLE COURT,CARE ESTABLISHMENT,Physical Disablity - Cost of Care,Countywide PD Service - Care,Nursing Care
Cambridgeshire County Council,13-May-22,51301784706,"-1,300.00",LONGUEVILLE COURT,CARE ESTABLISHMENT,Physical Disablity - Cost of Care,Countywide PD Service - Care,Nursing Care
Cambridgeshire County Council,13-May-22,51301784706,"-1,300.00",LONGUEVILLE COURT,CARE ESTABLISHMENT,Physical Disablity - Cost of Care,Countywide PD Service - Care,Nursing Care
Cambridgeshire County Council,13-May-22,51301784564,"-1,284.06",CARE MANAGEMENT GROUP (64-66 CARLTON),CARE ESTABLISHMENT,LD - East Locality - Cost of Care,LD - East Cambs - Care,Residential Care
Cambridgeshire County Council,13-May-22,51301784564,"-1,284.06",CARE MANAGEMENT GROUP (64-66 CARLTON),CARE ESTABLISHMENT,LD - East Locality - Cost of Care,LD - East Cambs - Care,Residential Care
Cambridgeshire County Council,13-May-22,51301784564,"-1,284.06",CARE MANAGEMENT GROUP (64-66 CARLTON),CARE ESTABLISHMENT,LD - East Locality - Cost of Care,LD - East Cambs - Care,Residential Care
Cambridgeshire County Council,13-May-22,51301784564,"-1,284.06",CARE MANAGEMENT GROUP (64-66 CARLTON),CARE ESTABLISHMENT,LD - East Locality - Cost of Care,LD - East Cambs - Care,Residential Care
Cambridgeshire County Council,13-May-22,51301784564,"-1,284.06",CARE MANAGEMENT GROUP (64-66 CARLTON),CARE ESTABLISHMENT,LD - East Locality - Cost of Care,LD - East Cambs - Care,Residential Care
Cambridgeshire County Council,13-May-22,51301784564,"-1,284.06",CARE MANAGEMENT GROUP (64-66 CARLTON),CARE ESTABLISHMENT,LD - East Locality - Cost of Care,LD - East Cambs - Care,Residential Care
Cambridgeshire County Council,13-May-22,51301784564,"-1,284.06",CARE MANAGEMENT GROUP (64-66 CARLTON),CARE ESTABLISHMENT,LD - East Locality - Cost of Care,LD - East Cambs - Care,Residential Care
Cambridgeshire County Council,13-May-22,51301784564,"-1,284.06",CARE MANAGEMENT GROUP (64-66 CARLTON),CARE ESTABLISHMENT,LD - East Locality - Cost of Care,LD - East Cambs - Care,Residential Care
Cambridgeshire County Council,13-May-22,51301784564,"-1,284.06",CARE MANAGEMENT GROUP (64-66 CARLTON),CARE ESTABLISHMENT,LD - East Locality - Cost of Care,LD - East Cambs - Care,Residential Care
Cambridgeshire County Council,13-May-22,51301784564,"-1,284.06",CARE MANAGEMENT GROUP (64-66 CARLTON),CARE ESTABLISHMENT,LD - East Locality - Cost of Care,LD - East Cambs - Care,Residential Care
Cambridgeshire County Council,13-May-22,51301784564,"-1,284.06",CARE MANAGEMENT GROUP (64-66 CARLTON),CARE ESTABLISHMENT,LD - East Locality - Cost of Care,LD - East Cambs - Care,Residential Care
Cambridgeshire County Council,13-May-22,51301784564,"-1,284.06",CARE MANAGEMENT GROUP (64-66 CARLTON),CARE ESTABLISHMENT,LD - East Locality - Cost of Care,LD - East Cambs - Care,Residential Care
Cambridgeshire County Council,13-May-22,51301784564,"-1,284.06",CARE MANAGEMENT GROUP (64-66 CARLTON),CARE ESTABLISHMENT,LD - East Locality - Cost of Care,LD - East Cambs - Care,Residential Care
Cambridgeshire County Council,13-May-22,51301784564,"-1,284.06",CARE MANAGEMENT GROUP (64-66 CARLTON),CARE ESTABLISHMENT,LD - East Locality - Cost of Care,LD - East Cambs - Care,Residential Care
Cambridgeshire County Council,13-May-22,51301784564,"-1,284.06",CARE MANAGEMENT GROUP (64-66 CARLTON),CARE ESTABLISHMENT,LD - East Locality - Cost of Care,LD - East Cambs - Care,Residential Care
Cambridgeshire County Council,13-May-22,51301784564,"-1,284.06",CARE MANAGEMENT GROUP (64-66 CARLTON),CARE ESTABLISHMENT,LD - East Locality - Cost of Care,LD - East Cambs - Care,Residential Care
Cambridgeshire County Council,13-May-22,51301784564,"-1,284.06",CARE MANAGEMENT GROUP (64-66 CARLTON),CARE ESTABLISHMENT,LD - East Locality - Cost of Care,LD - East Cambs - Care,Residential Care
Cambridgeshire County Council,13-May-22,51301784564,"-1,284.06",CARE MANAGEMENT GROUP (64-66 CARLTON),CARE ESTABLISHMENT,LD - East Locality - Cost of Care,LD - East Cambs - Care,Residential Care
Cambridgeshire County Council,13-May-22,51301784564,"-1,284.06",CARE MANAGEMENT GROUP (64-66 CARLTON),CARE ESTABLISHMENT,LD - East Locality - Cost of Care,LD - East Cambs - Care,Residential Care
Cambridgeshire County Council,13-May-22,51301784564,"-1,284.06",CARE MANAGEMENT GROUP (64-66 CARLTON),CARE ESTABLISHMENT,LD - East Locality - Cost of Care,LD - East Cambs - Care,Residential Care
Cambridgeshire County Council,13-May-22,51301784564,"-1,284.06",CARE MANAGEMENT GROUP (64-66 CARLTON),CARE ESTABLISHMENT,LD - East Locality - Cost of Care,LD - East Cambs - Care,Residential Care
Cambridgeshire County Council,13-May-22,51301784564,"-1,284.06",CARE MANAGEMENT GROUP (64-66 CARLTON),CARE ESTABLISHMENT,LD - East Locality - Cost of Care,LD - East Cambs - Care,Residential Care
Cambridgeshire County Council,13-May-22,51301784564,"-1,284.06",CARE MANAGEMENT GROUP (64-66 CARLTON),CARE ESTABLISHMENT,LD - East Locality - Cost of Care,LD - East Cambs - Care,Residential Care
Cambridgeshire County Council,13-May-22,51301784564,"-1,284.06",CARE MANAGEMENT GROUP (64-66 CARLTON),CARE ESTABLISHMENT,LD - East Locality - Cost of Care,LD - East Cambs - Care,Residential Care
Cambridgeshire County Council,13-May-22,51301784564,"-1,284.06",CARE MANAGEMENT GROUP (64-66 CARLTON),CARE ESTABLISHMENT,LD - East Locality - Cost of Care,LD - East Cambs - Care,Residential Care
Cambridgeshire County Council,13-May-22,51301784564,"-1,284.06",CARE MANAGEMENT GROUP (64-66 CARLTON),CARE ESTABLISHMENT,LD - East Locality - Cost of Care,LD - East Cambs - Care,Residential Care
Cambridgeshire County Council,13-May-22,51301784564,"-1,284.06",CARE MANAGEMENT GROUP (64-66 CARLTON),CARE ESTABLISHMENT,LD - East Locality - Cost of Care,LD - East Cambs - Care,Residential Care
Cambridgeshire County Council,13-May-22,51301784564,"-1,284.06",CARE MANAGEMENT GROUP (64-66 CARLTON),CARE ESTABLISHMENT,LD - East Locality - Cost of Care,LD - East Cambs - Care,Residential Care
Cambridgeshire County Council,13-May-22,51301784564,"-1,284.06",CARE MANAGEMENT GROUP (64-66 CARLTON),CARE ESTABLISHMENT,LD - East Locality - Cost of Care,LD - East Cambs - Care,Residential Care
Cambridgeshire County Council,13-May-22,51301784564,"-1,284.06",CARE MANAGEMENT GROUP (64-66 CARLTON),CARE ESTABLISHMENT,LD - East Locality - Cost of Care,LD - East Cambs - Care,Residential Care
Cambridgeshire County Council,13-May-22,51301784564,"-1,284.06",CARE MANAGEMENT GROUP (64-66 CARLTON),CARE ESTABLISHMENT,LD - East Locality - Cost of Care,LD - East Cambs - Care,Residential Care
Cambridgeshire County Council,13-May-22,51301784564,"-1,284.06",CARE MANAGEMENT GROUP (64-66 CARLTON),CARE ESTABLISHMENT,LD - East Locality - Cost of Care,LD - East Cambs - Care,Residential Care
Cambridgeshire County Council,13-May-22,51301784564,"-1,284.06",CARE MANAGEMENT GROUP (64-66 CARLTON),CARE ESTABLISHMENT,LD - East Locality - Cost of Care,LD - East Cambs - Care,Residential Care
Cambridgeshire County Council,13-May-22,51301784564,"-1,284.06",CARE MANAGEMENT GROUP (64-66 CARLTON),CARE ESTABLISHMENT,LD - East Locality - Cost of Care,LD - East Cambs - Care,Residential Care
Cambridgeshire County Council,13-May-22,51301784564,"-1,284.06",CARE MANAGEMENT GROUP (64-66 CARLTON),CARE ESTABLISHMENT,LD - East Locality - Cost of Care,LD - East Cambs - Care,Residential Care
Cambridgeshire County Council,13-May-22,51301784564,"-1,284.06",CARE MANAGEMENT GROUP (64-66 CARLTON),CARE ESTABLISHMENT,LD - East Locality - Cost of Care,LD - East Cambs - Care,Residential Care
Cambridgeshire County Council,13-May-22,51301784564,"-1,284.06",CARE MANAGEMENT GROUP (64-66 CARLTON),CARE ESTABLISHMENT,LD - East Locality - Cost of Care,LD - East Cambs - Care,Residential Care
Cambridgeshire County Council,13-May-22,51301784564,"-1,284.06",CARE MANAGEMENT GROUP (64-66 CARLTON),CARE ESTABLISHMENT,LD - East Locality - Cost of Care,LD - East Cambs - Care,Residential Care
Cambridgeshire County Council,13-May-22,51301784564,"-1,284.06",CARE MANAGEMENT GROUP (64-66 CARLTON),CARE ESTABLISHMENT,LD - East Locality - Cost of Care,LD - East Cambs - Care,Residential Care
Cambridgeshire County Council,13-May-22,51301784564,"-1,284.06",CARE MANAGEMENT GROUP (64-66 CARLTON),CARE ESTABLISHMENT,LD - East Locality - Cost of Care,LD - East Cambs - Care,Residential Care
Cambridgeshire County Council,13-May-22,51301784564,"-1,284.06",CARE MANAGEMENT GROUP (64-66 CARLTON),CARE ESTABLISHMENT,LD - East Locality - Cost of Care,LD - East Cambs - Care,Residential Care
Cambridgeshire County Council,13-May-22,51301784564,"-1,284.06",CARE MANAGEMENT GROUP (64-66 CARLTON),CARE ESTABLISHMENT,LD - East Locality - Cost of Care,LD - East Cambs - Care,Residential Care
Cambridgeshire County Council,13-May-22,51301784564,"-1,284.06",CARE MANAGEMENT GROUP (64-66 CARLTON),CARE ESTABLISHMENT,LD - East Locality - Cost of Care,LD - East Cambs - Care,Residential Care
Cambridgeshire County Council,13-May-22,51301784564,"-1,284.06",CARE MANAGEMENT GROUP (64-66 CARLTON),CARE ESTABLISHMENT,LD - East Locality - Cost of Care,LD - East Cambs - Care,Residential Care
Cambridgeshire County Council,13-May-22,51301784564,"-1,284.06",CARE MANAGEMENT GROUP (64-66 CARLTON),CARE ESTABLISHMENT,LD - East Locality - Cost of Care,LD - East Cambs - Care,Residential Care
Cambridgeshire County Council,13-May-22,51301784564,"-1,284.06",CARE MANAGEMENT GROUP (64-66 CARLTON),CARE ESTABLISHMENT,LD - East Locality - Cost of Care,LD - East Cambs - Care,Residential Care
Cambridgeshire County Council,13-May-22,51301784564,"-1,284.06",CARE MANAGEMENT GROUP (64-66 CARLTON),CARE ESTABLISHMENT,LD - East Locality - Cost of Care,LD - East Cambs - Care,Residential Care
Cambridgeshire County Council,13-May-22,51301784564,"-1,284.06",CARE MANAGEMENT GROUP (64-66 CARLTON),CARE ESTABLISHMENT,LD - East Locality - Cost of Care,LD - East Cambs - Care,Residential Care
Cambridgeshire County Council,13-May-22,51301784564,"-1,284.06",CARE MANAGEMENT GROUP (64-66 CARLTON),CARE ESTABLISHMENT,LD - East Locality - Cost of Care,LD - East Cambs - Care,Residential Care
Cambridgeshire County Council,13-May-22,51301784564,"-1,284.06",CARE MANAGEMENT GROUP (64-66 CARLTON),CARE ESTABLISHMENT,LD - East Locality - Cost of Care,LD - East Cambs - Care,Residential Care
Cambridgeshire County Council,13-May-22,51301784564,"-1,284.06",CARE MANAGEMENT GROUP (64-66 CARLTON),CARE ESTABLISHMENT,LD - East Locality - Cost of Care,LD - East Cambs - Care,Residential Care
Cambridgeshire County Council,13-May-22,51301784564,"-1,284.06",CARE MANAGEMENT GROUP (64-66 CARLTON),CARE ESTABLISHMENT,LD - East Locality - Cost of Care,LD - East Cambs - Care,Residential Care
Cambridgeshire County Council,13-May-22,51301784564,"-1,284.06",CARE MANAGEMENT GROUP (64-66 CARLTON),CARE ESTABLISHMENT,LD - East Locality - Cost of Care,LD - East Cambs - Care,Residential Care
Cambridgeshire County Council,13-May-22,51301784564,"-1,284.06",CARE MANAGEMENT GROUP (64-66 CARLTON),CARE ESTABLISHMENT,LD - East Locality - Cost of Care,LD - East Cambs - Care,Residential Care
Cambridgeshire County Council,13-May-22,51301784564,"-1,284.06",CARE MANAGEMENT GROUP (64-66 CARLTON),CARE ESTABLISHMENT,LD - East Locality - Cost of Care,LD - East Cambs - Care,Residential Care
Cambridgeshire County Council,13-May-22,51301784564,"-1,284.06",CARE MANAGEMENT GROUP (64-66 CARLTON),CARE ESTABLISHMENT,LD - East Locality - Cost of Care,LD - East Cambs - Care,Residential Care
Cambridgeshire County Council,13-May-22,51301784564,"-1,284.06",CARE MANAGEMENT GROUP (64-66 CARLTON),CARE ESTABLISHMENT,LD - East Locality - Cost of Care,LD - East Cambs - Care,Residential Care
Cambridgeshire County Council,13-May-22,51301784564,"-1,284.06",CARE MANAGEMENT GROUP (64-66 CARLTON),CARE ESTABLISHMENT,LD - East Locality - Cost of Care,LD - East Cambs - Care,Residential Care
Cambridgeshire County Council,13-May-22,51301784143,"-1,258.40",HC-ONE,CARE ESTABLISHMENT,Physical Disablity - Cost of Care,Countywide PD Service - Care,Nursing Care
Cambridgeshire County Council,13-May-22,51301784143,"-1,258.40",HC-ONE,CARE ESTABLISHMENT,Physical Disablity - Cost of Care,Countywide PD Service - Care,Nursing Care
Cambridgeshire County Council,13-May-22,51301784143,"-1,258.40",HC-ONE,CARE ESTABLISHMENT,Physical Disablity - Cost of Care,Countywide PD Service - Care,Nursing Care
Cambridgeshire County Council,13-May-22,51301784143,"-1,258.40",HC-ONE,CARE ESTABLISHMENT,Physical Disablity - Cost of Care,Countywide PD Service - Care,Nursing Care
Cambridgeshire County Council,13-May-22,51301784143,"-1,258.40",HC-ONE,CARE ESTABLISHMENT,Physical Disablity - Cost of Care,Countywide PD Service - Care,Nursing Care
Cambridgeshire County Council,13-May-22,51301784143,"-1,258.40",HC-ONE,CARE ESTABLISHMENT,Physical Disablity - Cost of Care,Countywide PD Service - Care,Nursing Care
Cambridgeshire County Council,13-May-22,51301784143,"-1,258.40",HC-ONE,CARE ESTABLISHMENT,Physical Disablity - Cost of Care,Countywide PD Service - Care,Nursing Care
Cambridgeshire County Council,13-May-22,51301782561,"-1,257.70",THE MANOR CHESHIRE HOME,CARE ESTABLISHMENT,Physical Disablity - Cost of Care,Countywide PD Service - Care,Residential Care
Cambridgeshire County Council,13-May-22,51301782561,"-1,257.70",THE MANOR CHESHIRE HOME,CARE ESTABLISHMENT,Physical Disablity - Cost of Care,Countywide PD Service - Care,Residential Care
Cambridgeshire County Council,13-May-22,51301782561,"-1,257.70",THE MANOR CHESHIRE HOME,CARE ESTABLISHMENT,Physical Disablity - Cost of Care,Countywide PD Service - Care,Residential Care
Cambridgeshire County Council,13-May-22,51301782561,"-1,257.70",THE MANOR CHESHIRE HOME,CARE ESTABLISHMENT,Physical Disablity - Cost of Care,Countywide PD Service - Care,Residential Care
Cambridgeshire County Council,13-May-22,51301782561,"-1,257.70",THE MANOR CHESHIRE HOME,CARE ESTABLISHMENT,Physical Disablity - Cost of Care,Countywide PD Service - Care,Residential Care
Cambridgeshire County Council,13-May-22,51301782561,"-1,257.70",THE MANOR CHESHIRE HOME,CARE ESTABLISHMENT,Physical Disablity - Cost of Care,Countywide PD Service - Care,Residential Care
Cambridgeshire County Council,13-May-22,51301782561,"-1,257.70",THE MANOR CHESHIRE HOME,CARE ESTABLISHMENT,Physical Disablity - Cost of Care,Countywide PD Service - Care,Residential Care
Cambridgeshire County Council,13-May-22,51301783412,"-1,251.14",VOYAGE,CARE ESTABLISHMENT,LD - South Locality - Cost of Care,LD - South Cambs - Care,Supported Living
Cambridgeshire County Council,13-May-22,51301783412,"-1,251.14",VOYAGE,CARE ESTABLISHMENT,LD - South Locality - Cost of Care,LD - South Cambs - Care,Supported Living
Cambridgeshire County Council,13-May-22,51301783412,"-1,251.14",VOYAGE,CARE ESTABLISHMENT,LD - South Locality - Cost of Care,LD - South Cambs - Care,Supported Living
Cambridgeshire County Council,11-May-22,51301778068,"-1,228.26",Careuk247 Home Care Ltd,COMPANY,OPMH - City & South,Older People Mental Health City & South,Domiciliary Care
Cambridgeshire County Council,13-May-22,51301782498,"-1,225.71",THE GABLES SPECIALIST NURSING HOME,CARE ESTABLISHMENT,OP - Fenland Blocks,Fenland - Long term blocks,Nursing Care
Cambridgeshire County Council,13-May-22,51301784701,"-1,216.18",CHERRY HINTON NURSING HOME,CARE ESTABLISHMENT,OP - City & South Locality - Cost of Care,Older People - City & South - Care,Nursing Care
Cambridgeshire County Council,13-May-22,51301784701,"-1,216.18",CHERRY HINTON NURSING HOME,CARE ESTABLISHMENT,OP - City & South Locality - Cost of Care,Older People - City & South - Care,Nursing Care
Cambridgeshire County Council,13-May-22,51301784701,"-1,216.18",CHERRY HINTON NURSING HOME,CARE ESTABLISHMENT,OP - City & South Locality - Cost of Care,Older People - City & South - Care,Nursing Care
Cambridgeshire County Council,13-May-22,51301784701,"-1,216.18",CHERRY HINTON NURSING HOME,CARE ESTABLISHMENT,OP - City & South Locality - Cost of Care,Older People - City & South - Care,Nursing Care
Cambridgeshire County Council,13-May-22,51301784701,"-1,216.18",CHERRY HINTON NURSING HOME,CARE ESTABLISHMENT,OP - City & South Locality - Cost of Care,Older People - City & South - Care,Nursing Care
Cambridgeshire County Council,13-May-22,51301784701,"-1,216.18",CHERRY HINTON NURSING HOME,CARE ESTABLISHMENT,OP - City & South Locality - Cost of Care,Older People - City & South - Care,Nursing Care
Cambridgeshire County Council,13-May-22,51301784701,"-1,216.18",CHERRY HINTON NURSING HOME,CARE ESTABLISHMENT,OP - City & South Locality - Cost of Care,Older People - City & South - Care,Nursing Care
Cambridgeshire County Council,27-May-22,51301790433,"-1,212.40",OAKLANDS CARE HOME,CARE ESTABLISHMENT,OP - City & South Locality - Cost of Care,Older People - City & South - Care,Nursing Care
Cambridgeshire County Council,27-May-22,51301790433,"-1,212.40",OAKLANDS CARE HOME,CARE ESTABLISHMENT,OP - City & South Locality - Cost of Care,Older People - City & South - Care,Nursing Care
Cambridgeshire County Council,27-May-22,51301790433,"-1,212.40",OAKLANDS CARE HOME,CARE ESTABLISHMENT,OP - City & South Locality - Cost of Care,Older People - City & South - Care,Nursing Care
Cambridgeshire County Council,27-May-22,51301790433,"-1,212.40",OAKLANDS CARE HOME,CARE ESTABLISHMENT,OP - City & South Locality - Cost of Care,Older People - City & South - Care,Nursing Care
Cambridgeshire County Council,27-May-22,51301790433,"-1,212.40",OAKLANDS CARE HOME,CARE ESTABLISHMENT,OP - City & South Locality - Cost of Care,Older People - City & South - Care,Nursing Care
Cambridgeshire County Council,27-May-22,51301790433,"-1,212.40",OAKLANDS CARE HOME,CARE ESTABLISHMENT,OP - City & South Locality - Cost of Care,Older People - City & South - Care,Nursing Care
Cambridgeshire County Council,27-May-22,51301790433,"-1,212.40",OAKLANDS CARE HOME,CARE ESTABLISHMENT,OP - City & South Locality - Cost of Care,Older People - City & South - Care,Nursing Care
Cambridgeshire County Council,27-May-22,51301790433,"-1,212.40",OAKLANDS CARE HOME,CARE ESTABLISHMENT,OP - City & South Locality - Cost of Care,Older People - City & South - Care,Nursing Care
Cambridgeshire County Council,27-May-22,51301790433,"-1,212.40",OAKLANDS CARE HOME,CARE ESTABLISHMENT,OP - City & South Locality - Cost of Care,Older People - City & South - Care,Nursing Care
Cambridgeshire County Council,27-May-22,51301790433,"-1,212.40",OAKLANDS CARE HOME,CARE ESTABLISHMENT,OP - City & South Locality - Cost of Care,Older People - City & South - Care,Nursing Care
Cambridgeshire County Council,27-May-22,51301790433,"-1,212.40",OAKLANDS CARE HOME,CARE ESTABLISHMENT,OP - City & South Locality - Cost of Care,Older People - City & South - Care,Nursing Care
Cambridgeshire County Council,27-May-22,51301790433,"-1,212.40",OAKLANDS CARE HOME,CARE ESTABLISHMENT,OP - City & South Locality - Cost of Care,Older People - City & South - Care,Nursing Care
Cambridgeshire County Council,13-May-22,51301782752,"-1,200.00",BRAMLEY COURT,CARE ESTABLISHMENT,OP - City & South Locality - Cost of Care,Older People - City & South - Care,Nursing Care
Cambridgeshire County Council,13-May-22,51301782752,"-1,200.00",BRAMLEY COURT,CARE ESTABLISHMENT,OP - City & South Locality - Cost of Care,Older People - City & South - Care,Nursing Care
Cambridgeshire County Council,13-May-22,51301782752,"-1,200.00",BRAMLEY COURT,CARE ESTABLISHMENT,OP - City & South Locality - Cost of Care,Older People - City & South - Care,Nursing Care
Cambridgeshire County Council,13-May-22,51301782752,"-1,200.00",BRAMLEY COURT,CARE ESTABLISHMENT,OP - City & South Locality - Cost of Care,Older People - City & South - Care,Nursing Care
Cambridgeshire County Council,13-May-22,51301782752,"-1,200.00",BRAMLEY COURT,CARE ESTABLISHMENT,OP - City & South Locality - Cost of Care,Older People - City & South - Care,Nursing Care
Cambridgeshire County Council,13-May-22,51301782752,"-1,200.00",BRAMLEY COURT,CARE ESTABLISHMENT,OP - City & South Locality - Cost of Care,Older People - City & South - Care,Nursing Care
Cambridgeshire County Council,13-May-22,51301782752,"-1,200.00",BRAMLEY COURT,CARE ESTABLISHMENT,OP - City & South Locality - Cost of Care,Older People - City & South - Care,Nursing Care
Cambridgeshire County Council,27-May-22,51301790958,"-1,200.00",WOODLANDS CARE CENTRE,CARE ESTABLISHMENT,OP - City & South Locality - Cost of Care,Older People - City & South - Care,Nursing Care
Cambridgeshire County Council,27-May-22,51301790958,"-1,200.00",WOODLANDS CARE CENTRE,CARE ESTABLISHMENT,OP - City & South Locality - Cost of Care,Older People - City & South - Care,Nursing Care
Cambridgeshire County Council,27-May-22,51301790958,"-1,200.00",WOODLANDS CARE CENTRE,CARE ESTABLISHMENT,OP - City & South Locality - Cost of Care,Older People - City & South - Care,Nursing Care
Cambridgeshire County Council,27-May-22,51301790958,"-1,200.00",WOODLANDS CARE CENTRE,CARE ESTABLISHMENT,OP - City & South Locality - Cost of Care,Older People - City & South - Care,Nursing Care
Cambridgeshire County Council,27-May-22,51301790958,"-1,200.00",WOODLANDS CARE CENTRE,CARE ESTABLISHMENT,OP - City & South Locality - Cost of Care,Older People - City & South - Care,Nursing Care
Cambridgeshire County Council,27-May-22,51301790958,"-1,200.00",WOODLANDS CARE CENTRE,CARE ESTABLISHMENT,OP - City & South Locality - Cost of Care,Older People - City & South - Care,Nursing Care
Cambridgeshire County Council,27-May-22,51301790958,"-1,200.00",WOODLANDS CARE CENTRE,CARE ESTABLISHMENT,OP - City & South Locality - Cost of Care,Older People - City & South - Care,Nursing Care
Cambridgeshire County Council,27-May-22,51301790958,"-1,200.00",WOODLANDS CARE CENTRE,CARE ESTABLISHMENT,OP - City & South Locality - Cost of Care,Older People - City & South - Care,Nursing Care
Cambridgeshire County Council,27-May-22,51301790958,"-1,200.00",WOODLANDS CARE CENTRE,CARE ESTABLISHMENT,OP - City & South Locality - Cost of Care,Older People - City & South - Care,Nursing Care
Cambridgeshire County Council,27-May-22,51301790958,"-1,200.00",WOODLANDS CARE CENTRE,CARE ESTABLISHMENT,OP - City & South Locality - Cost of Care,Older People - City & South - Care,Nursing Care
Cambridgeshire County Council,27-May-22,51301790958,"-1,200.00",WOODLANDS CARE CENTRE,CARE ESTABLISHMENT,OP - City & South Locality - Cost of Care,Older People - City & South - Care,Nursing Care
Cambridgeshire County Council,13-May-22,51301782617,"-1,200.00",BARCHESTER HEALTHCARE HOMES LTD,CARE ESTABLISHMENT,OP - East Cambs Locality - Cost of Care,East Cambs - O P Team - Care,Residential Care
Cambridgeshire County Council,13-May-22,51301782617,"-1,200.00",BARCHESTER HEALTHCARE HOMES LTD,CARE ESTABLISHMENT,OP - East Cambs Locality - Cost of Care,East Cambs - O P Team - Care,Residential Care
Cambridgeshire County Council,13-May-22,51301782617,"-1,200.00",BARCHESTER HEALTHCARE HOMES LTD,CARE ESTABLISHMENT,OP - East Cambs Locality - Cost of Care,East Cambs - O P Team - Care,Residential Care
Cambridgeshire County Council,13-May-22,51301782617,"-1,200.00",BARCHESTER HEALTHCARE HOMES LTD,CARE ESTABLISHMENT,OP - East Cambs Locality - Cost of Care,East Cambs - O P Team - Care,Residential Care
Cambridgeshire County Council,13-May-22,51301782617,"-1,200.00",BARCHESTER HEALTHCARE HOMES LTD,CARE ESTABLISHMENT,OP - East Cambs Locality - Cost of Care,East Cambs - O P Team - Care,Residential Care
Cambridgeshire County Council,13-May-22,51301782617,"-1,200.00",BARCHESTER HEALTHCARE HOMES LTD,CARE ESTABLISHMENT,OP - East Cambs Locality - Cost of Care,East Cambs - O P Team - Care,Residential Care
Cambridgeshire County Council,13-May-22,51301782617,"-1,200.00",BARCHESTER HEALTHCARE HOMES LTD,CARE ESTABLISHMENT,OP - East Cambs Locality - Cost of Care,East Cambs - O P Team - Care,Residential Care
Cambridgeshire County Council,13-May-22,51301782617,"-1,200.00",BARCHESTER HEALTHCARE HOMES LTD,CARE ESTABLISHMENT,OP - East Cambs Locality - Cost of Care,East Cambs - O P Team - Care,Residential Care
Cambridgeshire County Council,13-May-22,51301782617,"-1,200.00",BARCHESTER HEALTHCARE HOMES LTD,CARE ESTABLISHMENT,OP - East Cambs Locality - Cost of Care,East Cambs - O P Team - Care,Residential Care
Cambridgeshire County Council,13-May-22,51301783700,"-1,197.88",AUGUSTA CARE LTD,CARE ESTABLISHMENT,LD - South Locality - Cost of Care,LD - South Cambs - Care,Supported Living
Cambridgeshire County Council,13-May-22,51301783700,"-1,197.88",AUGUSTA CARE LTD,CARE ESTABLISHMENT,LD - South Locality - Cost of Care,LD - South Cambs - Care,Supported Living
Cambridgeshire County Council,13-May-22,51301783700,"-1,197.88",AUGUSTA CARE LTD,CARE ESTABLISHMENT,LD - South Locality - Cost of Care,LD - South Cambs - Care,Supported Living
Cambridgeshire County Council,13-May-22,51301783700,"-1,197.88",AUGUSTA CARE LTD,CARE ESTABLISHMENT,LD - South Locality - Cost of Care,LD - South Cambs - Care,Supported Living
Cambridgeshire County Council,13-May-22,51301783700,"-1,197.88",AUGUSTA CARE LTD,CARE ESTABLISHMENT,LD - South Locality - Cost of Care,LD - South Cambs - Care,Supported Living
Cambridgeshire County Council,13-May-22,51301783700,"-1,197.88",AUGUSTA CARE LTD,CARE ESTABLISHMENT,LD - South Locality - Cost of Care,LD - South Cambs - Care,Supported Living
Cambridgeshire County Council,13-May-22,51301783700,"-1,197.88",AUGUSTA CARE LTD,CARE ESTABLISHMENT,LD - South Locality - Cost of Care,LD - South Cambs - Care,Supported Living
Cambridgeshire County Council,03-May-22,51301773487,"-1,188.40",SEEABILITY (DENECROFT),CARE ESTABLISHMENT,LD - Hunts Locality - Cost of Care,LD - Huntingdonshire - Care,Residential Care
Cambridgeshire County Council,03-May-22,51301773487,"-1,188.40",SEEABILITY (DENECROFT),CARE ESTABLISHMENT,LD - Hunts Locality - Cost of Care,LD - Huntingdonshire - Care,Residential Care
Cambridgeshire County Council,03-May-22,51301773487,"-1,188.40",SEEABILITY (DENECROFT),CARE ESTABLISHMENT,LD - Hunts Locality - Cost of Care,LD - Huntingdonshire - Care,Residential Care
Cambridgeshire County Council,03-May-22,51301773487,"-1,188.40",SEEABILITY (DENECROFT),CARE ESTABLISHMENT,LD - Hunts Locality - Cost of Care,LD - Huntingdonshire - Care,Residential Care
Cambridgeshire County Council,03-May-22,51301773487,"-1,188.40",SEEABILITY (DENECROFT),CARE ESTABLISHMENT,LD - Hunts Locality - Cost of Care,LD - Huntingdonshire - Care,Residential Care
Cambridgeshire County Council,03-May-22,51301773487,"-1,188.40",SEEABILITY (DENECROFT),CARE ESTABLISHMENT,LD - Hunts Locality - Cost of Care,LD - Huntingdonshire - Care,Residential Care
Cambridgeshire County Council,03-May-22,51301773487,"-1,188.40",SEEABILITY (DENECROFT),CARE ESTABLISHMENT,LD - Hunts Locality - Cost of Care,LD - Huntingdonshire - Care,Residential Care
Cambridgeshire County Council,03-May-22,51301773487,"-1,188.40",SEEABILITY (DENECROFT),CARE ESTABLISHMENT,LD - Hunts Locality - Cost of Care,LD - Huntingdonshire - Care,Residential Care
Cambridgeshire County Council,03-May-22,51301773487,"-1,188.40",SEEABILITY (DENECROFT),CARE ESTABLISHMENT,LD - Hunts Locality - Cost of Care,LD - Huntingdonshire - Care,Residential Care
Cambridgeshire County Council,03-May-22,51301773487,"-1,188.40",SEEABILITY (DENECROFT),CARE ESTABLISHMENT,LD - Hunts Locality - Cost of Care,LD - Huntingdonshire - Care,Residential Care
Cambridgeshire County Council,03-May-22,51301773487,"-1,188.40",SEEABILITY (DENECROFT),CARE ESTABLISHMENT,LD - Hunts Locality - Cost of Care,LD - Huntingdonshire - Care,Residential Care
Cambridgeshire County Council,03-May-22,51301773487,"-1,188.40",SEEABILITY (DENECROFT),CARE ESTABLISHMENT,LD - Hunts Locality - Cost of Care,LD - Huntingdonshire - Care,Residential Care
Cambridgeshire County Council,03-May-22,51301773487,"-1,188.40",SEEABILITY (DENECROFT),CARE ESTABLISHMENT,LD - Hunts Locality - Cost of Care,LD - Huntingdonshire - Care,Residential Care
Cambridgeshire County Council,03-May-22,51301773487,"-1,188.40",SEEABILITY (DENECROFT),CARE ESTABLISHMENT,LD - Hunts Locality - Cost of Care,LD - Huntingdonshire - Care,Residential Care
Cambridgeshire County Council,03-May-22,51301773487,"-1,188.40",SEEABILITY (DENECROFT),CARE ESTABLISHMENT,LD - Hunts Locality - Cost of Care,LD - Huntingdonshire - Care,Residential Care
Cambridgeshire County Council,03-May-22,51301773487,"-1,188.40",SEEABILITY (DENECROFT),CARE ESTABLISHMENT,LD - Hunts Locality - Cost of Care,LD - Huntingdonshire - Care,Residential Care
Cambridgeshire County Council,03-May-22,51301773487,"-1,188.40",SEEABILITY (DENECROFT),CARE ESTABLISHMENT,LD - Hunts Locality - Cost of Care,LD - Huntingdonshire - Care,Residential Care
Cambridgeshire County Council,03-May-22,51301773487,"-1,188.40",SEEABILITY (DENECROFT),CARE ESTABLISHMENT,LD - Hunts Locality - Cost of Care,LD - Huntingdonshire - Care,Residential Care
Cambridgeshire County Council,03-May-22,51301773487,"-1,188.40",SEEABILITY (DENECROFT),CARE ESTABLISHMENT,LD - Hunts Locality - Cost of Care,LD - Huntingdonshire - Care,Residential Care
Cambridgeshire County Council,03-May-22,51301773487,"-1,188.40",SEEABILITY (DENECROFT),CARE ESTABLISHMENT,LD - Hunts Locality - Cost of Care,LD - Huntingdonshire - Care,Residential Care
Cambridgeshire County Council,03-May-22,51301773487,"-1,188.40",SEEABILITY (DENECROFT),CARE ESTABLISHMENT,LD - Hunts Locality - Cost of Care,LD - Huntingdonshire - Care,Residential Care
Cambridgeshire County Council,03-May-22,51301773487,"-1,188.40",SEEABILITY (DENECROFT),CARE ESTABLISHMENT,LD - Hunts Locality - Cost of Care,LD - Huntingdonshire - Care,Residential Care
Cambridgeshire County Council,03-May-22,51301773487,"-1,188.40",SEEABILITY (DENECROFT),CARE ESTABLISHMENT,LD - Hunts Locality - Cost of Care,LD - Huntingdonshire - Care,Residential Care
Cambridgeshire County Council,03-May-22,51301773487,"-1,188.40",SEEABILITY (DENECROFT),CARE ESTABLISHMENT,LD - Hunts Locality - Cost of Care,LD - Huntingdonshire - Care,Residential Care
Cambridgeshire County Council,03-May-22,51301773487,"-1,188.40",SEEABILITY (DENECROFT),CARE ESTABLISHMENT,LD - Hunts Locality - Cost of Care,LD - Huntingdonshire - Care,Residential Care
Cambridgeshire County Council,03-May-22,51301773487,"-1,188.40",SEEABILITY (DENECROFT),CARE ESTABLISHMENT,LD - Hunts Locality - Cost of Care,LD - Huntingdonshire - Care,Residential Care
Cambridgeshire County Council,03-May-22,51301773487,"-1,188.40",SEEABILITY (DENECROFT),CARE ESTABLISHMENT,LD - Hunts Locality - Cost of Care,LD - Huntingdonshire - Care,Residential Care
Cambridgeshire County Council,03-May-22,51301773487,"-1,188.40",SEEABILITY (DENECROFT),CARE ESTABLISHMENT,LD - Hunts Locality - Cost of Care,LD - Huntingdonshire - Care,Residential Care
Cambridgeshire County Council,03-May-22,51301773487,"-1,188.40",SEEABILITY (DENECROFT),CARE ESTABLISHMENT,LD - Hunts Locality - Cost of Care,LD - Huntingdonshire - Care,Residential Care
Cambridgeshire County Council,03-May-22,51301773487,"-1,188.40",SEEABILITY (DENECROFT),CARE ESTABLISHMENT,LD - Hunts Locality - Cost of Care,LD - Huntingdonshire - Care,Residential Care
Cambridgeshire County Council,03-May-22,51301773487,"-1,188.40",SEEABILITY (DENECROFT),CARE ESTABLISHMENT,LD - Hunts Locality - Cost of Care,LD - Huntingdonshire - Care,Residential Care
Cambridgeshire County Council,03-May-22,51301773487,"-1,188.40",SEEABILITY (DENECROFT),CARE ESTABLISHMENT,LD - Hunts Locality - Cost of Care,LD - Huntingdonshire - Care,Residential Care
Cambridgeshire County Council,03-May-22,51301773487,"-1,188.40",SEEABILITY (DENECROFT),CARE ESTABLISHMENT,LD - Hunts Locality - Cost of Care,LD - Huntingdonshire - Care,Residential Care
Cambridgeshire County Council,03-May-22,51301773487,"-1,188.40",SEEABILITY (DENECROFT),CARE ESTABLISHMENT,LD - Hunts Locality - Cost of Care,LD - Huntingdonshire - Care,Residential Care
Cambridgeshire County Council,03-May-22,51301773487,"-1,188.40",SEEABILITY (DENECROFT),CARE ESTABLISHMENT,LD - Hunts Locality - Cost of Care,LD - Huntingdonshire - Care,Residential Care
Cambridgeshire County Council,03-May-22,51301773487,"-1,188.40",SEEABILITY (DENECROFT),CARE ESTABLISHMENT,LD - Hunts Locality - Cost of Care,LD - Huntingdonshire - Care,Residential Care
Cambridgeshire County Council,03-May-22,51301773487,"-1,188.40",SEEABILITY (DENECROFT),CARE ESTABLISHMENT,LD - Hunts Locality - Cost of Care,LD - Huntingdonshire - Care,Residential Care
Cambridgeshire County Council,03-May-22,51301773487,"-1,188.40",SEEABILITY (DENECROFT),CARE ESTABLISHMENT,LD - Hunts Locality - Cost of Care,LD - Huntingdonshire - Care,Residential Care
Cambridgeshire County Council,03-May-22,51301773487,"-1,188.40",SEEABILITY (DENECROFT),CARE ESTABLISHMENT,LD - Hunts Locality - Cost of Care,LD - Huntingdonshire - Care,Residential Care
Cambridgeshire County Council,03-May-22,51301773487,"-1,188.40",SEEABILITY (DENECROFT),CARE ESTABLISHMENT,LD - Hunts Locality - Cost of Care,LD - Huntingdonshire - Care,Residential Care
Cambridgeshire County Council,03-May-22,51301773487,"-1,188.40",SEEABILITY (DENECROFT),CARE ESTABLISHMENT,LD - Hunts Locality - Cost of Care,LD - Huntingdonshire - Care,Residential Care
Cambridgeshire County Council,03-May-22,51301773487,"-1,188.40",SEEABILITY (DENECROFT),CARE ESTABLISHMENT,LD - Hunts Locality - Cost of Care,LD - Huntingdonshire - Care,Residential Care
Cambridgeshire County Council,03-May-22,51301773487,"-1,188.40",SEEABILITY (DENECROFT),CARE ESTABLISHMENT,LD - Hunts Locality - Cost of Care,LD - Huntingdonshire - Care,Residential Care
Cambridgeshire County Council,03-May-22,51301773487,"-1,188.40",SEEABILITY (DENECROFT),CARE ESTABLISHMENT,LD - Hunts Locality - Cost of Care,LD - Huntingdonshire - Care,Residential Care
Cambridgeshire County Council,03-May-22,51301773487,"-1,188.40",SEEABILITY (DENECROFT),CARE ESTABLISHMENT,LD - Hunts Locality - Cost of Care,LD - Huntingdonshire - Care,Residential Care
Cambridgeshire County Council,03-May-22,51301773487,"-1,188.40",SEEABILITY (DENECROFT),CARE ESTABLISHMENT,LD - Hunts Locality - Cost of Care,LD - Huntingdonshire - Care,Residential Care
Cambridgeshire County Council,03-May-22,51301773487,"-1,188.40",SEEABILITY (DENECROFT),CARE ESTABLISHMENT,LD - Hunts Locality - Cost of Care,LD - Huntingdonshire - Care,Residential Care
Cambridgeshire County Council,03-May-22,51301773487,"-1,188.40",SEEABILITY (DENECROFT),CARE ESTABLISHMENT,LD - Hunts Locality - Cost of Care,LD - Huntingdonshire - Care,Residential Care
Cambridgeshire County Council,03-May-22,51301773487,"-1,188.40",SEEABILITY (DENECROFT),CARE ESTABLISHMENT,LD - Hunts Locality - Cost of Care,LD - Huntingdonshire - Care,Residential Care
Cambridgeshire County Council,03-May-22,51301773487,"-1,188.40",SEEABILITY (DENECROFT),CARE ESTABLISHMENT,LD - Hunts Locality - Cost of Care,LD - Huntingdonshire - Care,Residential Care
Cambridgeshire County Council,03-May-22,51301773487,"-1,188.40",SEEABILITY (DENECROFT),CARE ESTABLISHMENT,LD - Hunts Locality - Cost of Care,LD - Huntingdonshire - Care,Residential Care
Cambridgeshire County Council,03-May-22,51301773487,"-1,188.40",SEEABILITY (DENECROFT),CARE ESTABLISHMENT,LD - Hunts Locality - Cost of Care,LD - Huntingdonshire - Care,Residential Care
Cambridgeshire County Council,03-May-22,51301773487,"-1,188.40",SEEABILITY (DENECROFT),CARE ESTABLISHMENT,LD - Hunts Locality - Cost of Care,LD - Huntingdonshire - Care,Residential Care
Cambridgeshire County Council,03-May-22,51301773487,"-1,188.40",SEEABILITY (DENECROFT),CARE ESTABLISHMENT,LD - Hunts Locality - Cost of Care,LD - Huntingdonshire - Care,Residential Care
Cambridgeshire County Council,03-May-22,51301773487,"-1,188.40",SEEABILITY (DENECROFT),CARE ESTABLISHMENT,LD - Hunts Locality - Cost of Care,LD - Huntingdonshire - Care,Residential Care
Cambridgeshire County Council,03-May-22,51301773487,"-1,188.40",SEEABILITY (DENECROFT),CARE ESTABLISHMENT,LD - Hunts Locality - Cost of Care,LD - Huntingdonshire - Care,Residential Care
Cambridgeshire County Council,03-May-22,51301773487,"-1,188.40",SEEABILITY (DENECROFT),CARE ESTABLISHMENT,LD - Hunts Locality - Cost of Care,LD - Huntingdonshire - Care,Residential Care
Cambridgeshire County Council,03-May-22,51301773487,"-1,188.40",SEEABILITY (DENECROFT),CARE ESTABLISHMENT,LD - Hunts Locality - Cost of Care,LD - Huntingdonshire - Care,Residential Care
Cambridgeshire County Council,03-May-22,51301773487,"-1,188.40",SEEABILITY (DENECROFT),CARE ESTABLISHMENT,LD - Hunts Locality - Cost of Care,LD - Huntingdonshire - Care,Residential Care
Cambridgeshire County Council,13-May-22,51301772738,"-1,175.00",CAMBRIDGE MANOR CARE HOME (TLC),CARE ESTABLISHMENT,OP - City & South Locality - Cost of Care,Older People - City & South - Care,Nursing Care
Cambridgeshire County Council,13-May-22,51301772738,"-1,175.00",CAMBRIDGE MANOR CARE HOME (TLC),CARE ESTABLISHMENT,OP - City & South Locality - Cost of Care,Older People - City & South - Care,Nursing Care
Cambridgeshire County Council,13-May-22,51301772738,"-1,175.00",CAMBRIDGE MANOR CARE HOME (TLC),CARE ESTABLISHMENT,OP - City & South Locality - Cost of Care,Older People - City & South - Care,Nursing Care
Cambridgeshire County Council,03-May-22,51301773487,"-1,167.96",SEEABILITY (DENECROFT),CARE ESTABLISHMENT,LD - Hunts Locality - Cost of Care,LD - Huntingdonshire - Care,Residential Care
Cambridgeshire County Council,03-May-22,51301773487,"-1,167.96",SEEABILITY (DENECROFT),CARE ESTABLISHMENT,LD - Hunts Locality - Cost of Care,LD - Huntingdonshire - Care,Residential Care
Cambridgeshire County Council,03-May-22,51301773487,"-1,167.96",SEEABILITY (DENECROFT),CARE ESTABLISHMENT,LD - Hunts Locality - Cost of Care,LD - Huntingdonshire - Care,Residential Care
Cambridgeshire County Council,03-May-22,51301773487,"-1,167.96",SEEABILITY (DENECROFT),CARE ESTABLISHMENT,LD - Hunts Locality - Cost of Care,LD - Huntingdonshire - Care,Residential Care
Cambridgeshire County Council,03-May-22,51301773487,"-1,167.96",SEEABILITY (DENECROFT),CARE ESTABLISHMENT,LD - Hunts Locality - Cost of Care,LD - Huntingdonshire - Care,Residential Care
Cambridgeshire County Council,03-May-22,51301773487,"-1,167.96",SEEABILITY (DENECROFT),CARE ESTABLISHMENT,LD - Hunts Locality - Cost of Care,LD - Huntingdonshire - Care,Residential Care
Cambridgeshire County Council,03-May-22,51301773487,"-1,167.96",SEEABILITY (DENECROFT),CARE ESTABLISHMENT,LD - Hunts Locality - Cost of Care,LD - Huntingdonshire - Care,Residential Care
Cambridgeshire County Council,03-May-22,51301773487,"-1,167.96",SEEABILITY (DENECROFT),CARE ESTABLISHMENT,LD - Hunts Locality - Cost of Care,LD - Huntingdonshire - Care,Residential Care
Cambridgeshire County Council,03-May-22,51301773487,"-1,167.96",SEEABILITY (DENECROFT),CARE ESTABLISHMENT,LD - Hunts Locality - Cost of Care,LD - Huntingdonshire - Care,Residential Care
Cambridgeshire County Council,03-May-22,51301773487,"-1,167.96",SEEABILITY (DENECROFT),CARE ESTABLISHMENT,LD - Hunts Locality - Cost of Care,LD - Huntingdonshire - Care,Residential Care
Cambridgeshire County Council,03-May-22,51301773487,"-1,167.96",SEEABILITY (DENECROFT),CARE ESTABLISHMENT,LD - Hunts Locality - Cost of Care,LD - Huntingdonshire - Care,Residential Care
Cambridgeshire County Council,03-May-22,51301773487,"-1,167.96",SEEABILITY (DENECROFT),CARE ESTABLISHMENT,LD - Hunts Locality - Cost of Care,LD - Huntingdonshire - Care,Residential Care
Cambridgeshire County Council,03-May-22,51301773487,"-1,167.96",SEEABILITY (DENECROFT),CARE ESTABLISHMENT,LD - Hunts Locality - Cost of Care,LD - Huntingdonshire - Care,Residential Care
Cambridgeshire County Council,03-May-22,51301773487,"-1,167.96",SEEABILITY (DENECROFT),CARE ESTABLISHMENT,LD - Hunts Locality - Cost of Care,LD - Huntingdonshire - Care,Residential Care
Cambridgeshire County Council,03-May-22,51301773487,"-1,167.96",SEEABILITY (DENECROFT),CARE ESTABLISHMENT,LD - Hunts Locality - Cost of Care,LD - Huntingdonshire - Care,Residential Care
Cambridgeshire County Council,03-May-22,51301773487,"-1,167.96",SEEABILITY (DENECROFT),CARE ESTABLISHMENT,LD - Hunts Locality - Cost of Care,LD - Huntingdonshire - Care,Residential Care
Cambridgeshire County Council,03-May-22,51301773487,"-1,167.96",SEEABILITY (DENECROFT),CARE ESTABLISHMENT,LD - Hunts Locality - Cost of Care,LD - Huntingdonshire - Care,Residential Care
Cambridgeshire County Council,03-May-22,51301773487,"-1,167.96",SEEABILITY (DENECROFT),CARE ESTABLISHMENT,LD - Hunts Locality - Cost of Care,LD - Huntingdonshire - Care,Residential Care
Cambridgeshire County Council,03-May-22,51301773487,"-1,167.96",SEEABILITY (DENECROFT),CARE ESTABLISHMENT,LD - Hunts Locality - Cost of Care,LD - Huntingdonshire - Care,Residential Care
Cambridgeshire County Council,03-May-22,51301773487,"-1,167.96",SEEABILITY (DENECROFT),CARE ESTABLISHMENT,LD - Hunts Locality - Cost of Care,LD - Huntingdonshire - Care,Residential Care
Cambridgeshire County Council,03-May-22,51301773487,"-1,167.96",SEEABILITY (DENECROFT),CARE ESTABLISHMENT,LD - Hunts Locality - Cost of Care,LD - Huntingdonshire - Care,Residential Care
Cambridgeshire County Council,03-May-22,51301773487,"-1,167.96",SEEABILITY (DENECROFT),CARE ESTABLISHMENT,LD - Hunts Locality - Cost of Care,LD - Huntingdonshire - Care,Residential Care
Cambridgeshire County Council,03-May-22,51301773487,"-1,167.96",SEEABILITY (DENECROFT),CARE ESTABLISHMENT,LD - Hunts Locality - Cost of Care,LD - Huntingdonshire - Care,Residential Care
Cambridgeshire County Council,03-May-22,51301773487,"-1,167.96",SEEABILITY (DENECROFT),CARE ESTABLISHMENT,LD - Hunts Locality - Cost of Care,LD - Huntingdonshire - Care,Residential Care
Cambridgeshire County Council,03-May-22,51301773487,"-1,167.96",SEEABILITY (DENECROFT),CARE ESTABLISHMENT,LD - Hunts Locality - Cost of Care,LD - Huntingdonshire - Care,Residential Care
Cambridgeshire County Council,03-May-22,51301773487,"-1,167.96",SEEABILITY (DENECROFT),CARE ESTABLISHMENT,LD - Hunts Locality - Cost of Care,LD - Huntingdonshire - Care,Residential Care
Cambridgeshire County Council,03-May-22,51301773487,"-1,167.96",SEEABILITY (DENECROFT),CARE ESTABLISHMENT,LD - Hunts Locality - Cost of Care,LD - Huntingdonshire - Care,Residential Care
Cambridgeshire County Council,03-May-22,51301773487,"-1,167.96",SEEABILITY (DENECROFT),CARE ESTABLISHMENT,LD - Hunts Locality - Cost of Care,LD - Huntingdonshire - Care,Residential Care
Cambridgeshire County Council,03-May-22,51301773487,"-1,167.96",SEEABILITY (DENECROFT),CARE ESTABLISHMENT,LD - Hunts Locality - Cost of Care,LD - Huntingdonshire - Care,Residential Care
Cambridgeshire County Council,03-May-22,51301773487,"-1,167.96",SEEABILITY (DENECROFT),CARE ESTABLISHMENT,LD - Hunts Locality - Cost of Care,LD - Huntingdonshire - Care,Residential Care
Cambridgeshire County Council,03-May-22,51301773487,"-1,167.96",SEEABILITY (DENECROFT),CARE ESTABLISHMENT,LD - Hunts Locality - Cost of Care,LD - Huntingdonshire - Care,Residential Care
Cambridgeshire County Council,03-May-22,51301773487,"-1,167.96",SEEABILITY (DENECROFT),CARE ESTABLISHMENT,LD - Hunts Locality - Cost of Care,LD - Huntingdonshire - Care,Residential Care
Cambridgeshire County Council,03-May-22,51301773487,"-1,167.96",SEEABILITY (DENECROFT),CARE ESTABLISHMENT,LD - Hunts Locality - Cost of Care,LD - Huntingdonshire - Care,Residential Care
Cambridgeshire County Council,03-May-22,51301773487,"-1,167.96",SEEABILITY (DENECROFT),CARE ESTABLISHMENT,LD - Hunts Locality - Cost of Care,LD - Huntingdonshire - Care,Residential Care
Cambridgeshire County Council,03-May-22,51301773487,"-1,167.96",SEEABILITY (DENECROFT),CARE ESTABLISHMENT,LD - Hunts Locality - Cost of Care,LD - Huntingdonshire - Care,Residential Care
Cambridgeshire County Council,03-May-22,51301773487,"-1,167.96",SEEABILITY (DENECROFT),CARE ESTABLISHMENT,LD - Hunts Locality - Cost of Care,LD - Huntingdonshire - Care,Residential Care
Cambridgeshire County Council,03-May-22,51301773487,"-1,167.96",SEEABILITY (DENECROFT),CARE ESTABLISHMENT,LD - Hunts Locality - Cost of Care,LD - Huntingdonshire - Care,Residential Care
Cambridgeshire County Council,03-May-22,51301773487,"-1,167.96",SEEABILITY (DENECROFT),CARE ESTABLISHMENT,LD - Hunts Locality - Cost of Care,LD - Huntingdonshire - Care,Residential Care
Cambridgeshire County Council,03-May-22,51301773487,"-1,167.96",SEEABILITY (DENECROFT),CARE ESTABLISHMENT,LD - Hunts Locality - Cost of Care,LD - Huntingdonshire - Care,Residential Care
Cambridgeshire County Council,03-May-22,51301773487,"-1,167.96",SEEABILITY (DENECROFT),CARE ESTABLISHMENT,LD - Hunts Locality - Cost of Care,LD - Huntingdonshire - Care,Residential Care
Cambridgeshire County Council,03-May-22,51301773487,"-1,167.96",SEEABILITY (DENECROFT),CARE ESTABLISHMENT,LD - Hunts Locality - Cost of Care,LD - Huntingdonshire - Care,Residential Care
Cambridgeshire County Council,03-May-22,51301773487,"-1,167.96",SEEABILITY (DENECROFT),CARE ESTABLISHMENT,LD - Hunts Locality - Cost of Care,LD - Huntingdonshire - Care,Residential Care
Cambridgeshire County Council,03-May-22,51301773487,"-1,167.96",SEEABILITY (DENECROFT),CARE ESTABLISHMENT,LD - Hunts Locality - Cost of Care,LD - Huntingdonshire - Care,Residential Care
Cambridgeshire County Council,03-May-22,51301773487,"-1,167.96",SEEABILITY (DENECROFT),CARE ESTABLISHMENT,LD - Hunts Locality - Cost of Care,LD - Huntingdonshire - Care,Residential Care
Cambridgeshire County Council,03-May-22,51301773487,"-1,167.96",SEEABILITY (DENECROFT),CARE ESTABLISHMENT,LD - Hunts Locality - Cost of Care,LD - Huntingdonshire - Care,Residential Care
Cambridgeshire County Council,03-May-22,51301773487,"-1,167.96",SEEABILITY (DENECROFT),CARE ESTABLISHMENT,LD - Hunts Locality - Cost of Care,LD - Huntingdonshire - Care,Residential Care
Cambridgeshire County Council,03-May-22,51301773487,"-1,167.96",SEEABILITY (DENECROFT),CARE ESTABLISHMENT,LD - Hunts Locality - Cost of Care,LD - Huntingdonshire - Care,Residential Care
Cambridgeshire County Council,03-May-22,51301773487,"-1,167.96",SEEABILITY (DENECROFT),CARE ESTABLISHMENT,LD - Hunts Locality - Cost of Care,LD - Huntingdonshire - Care,Residential Care
Cambridgeshire County Council,03-May-22,51301773487,"-1,167.96",SEEABILITY (DENECROFT),CARE ESTABLISHMENT,LD - Hunts Locality - Cost of Care,LD - Huntingdonshire - Care,Residential Care
Cambridgeshire County Council,03-May-22,51301773487,"-1,167.96",SEEABILITY (DENECROFT),CARE ESTABLISHMENT,LD - Hunts Locality - Cost of Care,LD - Huntingdonshire - Care,Residential Care
Cambridgeshire County Council,03-May-22,51301773487,"-1,167.96",SEEABILITY (DENECROFT),CARE ESTABLISHMENT,LD - Hunts Locality - Cost of Care,LD - Huntingdonshire - Care,Residential Care
Cambridgeshire County Council,13-May-22,51301782784,"-1,162.40",WOODLANDS CARE CENTRE,CARE ESTABLISHMENT,OP - City & South Locality - Cost of Care,Older People - City & South - Care,Nursing Care
Cambridgeshire County Council,13-May-22,51301782784,"-1,162.40",WOODLANDS CARE CENTRE,CARE ESTABLISHMENT,OP - City & South Locality - Cost of Care,Older People - City & South - Care,Nursing Care
Cambridgeshire County Council,13-May-22,51301782784,"-1,162.40",WOODLANDS CARE CENTRE,CARE ESTABLISHMENT,OP - City & South Locality - Cost of Care,Older People - City & South - Care,Nursing Care
Cambridgeshire County Council,13-May-22,51301782784,"-1,162.40",WOODLANDS CARE CENTRE,CARE ESTABLISHMENT,OP - City & South Locality - Cost of Care,Older People - City & South - Care,Nursing Care
Cambridgeshire County Council,13-May-22,51301782784,"-1,162.40",WOODLANDS CARE CENTRE,CARE ESTABLISHMENT,OP - City & South Locality - Cost of Care,Older People - City & South - Care,Nursing Care
Cambridgeshire County Council,13-May-22,51301782784,"-1,162.40",WOODLANDS CARE CENTRE,CARE ESTABLISHMENT,OP - City & South Locality - Cost of Care,Older People - City & South - Care,Nursing Care
Cambridgeshire County Council,13-May-22,51301782784,"-1,162.40",WOODLANDS CARE CENTRE,CARE ESTABLISHMENT,OP - City & South Locality - Cost of Care,Older People - City & South - Care,Nursing Care
Cambridgeshire County Council,06-May-22,51301771861,"-1,152.35",Willow Care and Support,CARE ESTABLISHMENT,Physical Disablity - Cost of Care,Countywide PD Service - Care,Homecare
Cambridgeshire County Council,06-May-22,51301771861,"-1,152.35",Willow Care and Support,CARE ESTABLISHMENT,Physical Disablity - Cost of Care,Countywide PD Service - Care,Homecare
Cambridgeshire County Council,06-May-22,51301771861,"-1,152.35",Willow Care and Support,CARE ESTABLISHMENT,Physical Disablity - Cost of Care,Countywide PD Service - Care,Homecare
Cambridgeshire County Council,13-May-22,51301782461,"-1,129.85",BROOKFIELD CARE (Radis Commnity Care),CARE ESTABLISHMENT,Commissioning - Dom Cars,East Cambs - Dom Blocks,Domiciliary Care
Cambridgeshire County Council,13-May-22,51301772733,"-1,128.07",ASKHAM VILLAGE COMMUNITY LTD,CARE ESTABLISHMENT,Physical Disablity - Cost of Care,Countywide PD Service - Care,Nursing Care
Cambridgeshire County Council,13-May-22,51301783388,"-1,124.24",VOYAGE,CARE ESTABLISHMENT,LD - South Locality - Cost of Care,LD - South Cambs - Care,Supported Living
Cambridgeshire County Council,13-May-22,51301783388,"-1,124.24",VOYAGE,CARE ESTABLISHMENT,LD - South Locality - Cost of Care,LD - South Cambs - Care,Supported Living
Cambridgeshire County Council,13-May-22,51301783388,"-1,124.24",VOYAGE,CARE ESTABLISHMENT,LD - South Locality - Cost of Care,LD - South Cambs - Care,Supported Living
Cambridgeshire County Council,13-May-22,51301783388,"-1,124.24",VOYAGE,CARE ESTABLISHMENT,LD - South Locality - Cost of Care,LD - South Cambs - Care,Supported Living
Cambridgeshire County Council,13-May-22,51301783388,"-1,124.24",VOYAGE,CARE ESTABLISHMENT,LD - South Locality - Cost of Care,LD - South Cambs - Care,Supported Living
Cambridgeshire County Council,13-May-22,51301783388,"-1,124.24",VOYAGE,CARE ESTABLISHMENT,LD - South Locality - Cost of Care,LD - South Cambs - Care,Supported Living
Cambridgeshire County Council,13-May-22,51301783388,"-1,124.24",VOYAGE,CARE ESTABLISHMENT,LD - South Locality - Cost of Care,LD - South Cambs - Care,Supported Living
Cambridgeshire County Council,13-May-22,51301783388,"-1,124.24",VOYAGE,CARE ESTABLISHMENT,LD - South Locality - Cost of Care,LD - South Cambs - Care,Supported Living
Cambridgeshire County Council,13-May-22,51301783388,"-1,124.24",VOYAGE,CARE ESTABLISHMENT,LD - South Locality - Cost of Care,LD - South Cambs - Care,Supported Living
Cambridgeshire County Council,13-May-22,51301783388,"-1,124.24",VOYAGE,CARE ESTABLISHMENT,LD - South Locality - Cost of Care,LD - South Cambs - Care,Supported Living
Cambridgeshire County Council,13-May-22,51301783388,"-1,124.24",VOYAGE,CARE ESTABLISHMENT,LD - South Locality - Cost of Care,LD - South Cambs - Care,Supported Living
Cambridgeshire County Council,13-May-22,51301783388,"-1,124.24",VOYAGE,CARE ESTABLISHMENT,LD - South Locality - Cost of Care,LD - South Cambs - Care,Supported Living
Cambridgeshire County Council,13-May-22,51301783388,"-1,124.24",VOYAGE,CARE ESTABLISHMENT,LD - South Locality - Cost of Care,LD - South Cambs - Care,Supported Living
Cambridgeshire County Council,13-May-22,51301783388,"-1,124.24",VOYAGE,CARE ESTABLISHMENT,LD - South Locality - Cost of Care,LD - South Cambs - Care,Supported Living
Cambridgeshire County Council,13-May-22,51301783388,"-1,124.24",VOYAGE,CARE ESTABLISHMENT,LD - South Locality - Cost of Care,LD - South Cambs - Care,Supported Living
Cambridgeshire County Council,13-May-22,51301783388,"-1,124.24",VOYAGE,CARE ESTABLISHMENT,LD - South Locality - Cost of Care,LD - South Cambs - Care,Supported Living
Cambridgeshire County Council,13-May-22,51301783388,"-1,124.24",VOYAGE,CARE ESTABLISHMENT,LD - South Locality - Cost of Care,LD - South Cambs - Care,Supported Living
Cambridgeshire County Council,13-May-22,51301783388,"-1,124.24",VOYAGE,CARE ESTABLISHMENT,LD - South Locality - Cost of Care,LD - South Cambs - Care,Supported Living
Cambridgeshire County Council,13-May-22,51301783388,"-1,124.24",VOYAGE,CARE ESTABLISHMENT,LD - South Locality - Cost of Care,LD - South Cambs - Care,Supported Living
Cambridgeshire County Council,13-May-22,51301783388,"-1,124.24",VOYAGE,CARE ESTABLISHMENT,LD - South Locality - Cost of Care,LD - South Cambs - Care,Supported Living
Cambridgeshire County Council,13-May-22,51301783388,"-1,124.24",VOYAGE,CARE ESTABLISHMENT,LD - South Locality - Cost of Care,LD - South Cambs - Care,Supported Living
Cambridgeshire County Council,13-May-22,51301783388,"-1,124.24",VOYAGE,CARE ESTABLISHMENT,LD - South Locality - Cost of Care,LD - South Cambs - Care,Supported Living
Cambridgeshire County Council,13-May-22,51301783388,"-1,124.24",VOYAGE,CARE ESTABLISHMENT,LD - South Locality - Cost of Care,LD - South Cambs - Care,Supported Living
Cambridgeshire County Council,13-May-22,51301783388,"-1,124.24",VOYAGE,CARE ESTABLISHMENT,LD - South Locality - Cost of Care,LD - South Cambs - Care,Supported Living
Cambridgeshire County Council,13-May-22,51301783388,"-1,124.24",VOYAGE,CARE ESTABLISHMENT,LD - South Locality - Cost of Care,LD - South Cambs - Care,Supported Living
Cambridgeshire County Council,13-May-22,51301783388,"-1,124.24",VOYAGE,CARE ESTABLISHMENT,LD - South Locality - Cost of Care,LD - South Cambs - Care,Supported Living
Cambridgeshire County Council,13-May-22,51301784594,"-1,116.56",MAKING SPACE,CARE ESTABLISHMENT,Physical Disablity - Cost of Care,Countywide PD Service - Care,Nursing Care
Cambridgeshire County Council,13-May-22,51301784594,"-1,116.56",MAKING SPACE,CARE ESTABLISHMENT,Physical Disablity - Cost of Care,Countywide PD Service - Care,Nursing Care
Cambridgeshire County Council,13-May-22,51301784594,"-1,116.56",MAKING SPACE,CARE ESTABLISHMENT,Physical Disablity - Cost of Care,Countywide PD Service - Care,Nursing Care
Cambridgeshire County Council,13-May-22,51301784594,"-1,116.56",MAKING SPACE,CARE ESTABLISHMENT,Physical Disablity - Cost of Care,Countywide PD Service - Care,Nursing Care
Cambridgeshire County Council,13-May-22,51301784594,"-1,116.56",MAKING SPACE,CARE ESTABLISHMENT,Physical Disablity - Cost of Care,Countywide PD Service - Care,Nursing Care
Cambridgeshire County Council,13-May-22,51301784594,"-1,116.56",MAKING SPACE,CARE ESTABLISHMENT,Physical Disablity - Cost of Care,Countywide PD Service - Care,Nursing Care
Cambridgeshire County Council,13-May-22,51301784594,"-1,116.56",MAKING SPACE,CARE ESTABLISHMENT,Physical Disablity - Cost of Care,Countywide PD Service - Care,Nursing Care
Cambridgeshire County Council,13-May-22,51301784591,"-1,112.40",CHERRY HINTON NURSING HOME,CARE ESTABLISHMENT,OP - City & South Locality - Cost of Care,Older People - City & South - Care,Nursing Care
Cambridgeshire County Council,13-May-22,51301784591,"-1,112.40",CHERRY HINTON NURSING HOME,CARE ESTABLISHMENT,OP - City & South Locality - Cost of Care,Older People - City & South - Care,Nursing Care
Cambridgeshire County Council,13-May-22,51301784591,"-1,112.40",CHERRY HINTON NURSING HOME,CARE ESTABLISHMENT,OP - City & South Locality - Cost of Care,Older People - City & South - Care,Nursing Care
Cambridgeshire County Council,13-May-22,51301784591,"-1,112.40",CHERRY HINTON NURSING HOME,CARE ESTABLISHMENT,OP - City & South Locality - Cost of Care,Older People - City & South - Care,Nursing Care
Cambridgeshire County Council,13-May-22,51301784591,"-1,112.40",CHERRY HINTON NURSING HOME,CARE ESTABLISHMENT,OP - City & South Locality - Cost of Care,Older People - City & South - Care,Nursing Care
Cambridgeshire County Council,13-May-22,51301784591,"-1,112.40",CHERRY HINTON NURSING HOME,CARE ESTABLISHMENT,OP - City & South Locality - Cost of Care,Older People - City & South - Care,Nursing Care
Cambridgeshire County Council,13-May-22,51301784591,"-1,112.40",CHERRY HINTON NURSING HOME,CARE ESTABLISHMENT,OP - City & South Locality - Cost of Care,Older People - City & South - Care,Nursing Care
Cambridgeshire County Council,13-May-22,51301782775,"-1,112.40",BARCHESTER HEALTHCARE HOMES LTD,CARE ESTABLISHMENT,OP - City & South Locality - Cost of Care,Older People - City & South - Care,Residential Care
Cambridgeshire County Council,13-May-22,51301782739,"-1,107.14",WOODLANDS CARE CENTRE,CARE ESTABLISHMENT,Physical Disablity - Cost of Care,Countywide PD Service - Care,Nursing Care
Cambridgeshire County Council,27-May-22,51301790914,"-1,104.37",CONQUEST CARE HOMES PETERBOROUGH,CARE ESTABLISHMENT,AMH - Specialist & Primary,Mental Health - Specialist & Primary,Residential Care
Cambridgeshire County Council,27-May-22,51301790914,"-1,104.37",CONQUEST CARE HOMES PETERBOROUGH,CARE ESTABLISHMENT,AMH - Specialist & Primary,Mental Health - Specialist & Primary,Residential Care
Cambridgeshire County Council,27-May-22,51301790914,"-1,104.37",CONQUEST CARE HOMES PETERBOROUGH,CARE ESTABLISHMENT,AMH - Specialist & Primary,Mental Health - Specialist & Primary,Residential Care
Cambridgeshire County Council,27-May-22,51301790914,"-1,104.37",CONQUEST CARE HOMES PETERBOROUGH,CARE ESTABLISHMENT,AMH - Specialist & Primary,Mental Health - Specialist & Primary,Residential Care
Cambridgeshire County Council,27-May-22,51301790914,"-1,104.37",CONQUEST CARE HOMES PETERBOROUGH,CARE ESTABLISHMENT,AMH - Specialist & Primary,Mental Health - Specialist & Primary,Residential Care
Cambridgeshire County Council,27-May-22,51301790914,"-1,104.37",CONQUEST CARE HOMES PETERBOROUGH,CARE ESTABLISHMENT,AMH - Specialist & Primary,Mental Health - Specialist & Primary,Residential Care
Cambridgeshire County Council,27-May-22,51301790914,"-1,104.37",CONQUEST CARE HOMES PETERBOROUGH,CARE ESTABLISHMENT,AMH - Specialist & Primary,Mental Health - Specialist & Primary,Residential Care
Cambridgeshire County Council,27-May-22,51301790914,"-1,104.37",CONQUEST CARE HOMES PETERBOROUGH,CARE ESTABLISHMENT,AMH - Specialist & Primary,Mental Health - Specialist & Primary,Residential Care
Cambridgeshire County Council,27-May-22,51301790914,"-1,104.37",CONQUEST CARE HOMES PETERBOROUGH,CARE ESTABLISHMENT,AMH - Specialist & Primary,Mental Health - Specialist & Primary,Residential Care
Cambridgeshire County Council,27-May-22,51301790914,"-1,104.37",CONQUEST CARE HOMES PETERBOROUGH,CARE ESTABLISHMENT,AMH - Specialist & Primary,Mental Health - Specialist & Primary,Residential Care
Cambridgeshire County Council,27-May-22,51301790914,"-1,104.37",CONQUEST CARE HOMES PETERBOROUGH,CARE ESTABLISHMENT,AMH - Specialist & Primary,Mental Health - Specialist & Primary,Residential Care
Cambridgeshire County Council,11-May-22,51301771853,"-1,100.00",CONNECT NURSING LIMITED,TRADE SUPPLIER,Physical Disablity - Cost of Care,Countywide PD Service - Care,Homecare
Cambridgeshire County Council,11-May-22,51301771853,"-1,100.00",CONNECT NURSING LIMITED,TRADE SUPPLIER,Physical Disablity - Cost of Care,Countywide PD Service - Care,Homecare
Cambridgeshire County Council,11-May-22,51301771853,"-1,100.00",CONNECT NURSING LIMITED,TRADE SUPPLIER,Physical Disablity - Cost of Care,Countywide PD Service - Care,Homecare
Cambridgeshire County Council,13-May-22,51301782758,"-1,100.00",WOODLANDS CARE CENTRE,CARE ESTABLISHMENT,OP - City & South Locality - Cost of Care,Older People - City & South - Care,Nursing Care
Cambridgeshire County Council,13-May-22,51301782758,"-1,100.00",WOODLANDS CARE CENTRE,CARE ESTABLISHMENT,OP - City & South Locality - Cost of Care,Older People - City & South - Care,Nursing Care
Cambridgeshire County Council,13-May-22,51301782758,"-1,100.00",WOODLANDS CARE CENTRE,CARE ESTABLISHMENT,OP - City & South Locality - Cost of Care,Older People - City & South - Care,Nursing Care
Cambridgeshire County Council,13-May-22,51301782758,"-1,100.00",WOODLANDS CARE CENTRE,CARE ESTABLISHMENT,OP - City & South Locality - Cost of Care,Older People - City & South - Care,Nursing Care
Cambridgeshire County Council,13-May-22,51301782758,"-1,100.00",WOODLANDS CARE CENTRE,CARE ESTABLISHMENT,OP - City & South Locality - Cost of Care,Older People - City & South - Care,Nursing Care
Cambridgeshire County Council,13-May-22,51301782758,"-1,100.00",WOODLANDS CARE CENTRE,CARE ESTABLISHMENT,OP - City & South Locality - Cost of Care,Older People - City & South - Care,Nursing Care
Cambridgeshire County Council,13-May-22,51301782758,"-1,100.00",WOODLANDS CARE CENTRE,CARE ESTABLISHMENT,OP - City & South Locality - Cost of Care,Older People - City & South - Care,Nursing Care
Cambridgeshire County Council,13-May-22,51301782551,"-1,100.00",WOODLANDS CARE CENTRE,CARE ESTABLISHMENT,OP - City & South Locality - Cost of Care,Older People - City & South - Care,Residential Care
Cambridgeshire County Council,13-May-22,51301782551,"-1,100.00",WOODLANDS CARE CENTRE,CARE ESTABLISHMENT,OP - City & South Locality - Cost of Care,Older People - City & South - Care,Residential Care
Cambridgeshire County Council,13-May-22,51301782551,"-1,100.00",WOODLANDS CARE CENTRE,CARE ESTABLISHMENT,OP - City & South Locality - Cost of Care,Older People - City & South - Care,Residential Care
Cambridgeshire County Council,13-May-22,51301782551,"-1,100.00",WOODLANDS CARE CENTRE,CARE ESTABLISHMENT,OP - City & South Locality - Cost of Care,Older People - City & South - Care,Residential Care
Cambridgeshire County Council,13-May-22,51301782551,"-1,100.00",WOODLANDS CARE CENTRE,CARE ESTABLISHMENT,OP - City & South Locality - Cost of Care,Older People - City & South - Care,Residential Care
Cambridgeshire County Council,13-May-22,51301782551,"-1,100.00",WOODLANDS CARE CENTRE,CARE ESTABLISHMENT,OP - City & South Locality - Cost of Care,Older People - City & South - Care,Residential Care
Cambridgeshire County Council,13-May-22,51301782551,"-1,100.00",WOODLANDS CARE CENTRE,CARE ESTABLISHMENT,OP - City & South Locality - Cost of Care,Older People - City & South - Care,Residential Care
Cambridgeshire County Council,27-May-22,51301790928,"-1,100.00",WOODLANDS CARE CENTRE,CARE ESTABLISHMENT,OP - City & South Locality - Cost of Care,Older People - City & South - Care,Nursing Care
Cambridgeshire County Council,27-May-22,51301790928,"-1,100.00",WOODLANDS CARE CENTRE,CARE ESTABLISHMENT,OP - City & South Locality - Cost of Care,Older People - City & South - Care,Nursing Care
Cambridgeshire County Council,27-May-22,51301790928,"-1,100.00",WOODLANDS CARE CENTRE,CARE ESTABLISHMENT,OP - City & South Locality - Cost of Care,Older People - City & South - Care,Nursing Care
Cambridgeshire County Council,27-May-22,51301790928,"-1,100.00",WOODLANDS CARE CENTRE,CARE ESTABLISHMENT,OP - City & South Locality - Cost of Care,Older People - City & South - Care,Nursing Care
Cambridgeshire County Council,27-May-22,51301790928,"-1,100.00",WOODLANDS CARE CENTRE,CARE ESTABLISHMENT,OP - City & South Locality - Cost of Care,Older People - City & South - Care,Nursing Care
Cambridgeshire County Council,27-May-22,51301790928,"-1,100.00",WOODLANDS CARE CENTRE,CARE ESTABLISHMENT,OP - City & South Locality - Cost of Care,Older People - City & South - Care,Nursing Care
Cambridgeshire County Council,27-May-22,51301790928,"-1,100.00",WOODLANDS CARE CENTRE,CARE ESTABLISHMENT,OP - City & South Locality - Cost of Care,Older People - City & South - Care,Nursing Care
Cambridgeshire County Council,27-May-22,51301790928,"-1,100.00",WOODLANDS CARE CENTRE,CARE ESTABLISHMENT,OP - City & South Locality - Cost of Care,Older People - City & South - Care,Nursing Care
Cambridgeshire County Council,27-May-22,51301790928,"-1,100.00",WOODLANDS CARE CENTRE,CARE ESTABLISHMENT,OP - City & South Locality - Cost of Care,Older People - City & South - Care,Nursing Care
Cambridgeshire County Council,27-May-22,51301790928,"-1,100.00",WOODLANDS CARE CENTRE,CARE ESTABLISHMENT,OP - City & South Locality - Cost of Care,Older People - City & South - Care,Nursing Care
Cambridgeshire County Council,27-May-22,51301790928,"-1,100.00",WOODLANDS CARE CENTRE,CARE ESTABLISHMENT,OP - City & South Locality - Cost of Care,Older People - City & South - Care,Nursing Care
Cambridgeshire County Council,27-May-22,51301790948,"-1,098.54",ALDERTON HOUSE,CARE ESTABLISHMENT,LD - East Locality - Cost of Care,LD - East Cambs - Care,Residential Care
Cambridgeshire County Council,27-May-22,51301790948,"-1,098.54",ALDERTON HOUSE,CARE ESTABLISHMENT,LD - East Locality - Cost of Care,LD - East Cambs - Care,Residential Care
Cambridgeshire County Council,27-May-22,51301790948,"-1,098.54",ALDERTON HOUSE,CARE ESTABLISHMENT,LD - East Locality - Cost of Care,LD - East Cambs - Care,Residential Care
Cambridgeshire County Council,27-May-22,51301790948,"-1,098.54",ALDERTON HOUSE,CARE ESTABLISHMENT,LD - East Locality - Cost of Care,LD - East Cambs - Care,Residential Care
Cambridgeshire County Council,27-May-22,51301790948,"-1,098.54",ALDERTON HOUSE,CARE ESTABLISHMENT,LD - East Locality - Cost of Care,LD - East Cambs - Care,Residential Care
Cambridgeshire County Council,27-May-22,51301790948,"-1,098.54",ALDERTON HOUSE,CARE ESTABLISHMENT,LD - East Locality - Cost of Care,LD - East Cambs - Care,Residential Care
Cambridgeshire County Council,13-May-22,51301784092,"-1,095.00",MNS CARE PLC - MABBS HALL CARE HOME,CARE ESTABLISHMENT,OP - Fenland Locality - Cost of Care,Older People - Fenland - Care,Nursing Care
Cambridgeshire County Council,13-May-22,51301784092,"-1,095.00",MNS CARE PLC - MABBS HALL CARE HOME,CARE ESTABLISHMENT,OP - Fenland Locality - Cost of Care,Older People - Fenland - Care,Nursing Care
Cambridgeshire County Council,13-May-22,51301784092,"-1,095.00",MNS CARE PLC - MABBS HALL CARE HOME,CARE ESTABLISHMENT,OP - Fenland Locality - Cost of Care,Older People - Fenland - Care,Nursing Care
Cambridgeshire County Council,13-May-22,51301784092,"-1,095.00",MNS CARE PLC - MABBS HALL CARE HOME,CARE ESTABLISHMENT,OP - Fenland Locality - Cost of Care,Older People - Fenland - Care,Nursing Care
Cambridgeshire County Council,13-May-22,51301784694,"-1,095.00",PARK HOUSE NURSING HOME,CARE ESTABLISHMENT,OP - Fenland Locality - Cost of Care,Older People - Fenland - Care,Residential Care
Cambridgeshire County Council,13-May-22,51301784694,"-1,095.00",PARK HOUSE NURSING HOME,CARE ESTABLISHMENT,OP - Fenland Locality - Cost of Care,Older People - Fenland - Care,Residential Care
Cambridgeshire County Council,13-May-22,51301784694,"-1,095.00",PARK HOUSE NURSING HOME,CARE ESTABLISHMENT,OP - Fenland Locality - Cost of Care,Older People - Fenland - Care,Residential Care
Cambridgeshire County Council,13-May-22,51301784694,"-1,095.00",PARK HOUSE NURSING HOME,CARE ESTABLISHMENT,OP - Fenland Locality - Cost of Care,Older People - Fenland - Care,Residential Care
Cambridgeshire County Council,13-May-22,51301784694,"-1,095.00",PARK HOUSE NURSING HOME,CARE ESTABLISHMENT,OP - Fenland Locality - Cost of Care,Older People - Fenland - Care,Residential Care
Cambridgeshire County Council,13-May-22,51301784694,"-1,095.00",PARK HOUSE NURSING HOME,CARE ESTABLISHMENT,OP - Fenland Locality - Cost of Care,Older People - Fenland - Care,Residential Care
Cambridgeshire County Council,13-May-22,51301784694,"-1,095.00",PARK HOUSE NURSING HOME,CARE ESTABLISHMENT,OP - Fenland Locality - Cost of Care,Older People - Fenland - Care,Residential Care
Cambridgeshire County Council,11-May-22,51301779128,"-1,094.31",Starry Care Uk Ltd,COMPANY,Physical Disablity - Cost of Care,Countywide PD Service - Care,Domiciliary Care
Cambridgeshire County Council,11-May-22,51301779128,"-1,094.31",Starry Care Uk Ltd,COMPANY,Physical Disablity - Cost of Care,Countywide PD Service - Care,Domiciliary Care
Cambridgeshire County Council,11-May-22,51301779128,"-1,094.31",Starry Care Uk Ltd,COMPANY,Physical Disablity - Cost of Care,Countywide PD Service - Care,Domiciliary Care
Cambridgeshire County Council,13-May-22,51301781503,"-1,082.14",Abbey Lodge,CARE ESTABLISHMENT,LD - Hunts Locality - Cost of Care,LD - Huntingdonshire - Care,Residential Care
Cambridgeshire County Council,11-May-22,51301775055,"-1,080.00",Redacted Personal Data,SERVICE USER,Physical Disablity - Cost of Care,Countywide PD Service - Care,Direct Payments
Cambridgeshire County Council,11-May-22,51301775055,"-1,080.00",Redacted Personal Data,SERVICE USER,Physical Disablity - Cost of Care,Countywide PD Service - Care,Direct Payments
Cambridgeshire County Council,11-May-22,51301775055,"-1,080.00",Redacted Personal Data,SERVICE USER,Physical Disablity - Cost of Care,Countywide PD Service - Care,Direct Payments
Cambridgeshire County Council,11-May-22,51301775055,"-1,080.00",Redacted Personal Data,SERVICE USER,Physical Disablity - Cost of Care,Countywide PD Service - Care,Direct Payments
Cambridgeshire County Council,11-May-22,51301775055,"-1,080.00",Redacted Personal Data,SERVICE USER,Physical Disablity - Cost of Care,Countywide PD Service - Care,Direct Payments
Cambridgeshire County Council,11-May-22,51301775055,"-1,080.00",Redacted Personal Data,SERVICE USER,Physical Disablity - Cost of Care,Countywide PD Service - Care,Direct Payments
Cambridgeshire County Council,11-May-22,51301775055,"-1,080.00",Redacted Personal Data,SERVICE USER,Physical Disablity - Cost of Care,Countywide PD Service - Care,Direct Payments
Cambridgeshire County Council,11-May-22,51301775055,"-1,080.00",Redacted Personal Data,SERVICE USER,Physical Disablity - Cost of Care,Countywide PD Service - Care,Direct Payments
Cambridgeshire County Council,27-May-22,51301790916,"-1,077.58",ALDERTON HOUSE,CARE ESTABLISHMENT,LD - East Locality - Cost of Care,LD - East Cambs - Care,Residential Care
Cambridgeshire County Council,27-May-22,51301790916,"-1,077.58",ALDERTON HOUSE,CARE ESTABLISHMENT,LD - East Locality - Cost of Care,LD - East Cambs - Care,Residential Care
Cambridgeshire County Council,27-May-22,51301790916,"-1,077.58",ALDERTON HOUSE,CARE ESTABLISHMENT,LD - East Locality - Cost of Care,LD - East Cambs - Care,Residential Care
Cambridgeshire County Council,27-May-22,51301790916,"-1,077.58",ALDERTON HOUSE,CARE ESTABLISHMENT,LD - East Locality - Cost of Care,LD - East Cambs - Care,Residential Care
Cambridgeshire County Council,27-May-22,51301790916,"-1,077.58",ALDERTON HOUSE,CARE ESTABLISHMENT,LD - East Locality - Cost of Care,LD - East Cambs - Care,Residential Care
Cambridgeshire County Council,27-May-22,51301790916,"-1,077.58",ALDERTON HOUSE,CARE ESTABLISHMENT,LD - East Locality - Cost of Care,LD - East Cambs - Care,Residential Care
Cambridgeshire County Council,27-May-22,51301790916,"-1,077.58",ALDERTON HOUSE,CARE ESTABLISHMENT,LD - East Locality - Cost of Care,LD - East Cambs - Care,Residential Care
